{"text_format":"1","workbook":"xlsx","n_sheets":16,"sheets":["Instructions","Overview","Weekday","Saturday","Sunday","Weekly Totals","Dashboard","Finance","Annual Statistics","Physical Assaults","Non-Physical Assaults","Other Safety & Security Data","Completion","Definitions","Safety & Security Definitions","Warning"],"not_rendered":{"charts":22,"images":22,"macros":1,"external_links":0,"defined_names":10,"comments":0,"pivot_tables":0},"unopened":[],"bounds":{"document_bytes":16777216,"sheet_cells":100000,"rows_first":2000,"rows_last":500,"rows_between":2000,"halvings":0,"cell_chars":16384,"cell_head_chars":4096},"cells_cut":0,"cells_raw":0,"read":"whole","date_system":"1900"}

{"sheet":"Instructions","index":0,"n_rows":1,"n_cols":1,"rows_kept":1,"cut":false,"hidden":true,"merged":[]}
["Operating and Financial Statistics Report - General Instructions"]

{"sheet":"Overview","index":1,"n_rows":81,"n_cols":12,"rows_kept":81,"cut":false,"hidden":true,"merged":[[50,2,50,5],[2,1,2,3],[11,1,11,2],[11,4,11,5],[25,1,25,2],[6,3,6,5],[6,1,6,2],[7,3,7,5],[5,1,5,2],[3,1,3,2],[7,1,7,2],[25,4,25,5],[16,1,16,2],[16,4,16,5],[3,3,3,5],[8,1,8,2],[9,3,9,5],[14,3,14,5],[9,1,9,2],[18,1,18,3],[19,1,19,3],[20,1,20,3],[21,1,21,3],[13,3,13,5],[12,1,12,2],[27,1,27,2],[28,1,28,2],[29,1,29,2],[31,1,31,4],[44,1,44,3],[48,1,48,3],[43,3,43,5],[38,3,38,5],[35,1,35,3],[41,1,41,3],[40,1,40,3],[36,1,36,3],[42,3,42,5],[37,3,37,5],[32,3,32,5]]}
[null,{"$f":"\"1. OVERVIEW: \"&Overview!D4","v":"1. OVERVIEW: "},null,null,null,null,null,null,null,1,"Alamance County Transportation Authority",{"$f":"CONCATENATE(K1,\" (\",J1,\")\")","v":"Alamance County Transportation Authority (1)"}]
[null,"FY2024",null,"A","B","C",null,null,null,53,"Albemarle Regional Health Services",{"$f":"CONCATENATE(K2,\" (\",J2,\")\")","v":"Albemarle Regional Health Services (53)"}]
[null,"System Information",null,null,null,null,null,null,null,5,"Alleghany County","Alleghany County (5)"]
[1,"CTP Grantee's Legal Name",null,null,null,null,1,null,null,7,"Anson County","Anson County (7)"]
[null,null,null,"First Name","Middle Initial","Last Name",null,null,null,189,"AppalCART","AppalCART (189)"]
[{"$f":"A4+1","v":2},"Transit's Contact Person",null,null,null,null,{"$f":"G4+1","v":2},null,null,9,"Ashe County Transportation Authority, Inc.","Ashe County Transportation Authority, Inc. (9)"]
[{"$f":"A6+1","v":3},"Contact Email",null,null,null,null,{"$f":"G6+1","v":3},null,null,11,"Avery County Transportation Authority","Avery County Transportation Authority (11)"]
[{"$f":"A7+1","v":4},"Transit's Website Address http://",null,null,null,null,{"$f":"G7+1","v":4},null,null,13,"Beaufort County Developmental Center Inc.","Beaufort County Developmental Center Inc. (13)"]
[null,null,null,null,null,null,null,null,null,17,"Bladen County","Bladen County (17)"]
[{"$f":"A8+1","v":5},"Transit's Telephone Number",null,null,null,null,{"$f":"G8+1","v":5},null,null,19,"Brunswick Transit System, Inc.","Brunswick Transit System, Inc. (19)"]
[null,null,null,null,null,null,null,null,null,21,"Buncombe County","Buncombe County (21)"]
[null,"Service Area",null,null,null,null,null,null,null,25,"Cabarrus County","Cabarrus County (25)"]
[{"$f":"A10+1","v":6},"Select service area",null,null,null,null,{"$f":"G10+1","v":6},null,null,31,"Carteret County ","Carteret County  (31)"]
[null,null,null,"List counties in Multi-County System (if applicable)",null,null,null,null,null,33,"Caswell County","Caswell County (33)"]
[{"$f":"A13+1","v":7},null,null,null,null,null,{"$f":"G13+1","v":7},null,null,37,"Chatham Transit Network","Chatham Transit Network (37)"]
[null,null,null,null,null,null,null,null,null,39,"Cherokee County","Cherokee County (39)"]
[null,"Operating Modes",null,null,null,null,null,null,null,91,"Choanoke Public Transportation Authority","Choanoke Public Transportation Authority (91)"]
[null,null,null,null,"Operating Modes","Route types",null,null,null,127,"City of Rocky Mount","City of Rocky Mount (127)"]
[{"$f":"A15+1","v":8},"Demand Response Directly Operated (DR DO)",null,null,0,null,{"$f":"G15+1","v":8},null,null,43,"Clay County","Clay County (43)"]
[{"$f":"A19+1","v":9},"Demand Response Purchased (DR PT)",null,null,0,null,{"$f":"G19+1","v":9},null,null,47,"Columbus County","Columbus County (47)"]
[{"$f":"A20+1","v":10},"Fixed Route Directly Operated (MB DO)",null,null,0,null,{"$f":"G20+1","v":10},null,null,49,"Craven County","Craven County (49)"]
[{"$f":"A21+1","v":11},"Fixed Route Purchased (MB PT)",null,null,0,null,{"$f":"G21+1","v":11},null,null,51,"Cumberland County","Cumberland County (51)"]
[{"$f":"A22+1","v":12},null,null,"Microtransit Directly Operated (MT DO)",0,null,{"$f":"G22+1","v":12},null,null,55,"Dare County","Dare County (55)"]
[13,null,null,"Microtransit Purchased (MT PT)",0,null,13,null,null,57,"Davidson County","Davidson County (57)"]
[null,null,null,null,null,null,null,null,null,61,"Duplin County","Duplin County (61)"]
[null,"Operating Hours",null,null,null,null,null,null,null,2,"Eastern Band of Cherokee Indians","Eastern Band of Cherokee Indians (2)"]
[null,null,null,"Begin Time","End Time",null,null,null,null,71,"Gaston County","Gaston County (71)"]
[{"$f":"A24+1","v":14},"Weekday",null,null,null,null,{"$f":"G24+1","v":14},null,null,73,"Gates County","Gates County (73)"]
[{"$f":"A28+1","v":15},"Saturday (if applicable)",null,null,null,null,{"$f":"G28+1","v":15},null,null,191,"Goldsboro-Wayne Transportation Authority","Goldsboro-Wayne Transportation Authority (191)"]
[{"$f":"A29+1","v":16},"Sunday (if applicable)",null,null,null,null,{"$f":"G29+1","v":16},null,null,75,"Graham County","Graham County (75)"]
[null,null,null,null,null,null,null,null,null,79,"Greene County","Greene County (79)"]
[null,"Management/Operations Contractor (For PT Mode Only)",null,null,null,null,null,null,null,81,"Guilford County","Guilford County (81)"]
[{"$f":"A30+1","v":17},null,"Contractor Name (For PT Mode Only)",null,null,null,{"$f":"G30+1","v":17},null,null,85,"Harnett County","Harnett County (85)"]
[{"$f":"A33+1","v":18},null,"Contract Start Date (For PT Mode Only)",null,"Contract End Date",null,{"$f":"G33+1","v":18},null,null,93,"Hoke County","Hoke County (93)"]
[null,null,null,null,null,null,null,null,null,95,"Hyde County Non-Profit Private Transportation Corp Inc.","Hyde County Non-Profit Private Transportation Corp Inc. (95)"]
[null,"Out of Service Area Operations",null,null,null,null,null,null,null,97,"Iredell County","Iredell County (97)"]
[{"$f":"A34+1","v":19},"Do you provide trips to out of service area destinations?",null,null,"No",null,{"$f":"G34+1","v":19},null,null,99,"Jackson County","Jackson County (99)"]
[null,null,null,"List out of service area destinations list counties and state only (if applicable)",null,null,null,null,null,101,"Johnston County Council on Aging, Inc.","Johnston County Council on Aging, Inc. (101)"]
[{"$f":"A37+1","v":20},null,null,null,null,null,{"$f":"G37+1","v":20},null,null,185,"Kerr Area Transportation Authority","Kerr Area Transportation Authority (185)"]
[null,null,null,null,null,null,null,null,null,105,"Lee County","Lee County (105)"]
[null,"Coordination",null,null,null,null,null,null,null,107,"Lenoir County","Lenoir County (107)"]
[{"$f":"A39+1","v":21},"Do you coordinate with other Community Transportation systems?",null,null,"No",null,{"$f":"G39+1","v":21},null,null,109,"Lincoln County","Lincoln County (109)"]
[null,null,null,"List Community Transportations systems (if applicable)",null,null,null,null,null,113,"Macon County","Macon County (113)"]
[{"$f":"A42+1","v":22},null,null,null,null,null,{"$f":"G42+1","v":22},null,null,115,"Madison County Transportation Authority","Madison County Transportation Authority (115)"]
[null,"Fares",null,null,null,null,null,null,null,117,"Martin County","Martin County (117)"]
[23,null,"Demand Response",null,null,null,23,null,null,111,"McDowell Transit","McDowell Transit (111)"]
[24,null,"Fixed Route",null,null,null,24,null,null,119,"Mecklenburg County","Mecklenburg County (119)"]
[25,null,"Microtransit",null,null,null,25,null,null,121,"Mitchell County Transportation Authority","Mitchell County Transportation Authority (121)"]
[null,"Minimum Advanced Reservation Time (Hours)",null,null,null,null,null,null,null,125,"Moore County","Moore County (125)"]
[26,"Time",null,null,null,null,26,null,null,87,"Mountain Projects Inc.","Mountain Projects Inc. (87)"]
[27,"Explanation",null,null,null,null,27,null,null,6,"NCDOT Ferry","NCDOT Ferry (6)"]
[null,null,null,null,null,null,null,null,null,8,"Ocracoke Tram","Ocracoke Tram (8)"]
[null,null,null,"A","B","C",null,null,null,133,"Onslow United Transit System, Inc.","Onslow United Transit System, Inc. (133)"]
[null,null,null,null,null,null,null,null,null,135,"Orange County","Orange County (135)"]
[null,null,null,null,null,null,null,null,null,141,"Pender Adult Services Inc.","Pender Adult Services Inc. (141)"]
[null,null,null,null,null,null,null,null,null,145,"Person County","Person County (145)"]
[null,null,null,null,null,null,null,null,null,147,"Pitt County/Pitt Area Transit System","Pitt County/Pitt Area Transit System (147)"]
[null,null,null,null,null,null,null,null,null,149,"Polk County Transportation Authority","Polk County Transportation Authority (149)"]
[null,null,null,null,null,null,null,null,null,151,"Randolph County Senior Adults Assoc. Inc.","Randolph County Senior Adults Assoc. Inc. (151)"]
[null,null,null,null,null,null,null,null,null,153,"Richmond Interagency Transportation, Inc.","Richmond Interagency Transportation, Inc. (153)"]
[null,null,null,null,null,null,null,null,null,155,"Robeson County","Robeson County (155)"]
[null,null,null,null,null,null,null,null,null,157,"Rockingham County Council on Aging Inc.",{"$f":"CONCATENATE(K62,\" (\",J62,\")\")","v":"Rockingham County Council on Aging Inc. (157)"}]
[null,null,null,null,null,null,null,null,null,159,"Rowan County","Rowan County (159)"]
[null,null,null,null,null,null,null,null,null,161,"Rutherford County","Rutherford County (161)"]
[null,null,null,null,null,null,null,null,null,163,"Sampson County","Sampson County (163)"]
[null,null,null,null,null,null,null,null,null,165,"Scotland County","Scotland County (165)"]
[null,null,null,null,null,null,null,null,null,167,"Stanly County","Stanly County (167)"]
[null,null,null,null,null,null,null,null,null,173,"Swain County Focal Point on Aging Inc.","Swain County Focal Point on Aging Inc. (173)"]
[null,null,null,null,null,null,null,null,null,45,"Transportation Administration of Cleveland County Inc.","Transportation Administration of Cleveland County Inc. (45)"]
[null,null,null,null,null,null,null,null,null,175,"Transylvania County","Transylvania County (175)"]
[null,null,null,null,null,null,null,null,null,177,"Tyrrell County","Tyrrell County (177)"]
[null,null,null,null,null,null,null,null,null,179,"Union County","Union County (179)"]
[null,null,null,null,null,null,null,null,null,183,"Wake County","Wake County (183)"]
[null,null,null,null,null,null,null,null,null,187,"Washington County","Washington County (187)"]
[null,null,null,null,null,null,null,null,null,89,"WNC Source","WNC Source (89)"]
[null,null,null,null,null,null,null,null,null,3,"Western Piedmont Regional Transportation Authority","Western Piedmont Regional Transportation Authority (3)"]
[null,null,null,null,null,null,null,null,null,193,"Wilkes Transportation Authority","Wilkes Transportation Authority (193)"]
[null,null,null,null,null,null,null,null,null,196,"Wilson City","Wilson City (196)"]
[null,null,null,null,null,null,null,null,null,195,"Wilson County","Wilson County (195)"]
[null,null,null,null,null,null,null,null,null,171,"Yadkin Valley Economic Development District Inc.","Yadkin Valley Economic Development District Inc. (171)"]
[null,null,null,null,null,null,null,null,null,199,"Yancey County Transportation Authority ","Yancey County Transportation Authority  (199)"]

{"sheet":"Weekday","index":2,"n_rows":62,"n_cols":21,"rows_kept":62,"cut":false,"hidden":true,"merged":[[2,1,2,2],[0,21,5,28]]}
[null,{"$f":"\"2. WEEKDAY: \"&Overview!D4","v":"2. WEEKDAY: "}]
[null,null,null,"A","B","C","D","E","F","G","H","I","J","K","L","M","N","O","P"]
[null,{"$f":"Overview!B2","v":"FY2024"},null,"July","August","September","October","November","December","January","February","March","April","May","June","Quarter 1","Quarter 2","Quarter 3","Quarter 4","YTD Totals"]
[{"$f":"Overview!A51+1","v":28},null,"Operating Days",null,null,null,null,null,null,null,null,null,null,null,null,{"$f":"D4+E4+F4","v":0},{"$f":"G4+H4+I4","v":0},{"$f":"J4+K4+L4","v":0},{"$f":"M4+N4+O4","v":0},{"$f":"SUM(D4:O4)","v":0},{"$f":"Overview!G51+1","v":28}]
[null,"Demand Response Directly Operated (DR DO)"]
[{"$f":"A4+1","v":29},null,"Hours",null,null,null,null,null,null,null,null,null,null,null,null,{"$f":"D6+E6+F6","v":0},{"$f":"G6+H6+I6","v":0},{"$f":"J6+K6+L6","v":0},{"$f":"M6+N6+O6","v":0},{"$f":"SUM(D6:O6)","v":0},{"$f":"U4+1","v":29}]
[{"$f":"A6+1","v":30},null,"Miles",null,null,null,null,null,null,null,null,null,null,null,null,0,0,0,0,0,{"$f":"U6+1","v":30}]
[{"$f":"A7+1","v":31},null,"Passenger Trips: Non-Contract",null,null,null,null,null,null,null,null,null,null,null,null,0,0,0,0,0,{"$f":"U7+1","v":31}]
[{"$f":"A8+1","v":32},null,"                               Medicaid Contract",null,null,null,null,null,null,null,null,null,null,null,null,0,0,0,0,0,{"$f":"U8+1","v":32}]
[{"$f":"A9+1","v":33},null,"                               Non-Medicaid Contract",null,null,null,null,null,null,null,null,null,null,null,null,0,0,0,0,0,{"$f":"U9+1","v":33}]
[{"$f":"A10+1","v":34},null,"                               Brokered Medicaid Contract",null,null,null,null,null,null,null,null,null,null,null,null,{"$f":"D11+E11+F11","v":0},{"$f":"G11+H11+I11","v":0},{"$f":"J11+K11+L11","v":0},{"$f":"M11+N11+O11","v":0},{"$f":"SUM(D11:O11)","v":0},{"$f":"U10+1","v":34}]
[null,null,"Total Passenger Trips for This Mode",{"$f":"SUM(D8:D11)","v":0},{"$f":"SUM(E8:E11)","v":0},0,0,0,0,0,0,0,0,0,0,0,0,0,0,0]
[null,"Demand Response Purchased (DR PT)"]
[{"$f":"A11+1","v":35},null,"Hours",null,null,null,null,null,null,null,null,null,null,null,null,{"$f":"D14+E14+F14","v":0},{"$f":"G14+H14+I14","v":0},{"$f":"J14+K14+L14","v":0},{"$f":"M14+N14+O14","v":0},{"$f":"SUM(D14:O14)","v":0},{"$f":"U11+1","v":35}]
[{"$f":"A14+1","v":36},null,"Miles",null,null,null,null,null,null,null,null,null,null,null,null,0,0,0,0,0,{"$f":"U14+1","v":36}]
[{"$f":"A15+1","v":37},null,"Passenger Trips: Non-Contract",null,null,null,null,null,null,null,null,null,null,null,null,0,0,0,0,0,{"$f":"U15+1","v":37}]
[{"$f":"A16+1","v":38},null,"                               Medicaid Contract",null,null,null,null,null,null,null,null,null,null,null,null,0,0,0,0,0,{"$f":"U16+1","v":38}]
[{"$f":"A17+1","v":39},null,"                               Non-Medicaid Contract",null,null,null,null,null,null,null,null,null,null,null,null,0,0,0,0,0,{"$f":"U17+1","v":39}]
[{"$f":"A18+1","v":40},null,"                               Brokered Medicaid Contract",null,null,null,null,null,null,null,null,null,null,null,null,{"$f":"D19+E19+F19","v":0},{"$f":"G19+H19+I19","v":0},{"$f":"J19+K19+L19","v":0},{"$f":"M19+N19+O19","v":0},{"$f":"SUM(D19:O19)","v":0},{"$f":"U18+1","v":40}]
[null,null,"Total Passenger Trips for This Mode",{"$f":"SUM(D16:D19)","v":0},{"$f":"SUM(E16:E19)","v":0},{"$f":"SUM(F16:F19)","v":0},{"$f":"SUM(G16:G19)","v":0},{"$f":"SUM(H16:H19)","v":0},{"$f":"SUM(I16:I19)","v":0},{"$f":"SUM(J16:J19)","v":0},{"$f":"SUM(K16:K19)","v":0},{"$f":"SUM(L16:L19)","v":0},{"$f":"SUM(M16:M19)","v":0},{"$f":"SUM(N16:N19)","v":0},{"$f":"SUM(O16:O19)","v":0},0,0,0,0,0]
[null,"Fixed Route Directly Operated (MB DO)"]
[{"$f":"A19+1","v":41},null,"Hours",null,null,null,null,null,null,null,null,null,null,null,null,{"$f":"D22+E22+F22","v":0},{"$f":"G22+H22+I22","v":0},{"$f":"J22+K22+L22","v":0},{"$f":"M22+N22+O22","v":0},{"$f":"SUM(D22:O22)","v":0},{"$f":"U19+1","v":41}]
[{"$f":"A22+1","v":42},null,"Miles",null,null,null,null,null,null,null,null,null,null,null,null,{"$f":"D23+E23+F23","v":0},{"$f":"G23+H23+I23","v":0},{"$f":"J23+K23+L23","v":0},{"$f":"M23+N23+O23","v":0},{"$f":"SUM(D23:O23)","v":0},{"$f":"U22+1","v":42}]
[{"$f":"A23+1","v":43},null,"Passenger Trips: Non-Contract",null,null,null,null,null,null,null,null,null,null,null,null,{"$f":"D24+E24+F24","v":0},{"$f":"G24+H24+I24","v":0},{"$f":"J24+K24+L24","v":0},{"$f":"M24+N24+O24","v":0},{"$f":"SUM(D24:O24)","v":0},{"$f":"U23+1","v":43}]
[{"$f":"A24+1","v":44},null,"                               Medicaid Contract",null,null,null,null,null,null,null,null,null,null,null,null,0,0,0,0,0,{"$f":"U24+1","v":44}]
[{"$f":"A25+1","v":45},null,"                               Non-Medicaid Contract",null,null,null,null,null,null,null,null,null,null,null,null,0,0,0,0,0,{"$f":"U25+1","v":45}]
[{"$f":"A26+1","v":46},null,"                               Brokered Medicaid Contract",null,null,null,null,null,null,null,null,null,null,null,null,{"$f":"D27+E27+F27","v":0},{"$f":"G27+H27+I27","v":0},{"$f":"J27+K27+L27","v":0},{"$f":"M27+N27+O27","v":0},{"$f":"SUM(D27:O27)","v":0},{"$f":"U26+1","v":46}]
[null,null,"Total Passenger Trips for This Mode",{"$f":"SUM(D24:D27)","v":0},{"$f":"SUM(E24:E27)","v":0},{"$f":"SUM(F24:F27)","v":0},{"$f":"SUM(G24:G27)","v":0},{"$f":"SUM(H24:H27)","v":0},{"$f":"SUM(I24:I27)","v":0},{"$f":"SUM(J24:J27)","v":0},{"$f":"SUM(K24:K27)","v":0},{"$f":"SUM(L24:L27)","v":0},{"$f":"SUM(M24:M27)","v":0},{"$f":"SUM(N24:N27)","v":0},{"$f":"SUM(O24:O27)","v":0},0,0,0,0,0]
[null,"Fixed Route Purchased (MB PT)"]
[{"$f":"A27+1","v":47},null,"Hours",null,null,null,null,null,null,null,null,null,null,null,null,{"$f":"D30+E30+F30","v":0},{"$f":"G30+H30+I30","v":0},{"$f":"J30+K30+L30","v":0},{"$f":"M30+N30+O30","v":0},{"$f":"SUM(D30:O30)","v":0},{"$f":"U27+1","v":47}]
[{"$f":"A30+1","v":48},null,"Miles",null,null,null,null,null,null,null,null,null,null,null,null,0,0,0,0,0,{"$f":"U30+1","v":48}]
[{"$f":"A31+1","v":49},null,"Passenger Trips: Non-Contract",null,null,null,null,null,null,null,null,null,null,null,null,0,0,0,0,0,{"$f":"U31+1","v":49}]
[{"$f":"A32+1","v":50},null,"                               Medicaid Contract",null,null,null,null,null,null,null,null,null,null,null,null,0,0,0,0,0,{"$f":"U32+1","v":50}]
[{"$f":"A33+1","v":51},null,"                               Non-Medicaid Contract",null,null,null,null,null,null,null,null,null,null,null,null,0,0,0,0,0,{"$f":"U33+1","v":51}]
[{"$f":"A34+1","v":52},null,"                               Brokered Medicaid Contract",null,null,null,null,null,null,null,null,null,null,null,null,{"$f":"D35+E35+F35","v":0},{"$f":"G35+H35+I35","v":0},{"$f":"J35+K35+L35","v":0},{"$f":"M35+N35+O35","v":0},{"$f":"SUM(D35:O35)","v":0},{"$f":"U34+1","v":52}]
[null,null,"Total Passenger Trips- Other Providers",{"$f":"SUM(D32:D35)","v":0},{"$f":"SUM(E32:E35)","v":0},{"$f":"SUM(F32:F35)","v":0},{"$f":"SUM(G32:G35)","v":0},{"$f":"SUM(H32:H35)","v":0},{"$f":"SUM(I32:I35)","v":0},{"$f":"SUM(J32:J35)","v":0},{"$f":"SUM(K32:K35)","v":0},{"$f":"SUM(L32:L35)","v":0},{"$f":"SUM(M32:M35)","v":0},{"$f":"SUM(N32:N35)","v":0},{"$f":"SUM(O32:O35)","v":0},0,0,0,0,0]
[null,"Microtransit (MT DO)"]
[{"$f":"A35+1","v":53},null,"Hours",null,null,null,null,null,null,null,null,null,null,null,null,{"$f":"D38+E38+F38","v":0},{"$f":"G38+H38+I38","v":0},{"$f":"J38+K38+L38","v":0},{"$f":"M38+N38+O38","v":0},{"$f":"SUM(D38:O38)","v":0},{"$f":"U35+1","v":53}]
[{"$f":"A38+1","v":54},null,"Miles",null,null,null,null,null,null,null,null,null,null,null,null,0,0,0,0,0,{"$f":"U38+1","v":54}]
[{"$f":"A39+1","v":55},null,"Passenger Trips: Non-Contract",null,null,null,null,null,null,null,null,null,null,null,null,0,0,0,0,0,{"$f":"U39+1","v":55}]
[{"$f":"A40+1","v":56},null,"                               Medicaid Contract",null,null,null,null,null,null,null,null,null,null,null,null,0,0,0,0,0,{"$f":"U40+1","v":56}]
[{"$f":"A41+1","v":57},null,"                               Non-Medicaid Contract",null,null,null,null,null,null,null,null,null,null,null,null,{"$f":"D42+E42+F42","v":0},{"$f":"G42+H42+I42","v":0},{"$f":"J42+K42+L42","v":0},{"$f":"M42+N42+O42","v":0},{"$f":"SUM(D42:O42)","v":0},{"$f":"U41+1","v":57}]
[{"$f":"A42+1","v":58},null,"                               Brokered Medicaid Contract",null,null,null,null,null,null,null,null,null,null,null,null,{"$f":"D43+E43+F43","v":0},{"$f":"G43+H43+I43","v":0},{"$f":"J43+K43+L43","v":0},{"$f":"M43+N43+O43","v":0},{"$f":"SUM(D43:O43)","v":0},{"$f":"U42+1","v":58}]
[null,null,"Total Passenger Trips- Other Providers",{"$f":"SUM(D40:D43)","v":0},{"$f":"SUM(E40:E43)","v":0},{"$f":"SUM(F40:F43)","v":0},{"$f":"SUM(G40:G43)","v":0},{"$f":"SUM(H40:H43)","v":0},{"$f":"SUM(I40:I43)","v":0},{"$f":"SUM(J40:J43)","v":0},{"$f":"SUM(K40:K43)","v":0},{"$f":"SUM(L40:L43)","v":0},{"$f":"SUM(M40:M43)","v":0},{"$f":"SUM(N40:N43)","v":0},{"$f":"SUM(O40:O43)","v":0},0,0,0,0,0]
[null,"Microtransit (MT PT)"]
[{"$f":"A43+1","v":59},null,"Hours",null,null,null,null,null,null,null,null,null,null,null,null,{"$f":"D46+E46+F46","v":0},{"$f":"G46+H46+I46","v":0},{"$f":"J46+K46+L46","v":0},{"$f":"M46+N46+O46","v":0},{"$f":"SUM(D46:O46)","v":0},{"$f":"U43+1","v":59}]
[{"$f":"A46+1","v":60},null,"Miles",null,null,null,null,null,null,null,null,null,null,null,null,0,0,0,0,0,{"$f":"U46+1","v":60}]
[{"$f":"A47+1","v":61},null,"Passenger Trips: Non-Contract",null,null,null,null,null,null,null,null,null,null,null,null,0,0,0,0,0,{"$f":"U47+1","v":61}]
[{"$f":"A48+1","v":62},null,"                               Medicaid Contract",null,null,null,null,null,null,null,null,null,null,null,null,0,0,0,0,0,{"$f":"U48+1","v":62}]
[{"$f":"A49+1","v":63},null,"                               Non-Medicaid Contract",null,null,null,null,null,null,null,null,null,null,null,null,0,0,0,0,0,{"$f":"U49+1","v":63}]
[{"$f":"A50+1","v":64},null,"                               Brokered Medicaid Contract",null,null,null,null,null,null,null,null,null,null,null,null,{"$f":"D51+E51+F51","v":0},{"$f":"G51+H51+I51","v":0},{"$f":"J51+K51+L51","v":0},{"$f":"M51+N51+O51","v":0},{"$f":"SUM(D51:O51)","v":0},{"$f":"U50+1","v":64}]
[null,null,"Total Passenger Trips- Other Providers",{"$f":"SUM(D48:D51)","v":0},{"$f":"SUM(E48:E51)","v":0},{"$f":"SUM(F48:F51)","v":0},{"$f":"SUM(G48:G51)","v":0},{"$f":"SUM(H48:H51)","v":0},{"$f":"SUM(I48:I51)","v":0},{"$f":"SUM(J48:J51)","v":0},{"$f":"SUM(K48:K51)","v":0},{"$f":"SUM(L48:L51)","v":0},{"$f":"SUM(M48:M51)","v":0},{"$f":"SUM(N48:N51)","v":0},{"$f":"SUM(O48:O51)","v":0},0,0,0,0,0]
[null,"Transit Totals"]
[null,null,"Hours",{"$f":"SUM(D6+D14+D22+D30+D38+D46)","v":0},0,0,0,0,0,0,0,0,0,0,0,{"$f":"SUM(D54:F54)","v":0},{"$f":"SUM(G54:I54)","v":0},{"$f":"SUM(J54:L54)","v":0},{"$f":"SUM(M54:O54)","v":0},{"$f":"SUM(P54:S54)","v":0}]
[null,null,"Miles",{"$f":"SUM(D7+D15+D23+D31+D39+D47)","v":0},0,0,0,0,0,0,0,0,0,0,0,{"$f":"SUM(D55:F55)","v":0},{"$f":"SUM(G55:I55)","v":0},{"$f":"SUM(J55:L55)","v":0},{"$f":"SUM(M55:O55)","v":0},{"$f":"SUM(P55:S55)","v":0}]
[null,null,"Passenger Trips: Non-Contract",{"$f":"SUM(D8+D16+D24+D32+D40+D48)","v":0},0,0,0,0,0,0,0,0,0,0,0,0,0,0,0,0]
[null,null,"                                  Medicaid Contract",{"$f":"SUM(D9+D17+D25+D33+D41+D49)","v":0},0,0,0,0,0,0,0,0,0,0,0,0,0,0,0,0]
[null,null,"                                  Non-Medicaid Contract",{"$f":"SUM(D10+D18+D26+D34+D42+D50)","v":0},0,0,0,0,0,0,0,0,0,0,0,0,0,0,0,0]
[null,null,"                                  Brokered Medicaid Contract",{"$f":"SUM(D11+D19+D27+D35+D43+D51)","v":0},0,0,0,0,0,0,0,0,0,0,0,{"$f":"SUM(D59:F59)","v":0},{"$f":"SUM(G59:I59)","v":0},{"$f":"SUM(J59:L59)","v":0},{"$f":"SUM(M59:O59)","v":0},{"$f":"SUM(P59:S59)","v":0}]
[null,null,"Total Passenger Trips for All Modes",{"$f":"SUM(D56:D59)","v":0},{"$f":"SUM(E56:E59)","v":0},{"$f":"SUM(F56:F59)","v":0},{"$f":"SUM(G56:G59)","v":0},{"$f":"SUM(H56:H59)","v":0},{"$f":"SUM(I56:I59)","v":0},{"$f":"SUM(J56:J59)","v":0},{"$f":"SUM(K56:K59)","v":0},{"$f":"SUM(L56:L59)","v":0},{"$f":"SUM(M56:M59)","v":0},{"$f":"SUM(N56:N59)","v":0},{"$f":"SUM(O56:O59)","v":0},0,0,0,0,0]
[]
[null,null,null,"A","B","C","D","E","F","G","H","I","J","K","L","M","N","O","P"]

{"sheet":"Saturday","index":3,"n_rows":62,"n_cols":21,"rows_kept":62,"cut":false,"hidden":true,"merged":[]}
[null,{"$f":"\"3. SATURDAY: \"&Overview!D4","v":"3. SATURDAY: "}]
[null,null,null,"A","B","C","D","E","F","G","H","I","J","K","L"]
[null,{"$f":"Overview!B2","v":"FY2024"},null,"July","August","September","October","November","December","January","February","March","April","May","June","Quarter 1","Quarter 2","Quarter 3","Quarter 4","YTD Totals"]
[{"$f":"Weekday!A51+1","v":65},null,"Operating Days",null,null,null,null,null,null,null,null,null,null,null,null,{"$f":"D4+E4+F4","v":0},{"$f":"G4+H4+I4","v":0},{"$f":"J4+K4+L4","v":0},{"$f":"M4+N4+O4","v":0},{"$f":"SUM(D4:O4)","v":0},{"$f":"Weekday!A51+1","v":65}]
[null,"Demand Response Directly Operated (DR DO)"]
[{"$f":"A4+1","v":66},null,"Hours",null,null,null,null,null,null,null,null,null,null,null,null,{"$f":"D6+E6+F6","v":0},{"$f":"G6+H6+I6","v":0},{"$f":"J6+K6+L6","v":0},{"$f":"M6+N6+O6","v":0},{"$f":"SUM(D6:O6)","v":0},{"$f":"U4+1","v":66}]
[{"$f":"A6+1","v":67},null,"Miles",null,null,null,null,null,null,null,null,null,null,null,null,0,0,0,0,{"$f":"SUM(D7:O7)","v":0},{"$f":"U6+1","v":67}]
[{"$f":"A7+1","v":68},null,"Passenger Trips: Non-Contract",null,null,null,null,null,null,null,null,null,null,null,null,0,0,0,0,{"$f":"SUM(D8:O8)","v":0},{"$f":"U7+1","v":68}]
[{"$f":"A8+1","v":69},null,"                               Medicaid Contract",null,null,null,null,null,null,null,null,null,null,null,null,0,0,0,0,{"$f":"SUM(D9:O9)","v":0},{"$f":"U8+1","v":69}]
[{"$f":"A9+1","v":70},null,"                               Non-Medicaid Contract",null,null,null,null,null,null,null,null,null,null,null,null,0,0,0,0,{"$f":"SUM(D10:O10)","v":0},{"$f":"U9+1","v":70}]
[{"$f":"A10+1","v":71},null,"                               Brokered Medicaid Contract",null,null,null,null,null,null,null,null,null,null,null,null,{"$f":"D11+E11+F11","v":0},{"$f":"G11+H11+I11","v":0},{"$f":"J11+K11+L11","v":0},{"$f":"M11+N11+O11","v":0},{"$f":"SUM(D11:O11)","v":0},{"$f":"U10+1","v":71}]
[null,null,"Total Passenger Trips for This Mode",{"$f":"SUM(D8:D11)","v":0},{"$f":"SUM(E8:E11)","v":0},0,0,0,0,0,0,0,0,0,0,0,0,0,0,{"$f":"SUM(T8:T10)","v":0}]
[null,"Demand Response Purchased (DR PT)"]
[{"$f":"A11+1","v":72},null,"Hours",null,null,null,null,null,null,null,null,null,null,null,null,{"$f":"D14+E14+F14","v":0},{"$f":"G14+H14+I14","v":0},{"$f":"J14+K14+L14","v":0},{"$f":"M14+N14+O14","v":0},{"$f":"SUM(D14:O14)","v":0},{"$f":"U11+1","v":72}]
[{"$f":"A14+1","v":73},null,"Miles",null,null,null,null,null,null,null,null,null,null,null,null,0,0,0,0,0,{"$f":"U14+1","v":73}]
[{"$f":"A15+1","v":74},null,"Passenger Trips: Non-Contract",null,null,null,null,null,null,null,null,null,null,null,null,0,0,0,0,0,{"$f":"U15+1","v":74}]
[{"$f":"A16+1","v":75},null,"                               Medicaid Contract",null,null,null,null,null,null,null,null,null,null,null,null,0,0,0,0,0,{"$f":"U16+1","v":75}]
[{"$f":"A17+1","v":76},null,"                               Non-Medicaid Contract",null,null,null,null,null,null,null,null,null,null,null,null,0,0,0,0,0,{"$f":"U17+1","v":76}]
[{"$f":"A18+1","v":77},null,"                               Brokered Medicaid Contract",null,null,null,null,null,null,null,null,null,null,null,null,{"$f":"D19+E19+F19","v":0},{"$f":"G19+H19+I19","v":0},{"$f":"J19+K19+L19","v":0},{"$f":"M19+N19+O19","v":0},{"$f":"SUM(D19:O19)","v":0},{"$f":"U18+1","v":77}]
[null,null,"Total Passenger Trips for This Mode",{"$f":"SUM(D16:D19)","v":0},{"$f":"SUM(E16:E19)","v":0},{"$f":"SUM(F16:F19)","v":0},{"$f":"SUM(G16:G19)","v":0},{"$f":"SUM(H16:H19)","v":0},{"$f":"SUM(I16:I19)","v":0},{"$f":"SUM(J16:J19)","v":0},{"$f":"SUM(K16:K19)","v":0},{"$f":"SUM(L16:L19)","v":0},{"$f":"SUM(M16:M19)","v":0},{"$f":"SUM(N16:N19)","v":0},{"$f":"SUM(O16:O19)","v":0},0,0,0,0,0]
[null,"Fixed Route Directly Operated (MB DO)"]
[{"$f":"A19+1","v":78},null,"Hours",null,null,null,null,null,null,null,null,null,null,null,null,{"$f":"D22+E22+F22","v":0},{"$f":"G22+H22+I22","v":0},{"$f":"J22+K22+L22","v":0},{"$f":"M22+N22+O22","v":0},{"$f":"SUM(D22:O22)","v":0},{"$f":"U19+1","v":78}]
[{"$f":"A22+1","v":79},null,"Miles",null,null,null,null,null,null,null,null,null,null,null,null,0,0,0,0,0,{"$f":"U22+1","v":79}]
[{"$f":"A23+1","v":80},null,"Passenger Trips: Non-Contract",null,null,null,null,null,null,null,null,null,null,null,null,0,0,0,0,0,{"$f":"U23+1","v":80}]
[{"$f":"A24+1","v":81},null,"                               Medicaid Contract",null,null,null,null,null,null,null,null,null,null,null,null,0,0,0,0,0,{"$f":"U24+1","v":81}]
[{"$f":"A25+1","v":82},null,"                               Non-Medicaid Contract",null,null,null,null,null,null,null,null,null,null,null,null,0,0,0,0,0,{"$f":"U25+1","v":82}]
[{"$f":"A26+1","v":83},null,"                               Brokered Medicaid Contract",null,null,null,null,null,null,null,null,null,null,null,null,{"$f":"D27+E27+F27","v":0},{"$f":"G27+H27+I27","v":0},{"$f":"J27+K27+L27","v":0},{"$f":"M27+N27+O27","v":0},{"$f":"SUM(D27:O27)","v":0},{"$f":"U26+1","v":83}]
[null,null,"Total Passenger Trips for This Mode",{"$f":"SUM(D24:D27)","v":0},{"$f":"SUM(E24:E27)","v":0},{"$f":"SUM(F24:F27)","v":0},{"$f":"SUM(G24:G27)","v":0},{"$f":"SUM(H24:H27)","v":0},{"$f":"SUM(I24:I27)","v":0},{"$f":"SUM(J24:J27)","v":0},{"$f":"SUM(K24:K27)","v":0},{"$f":"SUM(L24:L27)","v":0},{"$f":"SUM(M24:M27)","v":0},{"$f":"SUM(N24:N27)","v":0},{"$f":"SUM(O24:O27)","v":0},0,0,0,0,0]
[null,"Fixed Route Purchased (MB PT)"]
[{"$f":"A27+1","v":84},null,"Hours",null,null,null,null,null,null,null,null,null,null,null,null,{"$f":"D30+E30+F30","v":0},{"$f":"G30+H30+I30","v":0},{"$f":"J30+K30+L30","v":0},{"$f":"M30+N30+O30","v":0},{"$f":"SUM(D30:O30)","v":0},{"$f":"U27+1","v":84}]
[{"$f":"A30+1","v":85},null,"Miles",null,null,null,null,null,null,null,null,null,null,null,null,0,0,0,0,0,{"$f":"U30+1","v":85}]
[{"$f":"A31+1","v":86},null,"Passenger Trips: Non-Contract",null,null,null,null,null,null,null,null,null,null,null,null,0,0,0,0,0,{"$f":"U31+1","v":86}]
[{"$f":"A32+1","v":87},null,"                               Medicaid Contract",null,null,null,null,null,null,null,null,null,null,null,null,0,0,0,0,0,{"$f":"U32+1","v":87}]
[{"$f":"A33+1","v":88},null,"                               Non-Medicaid Contract",null,null,null,null,null,null,null,null,null,null,null,null,0,0,0,0,0,{"$f":"U33+1","v":88}]
[{"$f":"A34+1","v":89},null,"                               Brokered Medicaid Contract",null,null,null,null,null,null,null,null,null,null,null,null,{"$f":"D35+E35+F35","v":0},{"$f":"G35+H35+I35","v":0},{"$f":"J35+K35+L35","v":0},{"$f":"M35+N35+O35","v":0},{"$f":"SUM(D35:O35)","v":0},{"$f":"U34+1","v":89}]
[null,null,"Total Passenger Trips- Other Providers",{"$f":"SUM(D32:D35)","v":0},{"$f":"SUM(E32:E35)","v":0},{"$f":"SUM(F32:F35)","v":0},{"$f":"SUM(G32:G35)","v":0},{"$f":"SUM(H32:H35)","v":0},{"$f":"SUM(I32:I35)","v":0},{"$f":"SUM(J32:J35)","v":0},{"$f":"SUM(K32:K35)","v":0},{"$f":"SUM(L32:L35)","v":0},{"$f":"SUM(M32:M35)","v":0},{"$f":"SUM(N32:N35)","v":0},{"$f":"SUM(O32:O35)","v":0},0,0,0,0,0]
[null,"Microtransit (MT DO)"]
[{"$f":"A35+1","v":90},null,"Hours",null,null,null,null,null,null,null,null,null,null,null,null,{"$f":"D38+E38+F38","v":0},{"$f":"G38+H38+I38","v":0},{"$f":"J38+K38+L38","v":0},{"$f":"M38+N38+O38","v":0},{"$f":"SUM(D38:O38)","v":0},{"$f":"U35+1","v":90}]
[{"$f":"A38+1","v":91},null,"Miles",null,null,null,null,null,null,null,null,null,null,null,null,0,0,0,0,0,{"$f":"U38+1","v":91}]
[{"$f":"A39+1","v":92},null,"Passenger Trips: Non-Contract",null,null,null,null,null,null,null,null,null,null,null,null,0,0,0,0,0,{"$f":"U39+1","v":92}]
[{"$f":"A40+1","v":93},null,"                               Medicaid Contract",null,null,null,null,null,null,null,null,null,null,null,null,0,0,0,0,0,{"$f":"U40+1","v":93}]
[{"$f":"A41+1","v":94},null,"                               Non-Medicaid Contract",null,null,null,null,null,null,null,null,null,null,null,null,0,0,0,0,0,{"$f":"U41+1","v":94}]
[{"$f":"A42+1","v":95},null,"                               Brokered Medicaid Contract",null,null,null,null,null,null,null,null,null,null,null,null,{"$f":"D43+E43+F43","v":0},{"$f":"G43+H43+I43","v":0},{"$f":"J43+K43+L43","v":0},{"$f":"M43+N43+O43","v":0},{"$f":"SUM(D43:O43)","v":0},{"$f":"U42+1","v":95}]
[null,null,"Total Passenger Trips- Other Providers",{"$f":"SUM(D40:D43)","v":0},{"$f":"SUM(E40:E43)","v":0},{"$f":"SUM(F40:F43)","v":0},{"$f":"SUM(G40:G43)","v":0},{"$f":"SUM(H40:H43)","v":0},{"$f":"SUM(I40:I43)","v":0},{"$f":"SUM(J40:J43)","v":0},{"$f":"SUM(K40:K43)","v":0},{"$f":"SUM(L40:L43)","v":0},{"$f":"SUM(M40:M43)","v":0},{"$f":"SUM(N40:N43)","v":0},{"$f":"SUM(O40:O43)","v":0},0,0,0,0,0]
[null,"Microtransit (MT PT)"]
[{"$f":"A43+1","v":96},null,"Hours",null,null,null,null,null,null,null,null,null,null,null,null,{"$f":"D46+E46+F46","v":0},{"$f":"G46+H46+I46","v":0},{"$f":"J46+K46+L46","v":0},{"$f":"M46+N46+O46","v":0},{"$f":"SUM(D46:O46)","v":0},{"$f":"U43+1","v":96}]
[{"$f":"A46+1","v":97},null,"Miles",null,null,null,null,null,null,null,null,null,null,null,null,0,0,0,0,0,{"$f":"U46+1","v":97}]
[{"$f":"A47+1","v":98},null,"Passenger Trips: Non-Contract",null,null,null,null,null,null,null,null,null,null,null,null,0,0,0,0,0,{"$f":"U47+1","v":98}]
[{"$f":"A48+1","v":99},null,"                               Medicaid Contract",null,null,null,null,null,null,null,null,null,null,null,null,0,0,0,0,0,{"$f":"U48+1","v":99}]
[{"$f":"A49+1","v":100},null,"                               Non-Medicaid Contract",null,null,null,null,null,null,null,null,null,null,null,null,0,0,0,0,0,{"$f":"U49+1","v":100}]
[{"$f":"A50+1","v":101},null,"                               Brokered Medicaid Contract",null,null,null,null,null,null,null,null,null,null,null,null,{"$f":"D51+E51+F51","v":0},{"$f":"G51+H51+I51","v":0},{"$f":"J51+K51+L51","v":0},{"$f":"M51+N51+O51","v":0},{"$f":"SUM(D51:O51)","v":0},{"$f":"U50+1","v":101}]
[null,null,"Total Passenger Trips- Other Providers",{"$f":"SUM(D48:D51)","v":0},{"$f":"SUM(E48:E51)","v":0},{"$f":"SUM(F48:F51)","v":0},{"$f":"SUM(G48:G51)","v":0},{"$f":"SUM(H48:H51)","v":0},{"$f":"SUM(I48:I51)","v":0},{"$f":"SUM(J48:J51)","v":0},{"$f":"SUM(K48:K51)","v":0},{"$f":"SUM(L48:L51)","v":0},{"$f":"SUM(M48:M51)","v":0},{"$f":"SUM(N48:N51)","v":0},{"$f":"SUM(O48:O51)","v":0},0,0,0,0,0]
[null,"Transit Totals"]
[null,null,"Hours",{"$f":"SUM(D6+D14+D22+D30+D38+D46)","v":0},0,0,0,0,0,0,0,0,0,0,0,{"$f":"SUM(D54:F54)","v":0},{"$f":"SUM(G54:I54)","v":0},{"$f":"SUM(J54:L54)","v":0},{"$f":"SUM(M54:O54)","v":0},{"$f":"SUM(P54:S54)","v":0}]
[null,null,"Miles",{"$f":"SUM(D7+D15+D23+D31+D39+D47)","v":0},0,0,0,0,0,0,0,0,0,0,0,{"$f":"SUM(D55:F55)","v":0},{"$f":"SUM(G55:I55)","v":0},{"$f":"SUM(J55:L55)","v":0},{"$f":"SUM(M55:O55)","v":0},{"$f":"SUM(P55:S55)","v":0}]
[null,null,"Passenger Trips: Non-Contract",{"$f":"SUM(D8+D16+D24+D32+D40+D48)","v":0},0,0,0,0,0,0,0,0,0,0,0,0,0,0,0,0]
[null,null,"                                  Medicaid Contract",{"$f":"SUM(D9+D17+D25+D33+D41+D49)","v":0},0,0,0,0,0,0,0,0,0,0,0,0,0,0,0,0]
[null,null,"                                  Non-Medicaid Contract",{"$f":"SUM(D10+D18+D26+D34+D42+D50)","v":0},0,0,0,0,0,0,0,0,0,0,0,0,0,0,0,0]
[null,null,"                                  Brokered Medicaid Contract",{"$f":"SUM(D19+D11+D27+D35+D43+D51)","v":0},0,0,0,0,0,0,0,0,0,0,0,{"$f":"SUM(D59:F59)","v":0},{"$f":"SUM(G59:I59)","v":0},{"$f":"SUM(J59:L59)","v":0},{"$f":"SUM(M59:O59)","v":0},{"$f":"SUM(P59:S59)","v":0}]
[null,null,"Total Passenger Trips for All Modes",{"$f":"SUM(D56:D59)","v":0},{"$f":"SUM(E56:E59)","v":0},{"$f":"SUM(F56:F59)","v":0},{"$f":"SUM(G56:G59)","v":0},{"$f":"SUM(H56:H59)","v":0},{"$f":"SUM(I56:I59)","v":0},{"$f":"SUM(J56:J59)","v":0},{"$f":"SUM(K56:K59)","v":0},{"$f":"SUM(L56:L59)","v":0},{"$f":"SUM(M56:M59)","v":0},{"$f":"SUM(N56:N59)","v":0},{"$f":"SUM(O56:O59)","v":0},0,0,0,0,0]
[]
[null,null,null,"A","B","C","D","E","F","G","H","I","J","K","L"]

{"sheet":"Sunday","index":4,"n_rows":62,"n_cols":21,"rows_kept":62,"cut":false,"hidden":true,"merged":[[2,1,2,2]]}
[null,{"$f":"\"4. SUNDAY: \"&Overview!D4","v":"4. SUNDAY: "}]
[null,null,null,"A","B","C","D","E","F","G","H","I","J","K","L"]
[null,{"$f":"Overview!B2","v":"FY2024"},null,"July","August","September","October","November","December","January","February","March","April","May","June","Quarter 1","Quarter 2","Quarter 3","Quarter 4","YTD Totals"]
[{"$f":"Saturday!A51+1","v":102},null,"Operating Days",null,null,null,null,null,null,null,null,null,null,null,null,{"$f":"D4+E4+F4","v":0},{"$f":"G4+H4+I4","v":0},{"$f":"J4+K4+L4","v":0},{"$f":"M4+N4+O4","v":0},{"$f":"SUM(D4:O4)","v":0},{"$f":"Saturday!A51+1","v":102}]
[null,"Demand Response Directly Operated (DR DO)"]
[{"$f":"A4+1","v":103},null,"Hours",null,null,null,null,null,null,null,null,null,null,null,null,{"$f":"D6+E6+F6","v":0},{"$f":"G6+H6+I6","v":0},{"$f":"J6+K6+L6","v":0},{"$f":"M6+N6+O6","v":0},{"$f":"SUM(D6:O6)","v":0},{"$f":"U4+1","v":103}]
[{"$f":"A6+1","v":104},null,"Miles",null,null,null,null,null,null,null,null,null,null,null,null,0,0,0,0,{"$f":"SUM(D7:O7)","v":0},{"$f":"U6+1","v":104}]
[{"$f":"A7+1","v":105},null,"Passenger Trips: Non-Contract",null,null,null,null,null,null,null,null,null,null,null,null,0,0,0,0,{"$f":"SUM(D8:O8)","v":0},{"$f":"U7+1","v":105}]
[{"$f":"A8+1","v":106},null,"                               Medicaid Contract",null,null,null,null,null,null,null,null,null,null,null,null,0,0,0,0,{"$f":"SUM(D9:O9)","v":0},{"$f":"U8+1","v":106}]
[{"$f":"A9+1","v":107},null,"                               Non-Medicaid Contract",null,null,null,null,null,null,null,null,null,null,null,null,0,0,0,0,{"$f":"SUM(D10:O10)","v":0},{"$f":"U9+1","v":107}]
[{"$f":"A10+1","v":108},null,"                               Brokered Medicaid Contract",null,null,null,null,null,null,null,null,null,null,null,null,0,0,0,0,{"$f":"SUM(D11:O11)","v":0},{"$f":"U10+1","v":108}]
[null,null,"Total Passenger Trips for This Mode",{"$f":"SUM(D8:D11)","v":0},{"$f":"SUM(E8:E11)","v":0},0,0,0,0,0,0,0,0,0,0,0,0,0,0,{"$f":"SUM(T8:T10)","v":0}]
[null,"Demand Response Purchased (DR PT)"]
[{"$f":"A11+1","v":109},null,"Hours",null,null,null,null,null,null,null,null,null,null,null,null,{"$f":"D14+E14+F14","v":0},{"$f":"G14+H14+I14","v":0},{"$f":"J14+K14+L14","v":0},{"$f":"M14+N14+O14","v":0},{"$f":"SUM(D14:O14)","v":0},{"$f":"U11+1","v":109}]
[{"$f":"A14+1","v":110},null,"Miles",null,null,null,null,null,null,null,null,null,null,null,null,0,0,0,0,0,{"$f":"U14+1","v":110}]
[{"$f":"A15+1","v":111},null,"Passenger Trips: Non-Contract",null,null,null,null,null,null,null,null,null,null,null,null,0,0,0,0,0,{"$f":"U15+1","v":111}]
[{"$f":"A16+1","v":112},null,"                               Medicaid Contract",null,null,null,null,null,null,null,null,null,null,null,null,0,0,0,0,0,{"$f":"U16+1","v":112}]
[{"$f":"A17+1","v":113},null,"                               Non-Medicaid Contract",null,null,null,null,null,null,null,null,null,null,null,null,0,0,0,0,0,{"$f":"U17+1","v":113}]
[{"$f":"A18+1","v":114},null,"                               Brokered Medicaid Contract",null,null,null,null,null,null,null,null,null,null,null,null,0,0,0,0,0,{"$f":"U18+1","v":114}]
[null,null,"Total Passenger Trips for This Mode",{"$f":"SUM(D16:D19)","v":0},{"$f":"SUM(E16:E19)","v":0},{"$f":"SUM(F16:F19)","v":0},{"$f":"SUM(G16:G19)","v":0},{"$f":"SUM(H16:H19)","v":0},{"$f":"SUM(I16:I19)","v":0},{"$f":"SUM(J16:J19)","v":0},{"$f":"SUM(K16:K19)","v":0},{"$f":"SUM(L16:L19)","v":0},{"$f":"SUM(M16:M19)","v":0},{"$f":"SUM(N16:N19)","v":0},{"$f":"SUM(O16:O19)","v":0},0,0,0,0,0]
[null,"Fixed Route Directly Operated (MB DO)"]
[{"$f":"A19+1","v":115},null,"Hours",null,null,null,null,null,null,null,null,null,null,null,null,{"$f":"D22+E22+F22","v":0},{"$f":"G22+H22+I22","v":0},{"$f":"J22+K22+L22","v":0},{"$f":"M22+N22+O22","v":0},{"$f":"SUM(D22:O22)","v":0},{"$f":"U19+1","v":115}]
[{"$f":"A22+1","v":116},null,"Miles",null,null,null,null,null,null,null,null,null,null,null,null,0,0,0,0,0,{"$f":"U22+1","v":116}]
[{"$f":"A23+1","v":117},null,"Passenger Trips: Non-Contract",null,null,null,null,null,null,null,null,null,null,null,null,0,0,0,0,0,{"$f":"U23+1","v":117}]
[{"$f":"A24+1","v":118},null,"                               Medicaid Contract",null,null,null,null,null,null,null,null,null,null,null,null,0,0,0,0,0,{"$f":"U24+1","v":118}]
[{"$f":"A25+1","v":119},null,"                               Non-Medicaid Contract",null,null,null,null,null,null,null,null,null,null,null,null,0,0,0,0,0,{"$f":"U25+1","v":119}]
[{"$f":"A26+1","v":120},null,"                               Brokered Medicaid Contract",null,null,null,null,null,null,null,null,null,null,null,null,0,0,0,0,0,{"$f":"U26+1","v":120}]
[null,null,"Total Passenger Trips for This Mode",{"$f":"SUM(D24:D27)","v":0},{"$f":"SUM(E24:E27)","v":0},{"$f":"SUM(F24:F27)","v":0},{"$f":"SUM(G24:G27)","v":0},{"$f":"SUM(H24:H27)","v":0},{"$f":"SUM(I24:I27)","v":0},{"$f":"SUM(J24:J27)","v":0},{"$f":"SUM(K24:K27)","v":0},{"$f":"SUM(L24:L27)","v":0},{"$f":"SUM(M24:M27)","v":0},{"$f":"SUM(N24:N27)","v":0},{"$f":"SUM(O24:O27)","v":0},0,0,0,0,0]
[null,"Fixed Route Purchased (MB PT)"]
[{"$f":"A27+1","v":121},null,"Hours",null,null,null,null,null,null,null,null,null,null,null,null,{"$f":"D30+E30+F30","v":0},{"$f":"G30+H30+I30","v":0},{"$f":"J30+K30+L30","v":0},{"$f":"M30+N30+O30","v":0},{"$f":"SUM(D30:O30)","v":0},{"$f":"U27+1","v":121}]
[{"$f":"A30+1","v":122},null,"Miles",null,null,null,null,null,null,null,null,null,null,null,null,0,0,0,0,0,{"$f":"U30+1","v":122}]
[{"$f":"A31+1","v":123},null,"Passenger Trips: Non-Contract",null,null,null,null,null,null,null,null,null,null,null,null,0,0,0,0,0,{"$f":"U31+1","v":123}]
[{"$f":"A32+1","v":124},null,"                               Medicaid Contract",null,null,null,null,null,null,null,null,null,null,null,null,0,0,0,0,0,{"$f":"U32+1","v":124}]
[{"$f":"A33+1","v":125},null,"                               Non-Medicaid Contract",null,null,null,null,null,null,null,null,null,null,null,null,0,0,0,0,0,{"$f":"U33+1","v":125}]
[{"$f":"A34+1","v":126},null,"                               Brokered Medicaid Contract",null,null,null,null,null,null,null,null,null,null,null,null,0,0,0,0,0,{"$f":"U34+1","v":126}]
[null,null,"Total Passenger Trips- Other Providers",{"$f":"SUM(D32:D35)","v":0},{"$f":"SUM(E32:E35)","v":0},{"$f":"SUM(F32:F35)","v":0},{"$f":"SUM(G32:G35)","v":0},{"$f":"SUM(H32:H35)","v":0},{"$f":"SUM(I32:I35)","v":0},{"$f":"SUM(J32:J35)","v":0},{"$f":"SUM(K32:K35)","v":0},{"$f":"SUM(L32:L35)","v":0},{"$f":"SUM(M32:M35)","v":0},{"$f":"SUM(N32:N35)","v":0},{"$f":"SUM(O32:O35)","v":0},0,0,0,0,0]
[null,"Microtransit (MT DO)"]
[{"$f":"A34+1","v":126},null,"Hours",null,null,null,null,null,null,null,null,null,null,null,null,{"$f":"D38+E38+F38","v":0},{"$f":"G38+H38+I38","v":0},{"$f":"J38+K38+L38","v":0},{"$f":"M38+N38+O38","v":0},{"$f":"SUM(D38:O38)","v":0},{"$f":"U34+1","v":126}]
[{"$f":"A38+1","v":127},null,"Miles",null,null,null,null,null,null,null,null,null,null,null,null,0,0,0,0,0,{"$f":"U38+1","v":127}]
[{"$f":"A39+1","v":128},null,"Passenger Trips: Non-Contract",null,null,null,null,null,null,null,null,null,null,null,null,0,0,0,0,0,{"$f":"U39+1","v":128}]
[{"$f":"A40+1","v":129},null,"                               Medicaid Contract",null,null,null,null,null,null,null,null,null,null,null,null,0,0,0,0,0,{"$f":"U40+1","v":129}]
[{"$f":"A41+1","v":130},null,"                               Non-Medicaid Contract",null,null,null,null,null,null,null,null,null,null,null,null,0,0,0,0,0,{"$f":"U41+1","v":130}]
[{"$f":"A42+1","v":131},null,"                               Brokered Medicaid Contract",null,null,null,null,null,null,null,null,null,null,null,null,0,0,0,0,0]
[null,null,"Total Passenger Trips- Other Providers",{"$f":"SUM(D40:D43)","v":0},{"$f":"SUM(E40:E43)","v":0},{"$f":"SUM(F40:F43)","v":0},{"$f":"SUM(G40:G43)","v":0},{"$f":"SUM(H40:H43)","v":0},{"$f":"SUM(I40:I43)","v":0},{"$f":"SUM(J40:J43)","v":0},{"$f":"SUM(K40:K43)","v":0},{"$f":"SUM(L40:L43)","v":0},{"$f":"SUM(M40:M43)","v":0},{"$f":"SUM(N40:N43)","v":0},{"$f":"SUM(O40:O43)","v":0},0,0,0,0,0]
[null,"Microtransit (MT PT)"]
[{"$f":"A42+1","v":131},null,"Hours",null,null,null,null,null,null,null,null,null,null,null,null,{"$f":"D46+E46+F46","v":0},{"$f":"G46+H46+I46","v":0},{"$f":"J46+K46+L46","v":0},{"$f":"M46+N46+O46","v":0},{"$f":"SUM(D46:O46)","v":0},{"$f":"U42+1","v":131}]
[{"$f":"A46+1","v":132},null,"Miles",null,null,null,null,null,null,null,null,null,null,null,null,0,0,0,0,0,{"$f":"U46+1","v":132}]
[{"$f":"A47+1","v":133},null,"Passenger Trips: Non-Contract",null,null,null,null,null,null,null,null,null,null,null,null,0,0,0,0,0,{"$f":"U47+1","v":133}]
[{"$f":"A48+1","v":134},null,"                               Medicaid Contract",null,null,null,null,null,null,null,null,null,null,null,null,0,0,0,0,0,{"$f":"U48+1","v":134}]
[{"$f":"A49+1","v":135},null,"                               Non-Medicaid Contract",null,null,null,null,null,null,null,null,null,null,null,null,0,0,0,0,0,{"$f":"U49+1","v":135}]
[null,null,"                               Brokered Medicaid Contract",null,null,null,null,null,null,null,null,null,null,null,null,0,0,0,0,0]
[null,null,"Total Passenger Trips- Other Providers",{"$f":"SUM(D48:D51)","v":0},{"$f":"SUM(E48:E51)","v":0},{"$f":"SUM(F48:F51)","v":0},{"$f":"SUM(G48:G51)","v":0},{"$f":"SUM(H48:H51)","v":0},{"$f":"SUM(I48:I51)","v":0},{"$f":"SUM(J48:J51)","v":0},{"$f":"SUM(K48:K51)","v":0},{"$f":"SUM(L48:L51)","v":0},{"$f":"SUM(M48:M51)","v":0},{"$f":"SUM(N48:N51)","v":0},{"$f":"SUM(O48:O51)","v":0},0,0,0,0,0]
[null,"Transit Totals"]
[null,null,"Hours",{"$f":"SUM(D6+D14+D22+D30+D38+D46)","v":0},0,0,0,0,0,0,0,0,0,0,0,{"$f":"SUM(D54:F54)","v":0},{"$f":"SUM(G54:I54)","v":0},{"$f":"SUM(J54:L54)","v":0},{"$f":"SUM(M54:O54)","v":0},{"$f":"SUM(P54:S54)","v":0}]
[null,null,"Miles",{"$f":"SUM(D7+D15+D23+D31+D39+D47)","v":0},0,0,0,0,0,0,0,0,0,0,0,{"$f":"SUM(D55:F55)","v":0},{"$f":"SUM(G55:I55)","v":0},{"$f":"SUM(J55:L55)","v":0},{"$f":"SUM(M55:O55)","v":0},{"$f":"SUM(P55:S55)","v":0}]
[null,null,"Passenger Trips: Non-Contract",{"$f":"SUM(D8+D16+D24+D32+D40+D48)","v":0},0,0,0,0,0,0,0,0,0,0,0,0,0,0,0,0]
[null,null,"                                  Medicaid Contract",{"$f":"SUM(D9+D17+D25+D33+D41+D49)","v":0},0,0,0,0,0,0,0,0,0,0,0,0,0,0,0,0]
[null,null,"                                  Non-Medicaid Contract",{"$f":"SUM(D10+D18+D26+D34+D42+D50)","v":0},0,0,0,0,0,0,0,0,0,0,0,0,0,0,0,0]
[null,null,"                                  Brokered Medicaid Contract",{"$f":"SUM(D11+D19+D27+D35+D43+D51)","v":0},0,0,0,0,0,0,0,0,0,0,0,{"$f":"SUM(D59:F59)","v":0},{"$f":"SUM(G59:I59)","v":0},{"$f":"SUM(J59:L59)","v":0},{"$f":"SUM(M59:O59)","v":0},{"$f":"SUM(P59:S59)","v":0}]
[null,null,"Total Passenger Trips for All Modes",{"$f":"SUM(D56:D59)","v":0},{"$f":"SUM(E56:E59)","v":0},{"$f":"SUM(F56:F59)","v":0},{"$f":"SUM(G56:G59)","v":0},{"$f":"SUM(H56:H59)","v":0},{"$f":"SUM(I56:I59)","v":0},{"$f":"SUM(J56:J59)","v":0},{"$f":"SUM(K56:K59)","v":0},{"$f":"SUM(L56:L59)","v":0},{"$f":"SUM(M56:M59)","v":0},{"$f":"SUM(N56:N59)","v":0},{"$f":"SUM(O56:O59)","v":0},0,0,0,0,0]
[]
[null,null,null,"A","B","C","D","E","F","G","H","I","J","K","L"]

{"sheet":"Weekly Totals","index":5,"n_rows":60,"n_cols":21,"rows_kept":60,"cut":false,"hidden":true,"merged":[]}
[null,{"$f":"\"WEEKLY TOTALS: \"&Overview!D4","v":"WEEKLY TOTALS: "}]
[null,"NO DATA ENTRY ON THIS FORM"]
[null,{"$f":"Overview!B2","v":"FY2024"},null,"July","August","September","October","November","December","January","February","March","April","May","June","Quarter 1","Quarter 2","Quarter 3","Quarter 4","YTD Totals"]
[null,null,"Operating Days",{"$f":"Weekday!D4+Saturday!D4+Sunday!D4","v":0},{"$f":"Weekday!E4+Saturday!E4+Sunday!E4","v":0},{"$f":"Weekday!F4+Saturday!F4+Sunday!F4","v":0},{"$f":"Weekday!G4+Saturday!G4+Sunday!G4","v":0},{"$f":"Weekday!H4+Saturday!H4+Sunday!H4","v":0},{"$f":"Weekday!I4+Saturday!I4+Sunday!I4","v":0},{"$f":"Weekday!J4+Saturday!J4+Sunday!J4","v":0},{"$f":"Weekday!K4+Saturday!K4+Sunday!K4","v":0},{"$f":"Weekday!L4+Saturday!L4+Sunday!L4","v":0},{"$f":"Weekday!M4+Saturday!M4+Sunday!M4","v":0},{"$f":"Weekday!N4+Saturday!N4+Sunday!N4","v":0},{"$f":"Weekday!O4+Saturday!O4+Sunday!O4","v":0},{"$f":"D4+E4+F4","v":0},{"$f":"G4+H4+I4","v":0},{"$f":"J4+K4+L4","v":0},{"$f":"M4+N4+O4","v":0},{"$f":"SUM(D4:O4)","v":0}]
[null,"Demand Response Directly Operated (DR DO)"]
[null,null,"Hours",{"$f":"Weekday!D6+Saturday!D6+Sunday!D6","v":0},{"$f":"Weekday!E6+Saturday!E6+Sunday!E6","v":0},{"$f":"Weekday!F6+Saturday!F6+Sunday!F6","v":0},{"$f":"Weekday!G6+Saturday!G6+Sunday!G6","v":0},{"$f":"Weekday!H6+Saturday!H6+Sunday!H6","v":0},{"$f":"Weekday!I6+Saturday!I6+Sunday!I6","v":0},{"$f":"Weekday!J6+Saturday!J6+Sunday!J6","v":0},{"$f":"Weekday!K6+Saturday!K6+Sunday!K6","v":0},{"$f":"Weekday!L6+Saturday!L6+Sunday!L6","v":0},{"$f":"Weekday!M6+Saturday!M6+Sunday!M6","v":0},{"$f":"Weekday!N6+Saturday!N6+Sunday!N6","v":0},{"$f":"Weekday!O6+Saturday!O6+Sunday!O6","v":0},{"$f":"D6+E6+F6","v":0},{"$f":"G6+H6+I6","v":0},{"$f":"J6+K6+L6","v":0},{"$f":"M6+N6+O6","v":0},{"$f":"SUM(D6:O6)","v":0}]
[null,null,"Miles",{"$f":"Weekday!D7+Saturday!D7+Sunday!D7","v":0},{"$f":"Weekday!E7+Saturday!E7+Sunday!E7","v":0},{"$f":"Weekday!F7+Saturday!F7+Sunday!F7","v":0},{"$f":"Weekday!G7+Saturday!G7+Sunday!G7","v":0},{"$f":"Weekday!H7+Saturday!H7+Sunday!H7","v":0},{"$f":"Weekday!I7+Saturday!I7+Sunday!I7","v":0},{"$f":"Weekday!J7+Saturday!J7+Sunday!J7","v":0},{"$f":"Weekday!K7+Saturday!K7+Sunday!K7","v":0},{"$f":"Weekday!L7+Saturday!L7+Sunday!L7","v":0},{"$f":"Weekday!M7+Saturday!M7+Sunday!M7","v":0},{"$f":"Weekday!N7+Saturday!N7+Sunday!N7","v":0},{"$f":"Weekday!O7+Saturday!O7+Sunday!O7","v":0},0,0,0,0,0]
[null,null,"Passenger Trips: Non-Contract",{"$f":"Weekday!D8+Saturday!D8+Sunday!D8","v":0},{"$f":"Weekday!E8+Saturday!E8+Sunday!E8","v":0},{"$f":"Weekday!F8+Saturday!F8+Sunday!F8","v":0},{"$f":"Weekday!G8+Saturday!G8+Sunday!G8","v":0},{"$f":"Weekday!H8+Saturday!H8+Sunday!H8","v":0},{"$f":"Weekday!I8+Saturday!I8+Sunday!I8","v":0},{"$f":"Weekday!J8+Saturday!J8+Sunday!J8","v":0},{"$f":"Weekday!K8+Saturday!K8+Sunday!K8","v":0},{"$f":"Weekday!L8+Saturday!L8+Sunday!L8","v":0},{"$f":"Weekday!M8+Saturday!M8+Sunday!M8","v":0},{"$f":"Weekday!N8+Saturday!N8+Sunday!N8","v":0},{"$f":"Weekday!O8+Saturday!O8+Sunday!O8","v":0},0,0,0,0,0]
[null,null,"                               Medicaid Contract",{"$f":"Weekday!D9+Saturday!D9+Sunday!D9","v":0},{"$f":"Weekday!E9+Saturday!E9+Sunday!E9","v":0},{"$f":"Weekday!F9+Saturday!F9+Sunday!F9","v":0},{"$f":"Weekday!G9+Saturday!G9+Sunday!G9","v":0},{"$f":"Weekday!H9+Saturday!H9+Sunday!H9","v":0},{"$f":"Weekday!I9+Saturday!I9+Sunday!I9","v":0},{"$f":"Weekday!J9+Saturday!J9+Sunday!J9","v":0},{"$f":"Weekday!K9+Saturday!K9+Sunday!K9","v":0},{"$f":"Weekday!L9+Saturday!L9+Sunday!L9","v":0},{"$f":"Weekday!M9+Saturday!M9+Sunday!M9","v":0},{"$f":"Weekday!N9+Saturday!N9+Sunday!N9","v":0},{"$f":"Weekday!O9+Saturday!O9+Sunday!O9","v":0},0,0,0,0,0]
[null,null,"                               Non-Medicaid Contract",{"$f":"Weekday!D10+Saturday!D10+Sunday!D10","v":0},{"$f":"Weekday!E10+Saturday!E10+Sunday!E10","v":0},{"$f":"Weekday!F10+Saturday!F10+Sunday!F10","v":0},{"$f":"Weekday!G10+Saturday!G10+Sunday!G10","v":0},{"$f":"Weekday!H10+Saturday!H10+Sunday!H10","v":0},{"$f":"Weekday!I10+Saturday!I10+Sunday!I10","v":0},{"$f":"Weekday!J10+Saturday!J10+Sunday!J10","v":0},{"$f":"Weekday!K10+Saturday!K10+Sunday!K10","v":0},{"$f":"Weekday!L10+Saturday!L10+Sunday!L10","v":0},{"$f":"Weekday!M10+Saturday!M10+Sunday!M10","v":0},{"$f":"Weekday!N10+Saturday!N10+Sunday!N10","v":0},{"$f":"Weekday!O10+Saturday!O10+Sunday!O10","v":0},0,0,0,0,0]
[null,null,"                               Brokered Medicaid Contract",{"$f":"Weekday!D11+Saturday!D11+Sunday!D11","v":0},{"$f":"Weekday!E11+Saturday!E11+Sunday!E11","v":0},{"$f":"Weekday!F11+Saturday!F11+Sunday!F11","v":0},{"$f":"Weekday!G11+Saturday!G11+Sunday!G11","v":0},{"$f":"Weekday!H11+Saturday!H11+Sunday!H11","v":0},{"$f":"Weekday!I11+Saturday!I11+Sunday!I11","v":0},{"$f":"Weekday!J11+Saturday!J11+Sunday!J11","v":0},{"$f":"Weekday!K11+Saturday!K11+Sunday!K11","v":0},{"$f":"Weekday!L11+Saturday!L11+Sunday!L11","v":0},{"$f":"Weekday!M11+Saturday!M11+Sunday!M11","v":0},{"$f":"Weekday!N11+Saturday!N11+Sunday!N11","v":0},{"$f":"Weekday!O11+Saturday!O11+Sunday!O11","v":0},{"$f":"D11+E11+F11","v":0},{"$f":"G11+H11+I11","v":0},{"$f":"J11+K11+L11","v":0},{"$f":"M11+N11+O11","v":0},{"$f":"SUM(D11:O11)","v":0}]
[null,null,"Total Passenger Trips for This Mode",{"$f":"SUM(D8:D11)","v":0},{"$f":"SUM(E8:E11)","v":0},0,0,0,0,0,0,0,0,0,0,0,0,0,0,0]
[null,"Demand Response Purchased (DR PT)"]
[null,null,"Hours",{"$f":"Weekday!D14+Saturday!D14+Sunday!D14","v":0},{"$f":"Weekday!E14+Saturday!E14+Sunday!E14","v":0},{"$f":"Weekday!F14+Saturday!F14+Sunday!F14","v":0},{"$f":"Weekday!G14+Saturday!G14+Sunday!G14","v":0},{"$f":"Weekday!H14+Saturday!H14+Sunday!H14","v":0},{"$f":"Weekday!I14+Saturday!I14+Sunday!I14","v":0},{"$f":"Weekday!J14+Saturday!J14+Sunday!J14","v":0},{"$f":"Weekday!K14+Saturday!K14+Sunday!K14","v":0},{"$f":"Weekday!L14+Saturday!L14+Sunday!L14","v":0},{"$f":"Weekday!M14+Saturday!M14+Sunday!M14","v":0},{"$f":"Weekday!N14+Saturday!N14+Sunday!N14","v":0},{"$f":"Weekday!O14+Saturday!O14+Sunday!O14","v":0},{"$f":"D14+E14+F14","v":0},{"$f":"G14+H14+I14","v":0},{"$f":"J14+K14+L14","v":0},{"$f":"M14+N14+O14","v":0},{"$f":"SUM(D14:O14)","v":0}]
[null,null,"Miles",{"$f":"Weekday!D15+Saturday!D15+Sunday!D15","v":0},{"$f":"Weekday!E15+Saturday!E15+Sunday!E15","v":0},{"$f":"Weekday!F15+Saturday!F15+Sunday!F15","v":0},{"$f":"Weekday!G15+Saturday!G15+Sunday!G15","v":0},{"$f":"Weekday!H15+Saturday!H15+Sunday!H15","v":0},{"$f":"Weekday!I15+Saturday!I15+Sunday!I15","v":0},{"$f":"Weekday!J15+Saturday!J15+Sunday!J15","v":0},{"$f":"Weekday!K15+Saturday!K15+Sunday!K15","v":0},{"$f":"Weekday!L15+Saturday!L15+Sunday!L15","v":0},{"$f":"Weekday!M15+Saturday!M15+Sunday!M15","v":0},{"$f":"Weekday!N15+Saturday!N15+Sunday!N15","v":0},{"$f":"Weekday!O15+Saturday!O15+Sunday!O15","v":0},0,0,0,0,0]
[null,null,"Passenger Trips: Non-Contract",{"$f":"Weekday!D16+Saturday!D16+Sunday!D16","v":0},{"$f":"Weekday!E16+Saturday!E16+Sunday!E16","v":0},{"$f":"Weekday!F16+Saturday!F16+Sunday!F16","v":0},{"$f":"Weekday!G16+Saturday!G16+Sunday!G16","v":0},{"$f":"Weekday!H16+Saturday!H16+Sunday!H16","v":0},{"$f":"Weekday!I16+Saturday!I16+Sunday!I16","v":0},{"$f":"Weekday!J16+Saturday!J16+Sunday!J16","v":0},{"$f":"Weekday!K16+Saturday!K16+Sunday!K16","v":0},{"$f":"Weekday!L16+Saturday!L16+Sunday!L16","v":0},{"$f":"Weekday!M16+Saturday!M16+Sunday!M16","v":0},{"$f":"Weekday!N16+Saturday!N16+Sunday!N16","v":0},{"$f":"Weekday!O16+Saturday!O16+Sunday!O16","v":0},0,0,0,0,0]
[null,null,"                               Medicaid Contract",{"$f":"Weekday!D17+Saturday!D17+Sunday!D17","v":0},{"$f":"Weekday!E17+Saturday!E17+Sunday!E17","v":0},{"$f":"Weekday!F17+Saturday!F17+Sunday!F17","v":0},{"$f":"Weekday!G17+Saturday!G17+Sunday!G17","v":0},{"$f":"Weekday!H17+Saturday!H17+Sunday!H17","v":0},{"$f":"Weekday!I17+Saturday!I17+Sunday!I17","v":0},{"$f":"Weekday!J17+Saturday!J17+Sunday!J17","v":0},{"$f":"Weekday!K17+Saturday!K17+Sunday!K17","v":0},{"$f":"Weekday!L17+Saturday!L17+Sunday!L17","v":0},{"$f":"Weekday!M17+Saturday!M17+Sunday!M17","v":0},{"$f":"Weekday!N17+Saturday!N17+Sunday!N17","v":0},{"$f":"Weekday!O17+Saturday!O17+Sunday!O17","v":0},0,0,0,0,0]
[null,null,"                               Non-Medicaid Contract",{"$f":"Weekday!D18+Saturday!D18+Sunday!D18","v":0},{"$f":"Weekday!E18+Saturday!E18+Sunday!E18","v":0},{"$f":"Weekday!F18+Saturday!F18+Sunday!F18","v":0},{"$f":"Weekday!G18+Saturday!G18+Sunday!G18","v":0},{"$f":"Weekday!H18+Saturday!H18+Sunday!H18","v":0},{"$f":"Weekday!I18+Saturday!I18+Sunday!I18","v":0},{"$f":"Weekday!J18+Saturday!J18+Sunday!J18","v":0},{"$f":"Weekday!K18+Saturday!K18+Sunday!K18","v":0},{"$f":"Weekday!L18+Saturday!L18+Sunday!L18","v":0},{"$f":"Weekday!M18+Saturday!M18+Sunday!M18","v":0},{"$f":"Weekday!N18+Saturday!N18+Sunday!N18","v":0},{"$f":"Weekday!O18+Saturday!O18+Sunday!O18","v":0},0,0,0,0,0]
[null,null,"                               Brokered Medicaid Contract",{"$f":"Weekday!D19+Saturday!D19+Sunday!D19","v":0},{"$f":"Weekday!E19+Saturday!E19+Sunday!E19","v":0},{"$f":"Weekday!F19+Saturday!F19+Sunday!F19","v":0},{"$f":"Weekday!G19+Saturday!G19+Sunday!G19","v":0},{"$f":"Weekday!H19+Saturday!H19+Sunday!H19","v":0},{"$f":"Weekday!I19+Saturday!I19+Sunday!I19","v":0},{"$f":"Weekday!J19+Saturday!J19+Sunday!J19","v":0},{"$f":"Weekday!K19+Saturday!K19+Sunday!K19","v":0},{"$f":"Weekday!L19+Saturday!L19+Sunday!L19","v":0},{"$f":"Weekday!M19+Saturday!M19+Sunday!M19","v":0},{"$f":"Weekday!N19+Saturday!N19+Sunday!N19","v":0},{"$f":"Weekday!O19+Saturday!O19+Sunday!O19","v":0},0,0,0,0,0]
[null,null,"Total Passenger Trips for This Mode",{"$f":"SUM(D16:D19)","v":0},{"$f":"SUM(E16:E19)","v":0},{"$f":"SUM(F16:F19)","v":0},{"$f":"SUM(G16:G19)","v":0},{"$f":"SUM(H16:H19)","v":0},{"$f":"SUM(I16:I19)","v":0},{"$f":"SUM(J16:J19)","v":0},{"$f":"SUM(K16:K19)","v":0},{"$f":"SUM(L16:L19)","v":0},{"$f":"SUM(M16:M19)","v":0},{"$f":"SUM(N16:N19)","v":0},{"$f":"SUM(O16:O19)","v":0},0,0,0,0,0]
[null,"Fixed Route Directly Operated (MB DO)"]
[null,null,"Hours",{"$f":"Weekday!D22+Saturday!D22+Sunday!D22","v":0},{"$f":"Weekday!E22+Saturday!E22+Sunday!E22","v":0},{"$f":"Weekday!F22+Saturday!F22+Sunday!F22","v":0},{"$f":"Weekday!G22+Saturday!G22+Sunday!G22","v":0},{"$f":"Weekday!H22+Saturday!H22+Sunday!H22","v":0},{"$f":"Weekday!I22+Saturday!I22+Sunday!I22","v":0},{"$f":"Weekday!J22+Saturday!J22+Sunday!J22","v":0},{"$f":"Weekday!K22+Saturday!K22+Sunday!K22","v":0},{"$f":"Weekday!L22+Saturday!L22+Sunday!L22","v":0},{"$f":"Weekday!M22+Saturday!M22+Sunday!M22","v":0},{"$f":"Weekday!N22+Saturday!N22+Sunday!N22","v":0},{"$f":"Weekday!O22+Saturday!O22+Sunday!O22","v":0},{"$f":"D22+E22+F22","v":0},{"$f":"G22+H22+I22","v":0},{"$f":"J22+K22+L22","v":0},{"$f":"M22+N22+O22","v":0},{"$f":"SUM(D22:O22)","v":0}]
[null,null,"Miles",{"$f":"Weekday!D23+Saturday!D23+Sunday!D23","v":0},{"$f":"Weekday!E23+Saturday!E23+Sunday!E23","v":0},{"$f":"Weekday!F23+Saturday!F23+Sunday!F23","v":0},{"$f":"Weekday!G23+Saturday!G23+Sunday!G23","v":0},{"$f":"Weekday!H23+Saturday!H23+Sunday!H23","v":0},{"$f":"Weekday!I23+Saturday!I23+Sunday!I23","v":0},{"$f":"Weekday!J23+Saturday!J23+Sunday!J23","v":0},{"$f":"Weekday!K23+Saturday!K23+Sunday!K23","v":0},{"$f":"Weekday!L23+Saturday!L23+Sunday!L23","v":0},{"$f":"Weekday!M23+Saturday!M23+Sunday!M23","v":0},{"$f":"Weekday!N23+Saturday!N23+Sunday!N23","v":0},{"$f":"Weekday!O23+Saturday!O23+Sunday!O23","v":0},0,0,0,0,0]
[null,null,"Passenger Trips: Non-Contract",{"$f":"Weekday!D24+Saturday!D24+Sunday!D24","v":0},{"$f":"Weekday!E24+Saturday!E24+Sunday!E24","v":0},{"$f":"Weekday!F24+Saturday!F24+Sunday!F24","v":0},{"$f":"Weekday!G24+Saturday!G24+Sunday!G24","v":0},{"$f":"Weekday!H24+Saturday!H24+Sunday!H24","v":0},{"$f":"Weekday!I24+Saturday!I24+Sunday!I24","v":0},{"$f":"Weekday!J24+Saturday!J24+Sunday!J24","v":0},{"$f":"Weekday!K24+Saturday!K24+Sunday!K24","v":0},{"$f":"Weekday!L24+Saturday!L24+Sunday!L24","v":0},{"$f":"Weekday!M24+Saturday!M24+Sunday!M24","v":0},{"$f":"Weekday!N24+Saturday!N24+Sunday!N24","v":0},{"$f":"Weekday!O24+Saturday!O24+Sunday!O24","v":0},0,0,0,0,0]
[null,null,"                               Medicaid Contract",{"$f":"Weekday!D25+Saturday!D25+Sunday!D25","v":0},{"$f":"Weekday!E25+Saturday!E25+Sunday!E25","v":0},{"$f":"Weekday!F25+Saturday!F25+Sunday!F25","v":0},{"$f":"Weekday!G25+Saturday!G25+Sunday!G25","v":0},{"$f":"Weekday!H25+Saturday!H25+Sunday!H25","v":0},{"$f":"Weekday!I25+Saturday!I25+Sunday!I25","v":0},{"$f":"Weekday!J25+Saturday!J25+Sunday!J25","v":0},{"$f":"Weekday!K25+Saturday!K25+Sunday!K25","v":0},{"$f":"Weekday!L25+Saturday!L25+Sunday!L25","v":0},{"$f":"Weekday!M25+Saturday!M25+Sunday!M25","v":0},{"$f":"Weekday!N25+Saturday!N25+Sunday!N25","v":0},{"$f":"Weekday!O25+Saturday!O25+Sunday!O25","v":0},0,0,0,0,0]
[null,null,"                               Non-Medicaid Contract",{"$f":"Weekday!D26+Saturday!D26+Sunday!D26","v":0},{"$f":"Weekday!E26+Saturday!E26+Sunday!E26","v":0},{"$f":"Weekday!F26+Saturday!F26+Sunday!F26","v":0},{"$f":"Weekday!G26+Saturday!G26+Sunday!G26","v":0},{"$f":"Weekday!H26+Saturday!H26+Sunday!H26","v":0},{"$f":"Weekday!I26+Saturday!I26+Sunday!I26","v":0},{"$f":"Weekday!J26+Saturday!J26+Sunday!J26","v":0},{"$f":"Weekday!K26+Saturday!K26+Sunday!K26","v":0},{"$f":"Weekday!L26+Saturday!L26+Sunday!L26","v":0},{"$f":"Weekday!M26+Saturday!M26+Sunday!M26","v":0},{"$f":"Weekday!N26+Saturday!N26+Sunday!N26","v":0},{"$f":"Weekday!O26+Saturday!O26+Sunday!O26","v":0},0,0,0,0,0]
[null,null,"                               Brokered Medicaid Contract",{"$f":"Weekday!D27+Saturday!D27+Sunday!D27","v":0},{"$f":"Weekday!E27+Saturday!E27+Sunday!E27","v":0},{"$f":"Weekday!F27+Saturday!F27+Sunday!F27","v":0},{"$f":"Weekday!G27+Saturday!G27+Sunday!G27","v":0},{"$f":"Weekday!H27+Saturday!H27+Sunday!H27","v":0},{"$f":"Weekday!I27+Saturday!I27+Sunday!I27","v":0},{"$f":"Weekday!J27+Saturday!J27+Sunday!J27","v":0},{"$f":"Weekday!K27+Saturday!K27+Sunday!K27","v":0},{"$f":"Weekday!L27+Saturday!L27+Sunday!L27","v":0},{"$f":"Weekday!M27+Saturday!M27+Sunday!M27","v":0},{"$f":"Weekday!N27+Saturday!N27+Sunday!N27","v":0},{"$f":"Weekday!O27+Saturday!O27+Sunday!O27","v":0},0,0,0,0,0]
[null,null,"Total Passenger Trips for This Mode",{"$f":"SUM(D24:D27)","v":0},{"$f":"SUM(E24:E27)","v":0},{"$f":"SUM(F24:F27)","v":0},{"$f":"SUM(G24:G27)","v":0},{"$f":"SUM(H24:H27)","v":0},{"$f":"SUM(I24:I27)","v":0},{"$f":"SUM(J24:J27)","v":0},{"$f":"SUM(K24:K27)","v":0},{"$f":"SUM(L24:L27)","v":0},{"$f":"SUM(M24:M27)","v":0},{"$f":"SUM(N24:N27)","v":0},{"$f":"SUM(O24:O27)","v":0},0,0,0,0,0]
[null,"Fixed Route Purchased (MB PT)"]
[null,null,"Hours",{"$f":"Weekday!D30+Saturday!D30+Sunday!D30","v":0},{"$f":"Weekday!E30+Saturday!E30+Sunday!E30","v":0},{"$f":"Weekday!F30+Saturday!F30+Sunday!F30","v":0},{"$f":"Weekday!G30+Saturday!G30+Sunday!G30","v":0},{"$f":"Weekday!H30+Saturday!H30+Sunday!H30","v":0},{"$f":"Weekday!I30+Saturday!I30+Sunday!I30","v":0},{"$f":"Weekday!J30+Saturday!J30+Sunday!J30","v":0},{"$f":"Weekday!K30+Saturday!K30+Sunday!K30","v":0},{"$f":"Weekday!L30+Saturday!L30+Sunday!L30","v":0},{"$f":"Weekday!M30+Saturday!M30+Sunday!M30","v":0},{"$f":"Weekday!N30+Saturday!N30+Sunday!N30","v":0},{"$f":"Weekday!O30+Saturday!O30+Sunday!O30","v":0},{"$f":"D30+E30+F30","v":0},{"$f":"G30+H30+I30","v":0},{"$f":"J30+K30+L30","v":0},{"$f":"M30+N30+O30","v":0},{"$f":"SUM(D30:O30)","v":0}]
[null,null,"Miles",{"$f":"Weekday!D31+Saturday!D31+Sunday!D31","v":0},{"$f":"Weekday!E31+Saturday!E31+Sunday!E31","v":0},{"$f":"Weekday!F31+Saturday!F31+Sunday!F31","v":0},{"$f":"Weekday!G31+Saturday!G31+Sunday!G31","v":0},{"$f":"Weekday!H31+Saturday!H31+Sunday!H31","v":0},{"$f":"Weekday!I31+Saturday!I31+Sunday!I31","v":0},{"$f":"Weekday!J31+Saturday!J31+Sunday!J31","v":0},{"$f":"Weekday!K31+Saturday!K31+Sunday!K31","v":0},{"$f":"Weekday!L31+Saturday!L31+Sunday!L31","v":0},{"$f":"Weekday!M31+Saturday!M31+Sunday!M31","v":0},{"$f":"Weekday!N31+Saturday!N31+Sunday!N31","v":0},{"$f":"Weekday!O31+Saturday!O31+Sunday!O31","v":0},0,0,0,0,0]
[null,null,"Passenger Trips: Non-Contract",{"$f":"Weekday!D32+Saturday!D32+Sunday!D32","v":0},{"$f":"Weekday!E32+Saturday!E32+Sunday!E32","v":0},{"$f":"Weekday!F32+Saturday!F32+Sunday!F32","v":0},{"$f":"Weekday!G32+Saturday!G32+Sunday!G32","v":0},{"$f":"Weekday!H32+Saturday!H32+Sunday!H32","v":0},{"$f":"Weekday!I32+Saturday!I32+Sunday!I32","v":0},{"$f":"Weekday!J32+Saturday!J32+Sunday!J32","v":0},{"$f":"Weekday!K32+Saturday!K32+Sunday!K32","v":0},{"$f":"Weekday!L32+Saturday!L32+Sunday!L32","v":0},{"$f":"Weekday!M32+Saturday!M32+Sunday!M32","v":0},{"$f":"Weekday!N32+Saturday!N32+Sunday!N32","v":0},{"$f":"Weekday!O32+Saturday!O32+Sunday!O32","v":0},0,0,0,0,0]
[null,null,"                               Medicaid Contract",{"$f":"Weekday!D33+Saturday!D33+Sunday!D33","v":0},{"$f":"Weekday!E33+Saturday!E33+Sunday!E33","v":0},{"$f":"Weekday!F33+Saturday!F33+Sunday!F33","v":0},{"$f":"Weekday!G33+Saturday!G33+Sunday!G33","v":0},{"$f":"Weekday!H33+Saturday!H33+Sunday!H33","v":0},{"$f":"Weekday!I33+Saturday!I33+Sunday!I33","v":0},{"$f":"Weekday!J33+Saturday!J33+Sunday!J33","v":0},{"$f":"Weekday!K33+Saturday!K33+Sunday!K33","v":0},{"$f":"Weekday!L33+Saturday!L33+Sunday!L33","v":0},{"$f":"Weekday!M33+Saturday!M33+Sunday!M33","v":0},{"$f":"Weekday!N33+Saturday!N33+Sunday!N33","v":0},{"$f":"Weekday!O33+Saturday!O33+Sunday!O33","v":0},0,0,0,0,0]
[null,null,"                               Non-Medicaid Contract",{"$f":"Weekday!D34+Saturday!D34+Sunday!D34","v":0},{"$f":"Weekday!E34+Saturday!E34+Sunday!E34","v":0},{"$f":"Weekday!F34+Saturday!F34+Sunday!F34","v":0},{"$f":"Weekday!G34+Saturday!G34+Sunday!G34","v":0},{"$f":"Weekday!H34+Saturday!H34+Sunday!H34","v":0},{"$f":"Weekday!I34+Saturday!I34+Sunday!I34","v":0},{"$f":"Weekday!J34+Saturday!J34+Sunday!J34","v":0},{"$f":"Weekday!K34+Saturday!K34+Sunday!K34","v":0},{"$f":"Weekday!L34+Saturday!L34+Sunday!L34","v":0},{"$f":"Weekday!M34+Saturday!M34+Sunday!M34","v":0},{"$f":"Weekday!N34+Saturday!N34+Sunday!N34","v":0},{"$f":"Weekday!O34+Saturday!O34+Sunday!O34","v":0},0,0,0,0,0]
[null,null,"                               Brokered Medicaid Contract",{"$f":"Weekday!D35+Saturday!D35+Sunday!D35","v":0},{"$f":"Weekday!E35+Saturday!E35+Sunday!E35","v":0},{"$f":"Weekday!F35+Saturday!F35+Sunday!F35","v":0},{"$f":"Weekday!G35+Saturday!G35+Sunday!G35","v":0},{"$f":"Weekday!H35+Saturday!H35+Sunday!H35","v":0},{"$f":"Weekday!I35+Saturday!I35+Sunday!I35","v":0},{"$f":"Weekday!J35+Saturday!J35+Sunday!J35","v":0},{"$f":"Weekday!K35+Saturday!K35+Sunday!K35","v":0},{"$f":"Weekday!L35+Saturday!L35+Sunday!L35","v":0},{"$f":"Weekday!M35+Saturday!M35+Sunday!M35","v":0},{"$f":"Weekday!N35+Saturday!N35+Sunday!N35","v":0},{"$f":"Weekday!O35+Saturday!O35+Sunday!O35","v":0},0,0,0,0,0]
[null,null,"Total Passenger Trips for This Mode",{"$f":"SUM(D32:D35)","v":0},{"$f":"SUM(E32:E35)","v":0},{"$f":"SUM(F32:F35)","v":0},{"$f":"SUM(G32:G35)","v":0},{"$f":"SUM(H32:H35)","v":0},{"$f":"SUM(I32:I35)","v":0},{"$f":"SUM(J32:J35)","v":0},{"$f":"SUM(K32:K35)","v":0},{"$f":"SUM(L32:L35)","v":0},{"$f":"SUM(M32:M35)","v":0},{"$f":"SUM(N32:N35)","v":0},{"$f":"SUM(O32:O35)","v":0},0,0,0,0,0]
[null,"Microtransit (MT DO)"]
[{"$f":"A34+1","v":1},null,"Hours",{"$f":"Weekday!D38+Saturday!D38+Sunday!D38","v":0},{"$f":"Weekday!E38+Saturday!E38+Sunday!E38","v":0},{"$f":"Weekday!F38+Saturday!F38+Sunday!F38","v":0},{"$f":"Weekday!G38+Saturday!G38+Sunday!G38","v":0},{"$f":"Weekday!H38+Saturday!H38+Sunday!H38","v":0},{"$f":"Weekday!I38+Saturday!I38+Sunday!I38","v":0},{"$f":"Weekday!J38+Saturday!J38+Sunday!J38","v":0},{"$f":"Weekday!K38+Saturday!K38+Sunday!K38","v":0},{"$f":"Weekday!L38+Saturday!L38+Sunday!L38","v":0},{"$f":"Weekday!M38+Saturday!M38+Sunday!M38","v":0},{"$f":"Weekday!N38+Saturday!N38+Sunday!N38","v":0},{"$f":"Weekday!O38+Saturday!O38+Sunday!O38","v":0},{"$f":"D38+E38+F38","v":0},{"$f":"G38+H38+I38","v":0},{"$f":"J38+K38+L38","v":0},{"$f":"M38+N38+O38","v":0},{"$f":"SUM(D38:O38)","v":0},{"$f":"U34+1","v":1}]
[{"$f":"A38+1","v":2},null,"Miles",{"$f":"Weekday!D39+Saturday!D39+Sunday!D39","v":0},{"$f":"Weekday!E39+Saturday!E39+Sunday!E39","v":0},{"$f":"Weekday!F39+Saturday!F39+Sunday!F39","v":0},{"$f":"Weekday!G39+Saturday!G39+Sunday!G39","v":0},{"$f":"Weekday!H39+Saturday!H39+Sunday!H39","v":0},{"$f":"Weekday!I39+Saturday!I39+Sunday!I39","v":0},{"$f":"Weekday!J39+Saturday!J39+Sunday!J39","v":0},{"$f":"Weekday!K39+Saturday!K39+Sunday!K39","v":0},{"$f":"Weekday!L39+Saturday!L39+Sunday!L39","v":0},{"$f":"Weekday!M39+Saturday!M39+Sunday!M39","v":0},{"$f":"Weekday!N39+Saturday!N39+Sunday!N39","v":0},{"$f":"Weekday!O39+Saturday!O39+Sunday!O39","v":0},0,0,0,0,0,{"$f":"U38+1","v":2}]
[{"$f":"A39+1","v":3},null,"Passenger Trips: Non-Contract",{"$f":"Weekday!D40+Saturday!D40+Sunday!D40","v":0},{"$f":"Weekday!E40+Saturday!E40+Sunday!E40","v":0},{"$f":"Weekday!F40+Saturday!F40+Sunday!F40","v":0},{"$f":"Weekday!G40+Saturday!G40+Sunday!G40","v":0},{"$f":"Weekday!H40+Saturday!H40+Sunday!H40","v":0},{"$f":"Weekday!I40+Saturday!I40+Sunday!I40","v":0},{"$f":"Weekday!J40+Saturday!J40+Sunday!J40","v":0},{"$f":"Weekday!K40+Saturday!K40+Sunday!K40","v":0},{"$f":"Weekday!L40+Saturday!L40+Sunday!L40","v":0},{"$f":"Weekday!M40+Saturday!M40+Sunday!M40","v":0},{"$f":"Weekday!N40+Saturday!N40+Sunday!N40","v":0},{"$f":"Weekday!O40+Saturday!O40+Sunday!O40","v":0},0,0,0,0,0,{"$f":"U39+1","v":3}]
[{"$f":"A40+1","v":4},null,"                               Medicaid Contract",{"$f":"Weekday!D41+Saturday!D41+Sunday!D41","v":0},{"$f":"Weekday!E41+Saturday!E41+Sunday!E41","v":0},{"$f":"Weekday!F41+Saturday!F41+Sunday!F41","v":0},{"$f":"Weekday!G41+Saturday!G41+Sunday!G41","v":0},{"$f":"Weekday!H41+Saturday!H41+Sunday!H41","v":0},{"$f":"Weekday!I41+Saturday!I41+Sunday!I41","v":0},{"$f":"Weekday!J41+Saturday!J41+Sunday!J41","v":0},{"$f":"Weekday!K41+Saturday!K41+Sunday!K41","v":0},{"$f":"Weekday!L41+Saturday!L41+Sunday!L41","v":0},{"$f":"Weekday!M41+Saturday!M41+Sunday!M41","v":0},{"$f":"Weekday!N41+Saturday!N41+Sunday!N41","v":0},{"$f":"Weekday!O41+Saturday!O41+Sunday!O41","v":0},0,0,0,0,0,{"$f":"U40+1","v":4}]
[{"$f":"A41+1","v":5},null,"                               Non-Medicaid Contract",{"$f":"Weekday!D42+Saturday!D42+Sunday!D42","v":0},{"$f":"Weekday!E42+Saturday!E42+Sunday!E42","v":0},{"$f":"Weekday!F42+Saturday!F42+Sunday!F42","v":0},{"$f":"Weekday!G42+Saturday!G42+Sunday!G42","v":0},{"$f":"Weekday!H42+Saturday!H42+Sunday!H42","v":0},{"$f":"Weekday!I42+Saturday!I42+Sunday!I42","v":0},{"$f":"Weekday!J42+Saturday!J42+Sunday!J42","v":0},{"$f":"Weekday!K42+Saturday!K42+Sunday!K42","v":0},{"$f":"Weekday!L42+Saturday!L42+Sunday!L42","v":0},{"$f":"Weekday!M42+Saturday!M42+Sunday!M42","v":0},{"$f":"Weekday!N42+Saturday!N42+Sunday!N42","v":0},{"$f":"Weekday!O42+Saturday!O42+Sunday!O42","v":0},0,0,0,0,0,{"$f":"U41+1","v":5}]
[null,null,"                               Brokered Medicaid Contract",{"$f":"Weekday!D43+Saturday!D43+Sunday!D43","v":0},{"$f":"Weekday!E43+Saturday!E43+Sunday!E43","v":0},{"$f":"Weekday!F43+Saturday!F43+Sunday!F43","v":0},{"$f":"Weekday!G43+Saturday!G43+Sunday!G43","v":0},{"$f":"Weekday!H43+Saturday!H43+Sunday!H43","v":0},{"$f":"Weekday!I43+Saturday!I43+Sunday!I43","v":0},{"$f":"Weekday!J43+Saturday!J43+Sunday!J43","v":0},{"$f":"Weekday!K43+Saturday!K43+Sunday!K43","v":0},{"$f":"Weekday!L43+Saturday!L43+Sunday!L43","v":0},{"$f":"Weekday!M43+Saturday!M43+Sunday!M43","v":0},{"$f":"Weekday!N43+Saturday!N43+Sunday!N43","v":0},{"$f":"Weekday!O43+Saturday!O43+Sunday!O43","v":0},0,0,0,0,0]
[null,null,"Total Passenger Trips- Other Providers",{"$f":"SUM(D40:D43)","v":0},{"$f":"SUM(E40:E43)","v":0},{"$f":"SUM(F40:F43)","v":0},{"$f":"SUM(G40:G43)","v":0},{"$f":"SUM(H40:H43)","v":0},{"$f":"SUM(I40:I43)","v":0},{"$f":"SUM(J40:J43)","v":0},{"$f":"SUM(K40:K43)","v":0},{"$f":"SUM(L40:L43)","v":0},{"$f":"SUM(M40:M43)","v":0},{"$f":"SUM(N40:N43)","v":0},{"$f":"SUM(O40:O43)","v":0},0,0,0,0,0]
[null,"Microtransit (MT PT)"]
[{"$f":"A42+1","v":6},null,"Hours",{"$f":"Weekday!D46+Saturday!D46+Sunday!D46","v":0},{"$f":"Weekday!E46+Saturday!E46+Sunday!E46","v":0},{"$f":"Weekday!F46+Saturday!F46+Sunday!F46","v":0},{"$f":"Weekday!G46+Saturday!G46+Sunday!G46","v":0},{"$f":"Weekday!H46+Saturday!H46+Sunday!H46","v":0},{"$f":"Weekday!I46+Saturday!I46+Sunday!I46","v":0},{"$f":"Weekday!J46+Saturday!J46+Sunday!J46","v":0},{"$f":"Weekday!K46+Saturday!K46+Sunday!K46","v":0},{"$f":"Weekday!L46+Saturday!L46+Sunday!L46","v":0},{"$f":"Weekday!M46+Saturday!M46+Sunday!M46","v":0},{"$f":"Weekday!N46+Saturday!N46+Sunday!N46","v":0},{"$f":"Weekday!O46+Saturday!O46+Sunday!O46","v":0},{"$f":"D46+E46+F46","v":0},{"$f":"G46+H46+I46","v":0},{"$f":"J46+K46+L46","v":0},{"$f":"M46+N46+O46","v":0},{"$f":"SUM(D46:O46)","v":0},{"$f":"U42+1","v":6}]
[{"$f":"A46+1","v":7},null,"Miles",{"$f":"Weekday!D47+Saturday!D47+Sunday!D47","v":0},{"$f":"Weekday!E47+Saturday!E47+Sunday!E47","v":0},{"$f":"Weekday!F47+Saturday!F47+Sunday!F47","v":0},{"$f":"Weekday!G47+Saturday!G47+Sunday!G47","v":0},{"$f":"Weekday!H47+Saturday!H47+Sunday!H47","v":0},{"$f":"Weekday!I47+Saturday!I47+Sunday!I47","v":0},{"$f":"Weekday!J47+Saturday!J47+Sunday!J47","v":0},{"$f":"Weekday!K47+Saturday!K47+Sunday!K47","v":0},{"$f":"Weekday!L47+Saturday!L47+Sunday!L47","v":0},{"$f":"Weekday!M47+Saturday!M47+Sunday!M47","v":0},{"$f":"Weekday!N47+Saturday!N47+Sunday!N47","v":0},{"$f":"Weekday!O47+Saturday!O47+Sunday!O47","v":0},0,0,0,0,0,{"$f":"U46+1","v":7}]
[{"$f":"A47+1","v":8},null,"Passenger Trips: Non-Contract",{"$f":"Weekday!D48+Saturday!D48+Sunday!D48","v":0},{"$f":"Weekday!E48+Saturday!E48+Sunday!E48","v":0},{"$f":"Weekday!F48+Saturday!F48+Sunday!F48","v":0},{"$f":"Weekday!G48+Saturday!G48+Sunday!G48","v":0},{"$f":"Weekday!H48+Saturday!H48+Sunday!H48","v":0},{"$f":"Weekday!I48+Saturday!I48+Sunday!I48","v":0},{"$f":"Weekday!J48+Saturday!J48+Sunday!J48","v":0},{"$f":"Weekday!K48+Saturday!K48+Sunday!K48","v":0},{"$f":"Weekday!L48+Saturday!L48+Sunday!L48","v":0},{"$f":"Weekday!M48+Saturday!M48+Sunday!M48","v":0},{"$f":"Weekday!N48+Saturday!N48+Sunday!N48","v":0},{"$f":"Weekday!O48+Saturday!O48+Sunday!O48","v":0},0,0,0,0,0,{"$f":"U47+1","v":8}]
[{"$f":"A48+1","v":9},null,"                               Medicaid Contract",{"$f":"Weekday!D49+Saturday!D49+Sunday!D49","v":0},{"$f":"Weekday!E49+Saturday!E49+Sunday!E49","v":0},{"$f":"Weekday!F49+Saturday!F49+Sunday!F49","v":0},{"$f":"Weekday!G49+Saturday!G49+Sunday!G49","v":0},{"$f":"Weekday!H49+Saturday!H49+Sunday!H49","v":0},{"$f":"Weekday!I49+Saturday!I49+Sunday!I49","v":0},{"$f":"Weekday!J49+Saturday!J49+Sunday!J49","v":0},{"$f":"Weekday!K49+Saturday!K49+Sunday!K49","v":0},{"$f":"Weekday!L49+Saturday!L49+Sunday!L49","v":0},{"$f":"Weekday!M49+Saturday!M49+Sunday!M49","v":0},{"$f":"Weekday!N49+Saturday!N49+Sunday!N49","v":0},{"$f":"Weekday!O49+Saturday!O49+Sunday!O49","v":0},0,0,0,0,0,{"$f":"U48+1","v":9}]
[{"$f":"A49+1","v":10},null,"                               Non-Medicaid Contract",{"$f":"Weekday!D50+Saturday!D50+Sunday!D50","v":0},{"$f":"Weekday!E50+Saturday!E50+Sunday!E50","v":0},{"$f":"Weekday!F50+Saturday!F50+Sunday!F50","v":0},{"$f":"Weekday!G50+Saturday!G50+Sunday!G50","v":0},{"$f":"Weekday!H50+Saturday!H50+Sunday!H50","v":0},{"$f":"Weekday!I50+Saturday!I50+Sunday!I50","v":0},{"$f":"Weekday!J50+Saturday!J50+Sunday!J50","v":0},{"$f":"Weekday!K50+Saturday!K50+Sunday!K50","v":0},{"$f":"Weekday!L50+Saturday!L50+Sunday!L50","v":0},{"$f":"Weekday!M50+Saturday!M50+Sunday!M50","v":0},{"$f":"Weekday!N50+Saturday!N50+Sunday!N50","v":0},{"$f":"Weekday!O50+Saturday!O50+Sunday!O50","v":0},0,0,0,0,0,{"$f":"U49+1","v":10}]
[null,null,"                               Brokered Medicaid Contract",{"$f":"Weekday!D51+Saturday!D51+Sunday!D51","v":0},{"$f":"Weekday!E51+Saturday!E51+Sunday!E51","v":0},{"$f":"Weekday!F51+Saturday!F51+Sunday!F51","v":0},{"$f":"Weekday!G51+Saturday!G51+Sunday!G51","v":0},{"$f":"Weekday!H51+Saturday!H51+Sunday!H51","v":0},{"$f":"Weekday!I51+Saturday!I51+Sunday!I51","v":0},{"$f":"Weekday!J51+Saturday!J51+Sunday!J51","v":0},{"$f":"Weekday!K51+Saturday!K51+Sunday!K51","v":0},{"$f":"Weekday!L51+Saturday!L51+Sunday!L51","v":0},{"$f":"Weekday!M51+Saturday!M51+Sunday!M51","v":0},{"$f":"Weekday!N51+Saturday!N51+Sunday!N51","v":0},{"$f":"Weekday!O51+Saturday!O51+Sunday!O51","v":0},0,0,0,0,0]
[null,null,"Total Passenger Trips- Other Providers",{"$f":"SUM(D48:D51)","v":0},{"$f":"SUM(E48:E51)","v":0},{"$f":"SUM(F48:F51)","v":0},{"$f":"SUM(G48:G51)","v":0},{"$f":"SUM(H48:H51)","v":0},{"$f":"SUM(I48:I51)","v":0},{"$f":"SUM(J48:J51)","v":0},{"$f":"SUM(K48:K51)","v":0},{"$f":"SUM(L48:L51)","v":0},{"$f":"SUM(M48:M51)","v":0},{"$f":"SUM(N48:N51)","v":0},{"$f":"SUM(O48:O51)","v":0},0,0,0,0,0]
[null,"Transit Totals"]
[null,null,"Hours",{"$f":"SUM(D6+D14+D22+D30+D38+D46)","v":0},{"$f":"SUM(E6+E14+E22+E30+E38+E46)","v":0},0,0,0,0,0,0,0,0,0,0,{"$f":"SUM(D54:F54)","v":0},{"$f":"SUM(G54:I54)","v":0},{"$f":"SUM(J54:L54)","v":0},{"$f":"SUM(M54:O54)","v":0},{"$f":"SUM(P54:S54)","v":0}]
[null,null,"Miles",{"$f":"SUM(D7+D15+D23+D31+D39+D47)","v":0},{"$f":"SUM(E7+E15+E23+E31+E39+E47)","v":0},0,0,0,0,0,0,0,0,0,0,{"$f":"SUM(D55:F55)","v":0},{"$f":"SUM(G55:I55)","v":0},{"$f":"SUM(J55:L55)","v":0},{"$f":"SUM(M55:O55)","v":0},{"$f":"SUM(P55:S55)","v":0}]
[null,null,"Passenger Trips: Non-Contract",{"$f":"SUM(D8+D16+D24+D32+D40+D48)","v":0},{"$f":"SUM(E8+E16+E24+E32+E40+E48)","v":0},0,0,0,0,0,0,0,0,0,0,0,0,0,0,0]
[null,null,"                                  Medicaid Contract",{"$f":"SUM(D9+D17+D25+D33+D41+D49)","v":0},{"$f":"SUM(E9+E17+E25+E33+E41+E49)","v":0},0,0,0,0,0,0,0,0,0,0,0,0,0,0,0]
[null,null,"                                  Non-Medicaid Contract",{"$f":"SUM(D10+D18+D26+D34+D42+D50)","v":0},{"$f":"SUM(E10+E18+E26+E34+E42+E50)","v":0},0,0,0,0,0,0,0,0,0,0,0,0,0,0,0]
[null,null,"                                  Brokered Medicaid Contract",{"$f":"Weekday!D59+Saturday!D59+Sunday!D59","v":0},{"$f":"Weekday!E59+Saturday!E59+Sunday!E59","v":0},{"$f":"Weekday!F59+Saturday!F59+Sunday!F59","v":0},{"$f":"Weekday!G59+Saturday!G59+Sunday!G59","v":0},{"$f":"Weekday!H59+Saturday!H59+Sunday!H59","v":0},{"$f":"Weekday!I59+Saturday!I59+Sunday!I59","v":0},{"$f":"Weekday!J59+Saturday!J59+Sunday!J59","v":0},{"$f":"Weekday!K59+Saturday!K59+Sunday!K59","v":0},{"$f":"Weekday!L59+Saturday!L59+Sunday!L59","v":0},{"$f":"Weekday!M59+Saturday!M59+Sunday!M59","v":0},{"$f":"Weekday!N59+Saturday!N59+Sunday!N59","v":0},{"$f":"Weekday!O59+Saturday!O59+Sunday!O59","v":0},{"$f":"SUM(D59:F59)","v":0},{"$f":"SUM(G59:I59)","v":0},{"$f":"SUM(J59:L59)","v":0},{"$f":"SUM(M59:O59)","v":0},{"$f":"SUM(P59:S59)","v":0}]
[null,null,"Total Passenger Trips for All Modes",{"$f":"SUM(D56:D59)","v":0},{"$f":"SUM(E56:E59)","v":0},{"$f":"SUM(F56:F59)","v":0},{"$f":"SUM(G56:G59)","v":0},{"$f":"SUM(H56:H59)","v":0},{"$f":"SUM(I56:I59)","v":0},{"$f":"SUM(J56:J59)","v":0},{"$f":"SUM(K56:K59)","v":0},{"$f":"SUM(L56:L59)","v":0},{"$f":"SUM(M56:M59)","v":0},{"$f":"SUM(N56:N59)","v":0},{"$f":"SUM(O56:O59)","v":0},{"$f":"SUM(D60:F60)","v":0},{"$f":"SUM(G60:I60)","v":0},{"$f":"SUM(J60:L60)","v":0},{"$f":"SUM(M60:O60)","v":0},{"$f":"SUM(P60:S60)","v":0}]

{"sheet":"Dashboard","index":6,"n_rows":140,"n_cols":81,"rows_kept":140,"cut":false,"hidden":true,"merged":[[2,0,29,0],[53,0,69,0],[73,0,100,0],[104,0,130,0],[133,0,156,0],[32,0,48,0]]}
[null,{"$f":"\"TRANSIT PERFORMANCE DASHBOARD: \" &Overview!D4","v":"TRANSIT PERFORMANCE DASHBOARD: "}]
[]
["Passenger Trips by Month"]
[]
[]
[]
[]
[]
[]
[]
[]
[]
[]
[]
[]
[]
[]
[]
[]
[]
[]
[]
[]
[]
[]
[]
[]
[]
[]
[null,null,null,null,null,null,null,null,null,null,null,null,null,null,null,null,null,null,null,null,null,null,null,null,null,null,null,null,null,null,null,null,null,null,null,null,null,null,null,null,null,null,null,null,null,null,null,null,null,null,null,null,null,null,null,null,null,null,null,null,null,null,null,null,null,null,null,null,null,null,null,null,null,null,null,null,null,null,null,null,2]
[]
[]
["Passengers per Mile"]
[]
[null,null,null,null,null,null,null,null,null,null,null,null,null,null,null,null,null,null,"PassPerMile"]
[null,null,"PassPerMile",null,null,null,null,null,null,null,null,null,null,null,null,null,null,null,"Month",{"$f":"'Weekly Totals'!D3","v":"July"},{"$f":"'Weekly Totals'!E3","v":"August"},{"$f":"'Weekly Totals'!F3","v":"September"},{"$f":"'Weekly Totals'!G3","v":"October"},{"$f":"'Weekly Totals'!H3","v":"November"},{"$f":"'Weekly Totals'!I3","v":"December"},{"$f":"'Weekly Totals'!J3","v":"January"},{"$f":"'Weekly Totals'!K3","v":"February"},{"$f":"'Weekly Totals'!L3","v":"March"},{"$f":"'Weekly Totals'!M3","v":"April"},{"$f":"'Weekly Totals'!N3","v":"May"},{"$f":"'Weekly Totals'!O3","v":"June"}]
[null,null,"Month",{"$f":"'Weekly Totals'!D3","v":"July"},{"$f":"'Weekly Totals'!E3","v":"August"},{"$f":"'Weekly Totals'!F3","v":"September"},{"$f":"'Weekly Totals'!G3","v":"October"},{"$f":"'Weekly Totals'!H3","v":"November"},{"$f":"'Weekly Totals'!I3","v":"December"},{"$f":"'Weekly Totals'!J3","v":"January"},{"$f":"'Weekly Totals'!K3","v":"February"},{"$f":"'Weekly Totals'!L3","v":"March"},{"$f":"'Weekly Totals'!M3","v":"April"},{"$f":"'Weekly Totals'!N3","v":"May"},{"$f":"'Weekly Totals'!O3","v":"June"},null,null,null,"DO Pass",{"$f":"'Weekly Totals'!D12","v":0},{"$f":"'Weekly Totals'!E12","v":0},{"$f":"'Weekly Totals'!F12","v":0},{"$f":"'Weekly Totals'!G12","v":0},{"$f":"'Weekly Totals'!H12","v":0},{"$f":"'Weekly Totals'!I12","v":0},{"$f":"'Weekly Totals'!J12","v":0},{"$f":"'Weekly Totals'!K12","v":0},{"$f":"'Weekly Totals'!L12","v":0},{"$f":"'Weekly Totals'!M12","v":0},{"$f":"'Weekly Totals'!N12","v":0},{"$f":"'Weekly Totals'!O12","v":0}]
[null,null,"Pass",{"$f":"'Weekly Totals'!D60","v":0},{"$f":"'Weekly Totals'!E60","v":0},{"$f":"'Weekly Totals'!F60","v":0},{"$f":"'Weekly Totals'!G60","v":0},{"$f":"'Weekly Totals'!H60","v":0},{"$f":"'Weekly Totals'!I60","v":0},{"$f":"'Weekly Totals'!J60","v":0},{"$f":"'Weekly Totals'!K60","v":0},{"$f":"'Weekly Totals'!L60","v":0},{"$f":"'Weekly Totals'!M60","v":0},{"$f":"'Weekly Totals'!N60","v":0},{"$f":"'Weekly Totals'!O60","v":0},null,null,null,"DO Mile",{"$f":"'Weekly Totals'!D7","v":0},{"$f":"'Weekly Totals'!E7","v":0},{"$f":"'Weekly Totals'!F7","v":0},{"$f":"'Weekly Totals'!G7","v":0},{"$f":"'Weekly Totals'!H7","v":0},{"$f":"'Weekly Totals'!I7","v":0},{"$f":"'Weekly Totals'!J7","v":0},{"$f":"'Weekly Totals'!K7","v":0},{"$f":"'Weekly Totals'!L7","v":0},{"$f":"'Weekly Totals'!M7","v":0},{"$f":"'Weekly Totals'!N7","v":0},{"$f":"'Weekly Totals'!O7","v":0}]
[null,null,"Mile",{"$f":"'Weekly Totals'!D55","v":0},{"$f":"'Weekly Totals'!E55","v":0},{"$f":"'Weekly Totals'!F55","v":0},{"$f":"'Weekly Totals'!G55","v":0},{"$f":"'Weekly Totals'!H55","v":0},{"$f":"'Weekly Totals'!I55","v":0},{"$f":"'Weekly Totals'!J55","v":0},{"$f":"'Weekly Totals'!K55","v":0},{"$f":"'Weekly Totals'!L55","v":0},{"$f":"'Weekly Totals'!M55","v":0},{"$f":"'Weekly Totals'!N55","v":0},{"$f":"'Weekly Totals'!O55","v":0},null,null,null,"Pass/DO Mile",{"$f":"T37/T38","v":{"$error":"#DIV/0!"}},{"$error":"#DIV/0!"},{"$error":"#DIV/0!"},{"$error":"#DIV/0!"},{"$error":"#DIV/0!"},{"$error":"#DIV/0!"},{"$error":"#DIV/0!"},{"$error":"#DIV/0!"},{"$error":"#DIV/0!"},{"$error":"#DIV/0!"},{"$error":"#DIV/0!"},{"$error":"#DIV/0!"},null,null,null,null,"PassPerMile",null,null,null,null,null,null,null,null,null,null,null,null,null,null,null,null,"PassPerMile"]
[null,null,"Pass/Mile",{"$f":"D38/D39","v":{"$error":"#DIV/0!"}},{"$f":"E38/E39","v":{"$error":"#DIV/0!"}},{"$error":"#DIV/0!"},{"$error":"#DIV/0!"},{"$error":"#DIV/0!"},{"$error":"#DIV/0!"},{"$error":"#DIV/0!"},{"$error":"#DIV/0!"},{"$error":"#DIV/0!"},{"$error":"#DIV/0!"},{"$error":"#DIV/0!"},{"$error":"#DIV/0!"},null,null,null,"PT Pass",{"$f":"'Weekly Totals'!D20","v":0},{"$f":"'Weekly Totals'!E20","v":0},{"$f":"'Weekly Totals'!F20","v":0},{"$f":"'Weekly Totals'!G20","v":0},{"$f":"'Weekly Totals'!H20","v":0},{"$f":"'Weekly Totals'!I20","v":0},{"$f":"'Weekly Totals'!J20","v":0},{"$f":"'Weekly Totals'!K20","v":0},{"$f":"'Weekly Totals'!L20","v":0},{"$f":"'Weekly Totals'!M20","v":0},{"$f":"'Weekly Totals'!N20","v":0},{"$f":"'Weekly Totals'!O20","v":0},null,null,null,null,"Month",{"$f":"'Weekly Totals'!D3","v":"July"},{"$f":"'Weekly Totals'!E3","v":"August"},{"$f":"'Weekly Totals'!F3","v":"September"},{"$f":"'Weekly Totals'!G3","v":"October"},{"$f":"'Weekly Totals'!H3","v":"November"},{"$f":"'Weekly Totals'!I3","v":"December"},{"$f":"'Weekly Totals'!J3","v":"January"},{"$f":"'Weekly Totals'!K3","v":"February"},{"$f":"'Weekly Totals'!L3","v":"March"},{"$f":"'Weekly Totals'!M3","v":"April"},{"$f":"'Weekly Totals'!N3","v":"May"},{"$f":"'Weekly Totals'!O3","v":"June"},null,null,null,null,"Month",{"$f":"'Weekly Totals'!D3","v":"July"},{"$f":"'Weekly Totals'!E3","v":"August"},{"$f":"'Weekly Totals'!F3","v":"September"},{"$f":"'Weekly Totals'!G3","v":"October"},{"$f":"'Weekly Totals'!H3","v":"November"},{"$f":"'Weekly Totals'!I3","v":"December"},{"$f":"'Weekly Totals'!J3","v":"January"},{"$f":"'Weekly Totals'!K3","v":"February"},{"$f":"'Weekly Totals'!L3","v":"March"},{"$f":"'Weekly Totals'!M3","v":"April"},{"$f":"'Weekly Totals'!N3","v":"May"},{"$f":"'Weekly Totals'!O3","v":"June"}]
[null,null,null,null,null,null,null,null,null,null,null,null,null,null,null,null,null,null,"PT Mile",{"$f":"'Weekly Totals'!D15","v":0},{"$f":"'Weekly Totals'!E15","v":0},{"$f":"'Weekly Totals'!F15","v":0},{"$f":"'Weekly Totals'!G15","v":0},{"$f":"'Weekly Totals'!H15","v":0},{"$f":"'Weekly Totals'!I15","v":0},{"$f":"'Weekly Totals'!J15","v":0},{"$f":"'Weekly Totals'!K15","v":0},{"$f":"'Weekly Totals'!L15","v":0},{"$f":"'Weekly Totals'!M15","v":0},{"$f":"'Weekly Totals'!N15","v":0},{"$f":"'Weekly Totals'!O15","v":0},null,null,null,null,"DO Pass",{"$f":"'Weekly Totals'!D28","v":0},{"$f":"'Weekly Totals'!E28","v":0},{"$f":"'Weekly Totals'!F28","v":0},{"$f":"'Weekly Totals'!G28","v":0},{"$f":"'Weekly Totals'!H28","v":0},{"$f":"'Weekly Totals'!I28","v":0},{"$f":"'Weekly Totals'!J28","v":0},{"$f":"'Weekly Totals'!K28","v":0},{"$f":"'Weekly Totals'!L28","v":0},{"$f":"'Weekly Totals'!M28","v":0},{"$f":"'Weekly Totals'!N28","v":0},{"$f":"'Weekly Totals'!O28","v":0},null,null,null,null,"DO Pass",{"$f":"'Weekly Totals'!D44","v":0},{"$f":"'Weekly Totals'!E44","v":0},{"$f":"'Weekly Totals'!F44","v":0},{"$f":"'Weekly Totals'!G44","v":0},{"$f":"'Weekly Totals'!H44","v":0},{"$f":"'Weekly Totals'!I44","v":0},{"$f":"'Weekly Totals'!J44","v":0},{"$f":"'Weekly Totals'!K44","v":0},{"$f":"'Weekly Totals'!L44","v":0},{"$f":"'Weekly Totals'!M44","v":0},{"$f":"'Weekly Totals'!N44","v":0},{"$f":"'Weekly Totals'!O44","v":0}]
[null,null,null,null,null,null,null,null,null,null,null,null,null,null,null,null,null,null,"Pass/PT Mile",{"$f":"T40/T41","v":{"$error":"#DIV/0!"}},{"$error":"#DIV/0!"},{"$error":"#DIV/0!"},{"$error":"#DIV/0!"},{"$error":"#DIV/0!"},{"$error":"#DIV/0!"},{"$error":"#DIV/0!"},{"$error":"#DIV/0!"},{"$error":"#DIV/0!"},{"$error":"#DIV/0!"},{"$error":"#DIV/0!"},{"$error":"#DIV/0!"},null,null,null,null,"DO Mile",{"$f":"'Weekly Totals'!D23","v":0},{"$f":"'Weekly Totals'!E23","v":0},{"$f":"'Weekly Totals'!F23","v":0},{"$f":"'Weekly Totals'!G23","v":0},{"$f":"'Weekly Totals'!H23","v":0},{"$f":"'Weekly Totals'!I23","v":0},{"$f":"'Weekly Totals'!J23","v":0},{"$f":"'Weekly Totals'!K23","v":0},{"$f":"'Weekly Totals'!L23","v":0},{"$f":"'Weekly Totals'!M23","v":0},{"$f":"'Weekly Totals'!N23","v":0},{"$f":"'Weekly Totals'!O23","v":0},null,null,null,null,"DO Mile",{"$f":"'Weekly Totals'!D39","v":0},{"$f":"'Weekly Totals'!E39","v":0},{"$f":"'Weekly Totals'!F39","v":0},{"$f":"'Weekly Totals'!G39","v":0},{"$f":"'Weekly Totals'!H39","v":0},{"$f":"'Weekly Totals'!I39","v":0},{"$f":"'Weekly Totals'!J39","v":0},{"$f":"'Weekly Totals'!K39","v":0},{"$f":"'Weekly Totals'!L39","v":0},{"$f":"'Weekly Totals'!M39","v":0},{"$f":"'Weekly Totals'!N39","v":0},{"$f":"'Weekly Totals'!O39","v":0}]
[null,null,null,null,null,null,null,null,null,null,null,null,null,null,null,null,null,null,null,null,null,null,null,null,null,null,null,null,null,null,null,null,null,null,null,"Pass/DO Mile",{"$f":"AK41/AK42","v":{"$error":"#DIV/0!"}},{"$error":"#DIV/0!"},{"$error":"#DIV/0!"},{"$error":"#DIV/0!"},{"$error":"#DIV/0!"},{"$error":"#DIV/0!"},{"$error":"#DIV/0!"},{"$error":"#DIV/0!"},{"$error":"#DIV/0!"},{"$error":"#DIV/0!"},{"$error":"#DIV/0!"},{"$error":"#DIV/0!"},null,null,null,null,"Pass/DO Mile",{"$f":"BB41/BB42","v":{"$error":"#DIV/0!"}},{"$error":"#DIV/0!"},{"$error":"#DIV/0!"},{"$error":"#DIV/0!"},{"$error":"#DIV/0!"},{"$error":"#DIV/0!"},{"$error":"#DIV/0!"},{"$error":"#DIV/0!"},{"$error":"#DIV/0!"},{"$error":"#DIV/0!"},{"$error":"#DIV/0!"},{"$error":"#DIV/0!"}]
[null,null,null,null,null,null,null,null,null,null,null,null,null,null,null,null,null,null,null,null,null,null,null,null,null,null,null,null,null,null,null,null,null,null,null,"PT Pass",{"$f":"'Weekly Totals'!D36","v":0},{"$f":"'Weekly Totals'!E36","v":0},{"$f":"'Weekly Totals'!F36","v":0},{"$f":"'Weekly Totals'!G36","v":0},{"$f":"'Weekly Totals'!H36","v":0},{"$f":"'Weekly Totals'!I36","v":0},{"$f":"'Weekly Totals'!J36","v":0},{"$f":"'Weekly Totals'!K36","v":0},{"$f":"'Weekly Totals'!L36","v":0},{"$f":"'Weekly Totals'!M36","v":0},{"$f":"'Weekly Totals'!N36","v":0},{"$f":"'Weekly Totals'!O36","v":0},null,null,null,null,"PT Pass",{"$f":"'Weekly Totals'!D52","v":0},{"$f":"'Weekly Totals'!E52","v":0},{"$f":"'Weekly Totals'!F52","v":0},{"$f":"'Weekly Totals'!G52","v":0},{"$f":"'Weekly Totals'!H52","v":0},{"$f":"'Weekly Totals'!I52","v":0},{"$f":"'Weekly Totals'!J52","v":0},{"$f":"'Weekly Totals'!K52","v":0},{"$f":"'Weekly Totals'!L52","v":0},{"$f":"'Weekly Totals'!M52","v":0},{"$f":"'Weekly Totals'!N52","v":0},{"$f":"'Weekly Totals'!O52","v":0}]
[null,null,null,null,null,null,null,null,null,null,null,null,null,null,null,null,null,null,null,null,null,null,null,null,null,null,null,null,null,null,null,null,null,null,null,"PT Mile",{"$f":"'Weekly Totals'!D31","v":0},{"$f":"'Weekly Totals'!E31","v":0},{"$f":"'Weekly Totals'!F31","v":0},{"$f":"'Weekly Totals'!G31","v":0},{"$f":"'Weekly Totals'!H31","v":0},{"$f":"'Weekly Totals'!I31","v":0},{"$f":"'Weekly Totals'!J31","v":0},{"$f":"'Weekly Totals'!K31","v":0},{"$f":"'Weekly Totals'!L31","v":0},{"$f":"'Weekly Totals'!M31","v":0},{"$f":"'Weekly Totals'!N31","v":0},{"$f":"'Weekly Totals'!O31","v":0},null,null,null,null,"PT Mile",{"$f":"'Weekly Totals'!D47","v":0},{"$f":"'Weekly Totals'!E47","v":0},{"$f":"'Weekly Totals'!F47","v":0},{"$f":"'Weekly Totals'!G47","v":0},{"$f":"'Weekly Totals'!H47","v":0},{"$f":"'Weekly Totals'!I47","v":0},{"$f":"'Weekly Totals'!J47","v":0},{"$f":"'Weekly Totals'!K47","v":0},{"$f":"'Weekly Totals'!L47","v":0},{"$f":"'Weekly Totals'!M47","v":0},{"$f":"'Weekly Totals'!N47","v":0},{"$f":"'Weekly Totals'!O47","v":0}]
[null,null,null,null,null,null,null,null,null,null,null,null,null,null,null,null,null,null,null,null,null,null,null,null,null,null,null,null,null,null,null,null,null,null,null,"Pass/PT Mile",{"$f":"AK44/AK45","v":{"$error":"#DIV/0!"}},{"$error":"#DIV/0!"},{"$error":"#DIV/0!"},{"$error":"#DIV/0!"},{"$error":"#DIV/0!"},{"$error":"#DIV/0!"},{"$error":"#DIV/0!"},{"$error":"#DIV/0!"},{"$error":"#DIV/0!"},{"$error":"#DIV/0!"},{"$error":"#DIV/0!"},{"$error":"#DIV/0!"},null,null,null,null,"Pass/PT Mile",{"$f":"BB44/BB45","v":{"$error":"#DIV/0!"}},{"$error":"#DIV/0!"},{"$error":"#DIV/0!"},{"$error":"#DIV/0!"},{"$error":"#DIV/0!"},{"$error":"#DIV/0!"},{"$error":"#DIV/0!"},{"$error":"#DIV/0!"},{"$error":"#DIV/0!"},{"$error":"#DIV/0!"},{"$error":"#DIV/0!"},{"$error":"#DIV/0!"}]
[]
[]
[]
[]
[]
[]
[]
["Passengers per Hour"]
[]
[null,null,"PassPerHour",null,null,null,null,null,null,null,null,null,null,null,null,null,null,null,"PassPerHour",null,null,null,null,null,null,null,null,null,null,null,null,null,null,null,null,"PassPerHour",null,null,null,null,null,null,null,null,null,null,null,null,null,null,null,null,"PassPerHour"]
[null,null,"Month",{"$f":"'Weekly Totals'!D3","v":"July"},{"$f":"'Weekly Totals'!E3","v":"August"},{"$f":"'Weekly Totals'!F3","v":"September"},{"$f":"'Weekly Totals'!G3","v":"October"},{"$f":"'Weekly Totals'!H3","v":"November"},{"$f":"'Weekly Totals'!I3","v":"December"},{"$f":"'Weekly Totals'!J3","v":"January"},{"$f":"'Weekly Totals'!K3","v":"February"},{"$f":"'Weekly Totals'!L3","v":"March"},{"$f":"'Weekly Totals'!M3","v":"April"},{"$f":"'Weekly Totals'!N3","v":"May"},{"$f":"'Weekly Totals'!O3","v":"June"},null,null,null,"Month",{"$f":"'Weekly Totals'!D3","v":"July"},{"$f":"'Weekly Totals'!E3","v":"August"},{"$f":"'Weekly Totals'!F3","v":"September"},{"$f":"'Weekly Totals'!G3","v":"October"},{"$f":"'Weekly Totals'!H3","v":"November"},{"$f":"'Weekly Totals'!I3","v":"December"},{"$f":"'Weekly Totals'!J3","v":"January"},{"$f":"'Weekly Totals'!K3","v":"February"},{"$f":"'Weekly Totals'!L3","v":"March"},{"$f":"'Weekly Totals'!M3","v":"April"},{"$f":"'Weekly Totals'!N3","v":"May"},{"$f":"'Weekly Totals'!O3","v":"June"},null,null,null,null,"Month",{"$f":"'Weekly Totals'!D3","v":"July"},{"$f":"'Weekly Totals'!E3","v":"August"},{"$f":"'Weekly Totals'!F3","v":"September"},{"$f":"'Weekly Totals'!G3","v":"October"},{"$f":"'Weekly Totals'!H3","v":"November"},{"$f":"'Weekly Totals'!I3","v":"December"},{"$f":"'Weekly Totals'!J3","v":"January"},{"$f":"'Weekly Totals'!K3","v":"February"},{"$f":"'Weekly Totals'!L3","v":"March"},{"$f":"'Weekly Totals'!M3","v":"April"},{"$f":"'Weekly Totals'!N3","v":"May"},{"$f":"'Weekly Totals'!O3","v":"June"},null,null,null,null,"Month",{"$f":"'Weekly Totals'!D3","v":"July"},{"$f":"'Weekly Totals'!E3","v":"August"},{"$f":"'Weekly Totals'!F3","v":"September"},{"$f":"'Weekly Totals'!G3","v":"October"},{"$f":"'Weekly Totals'!H3","v":"November"},{"$f":"'Weekly Totals'!I3","v":"December"},{"$f":"'Weekly Totals'!J3","v":"January"},{"$f":"'Weekly Totals'!K3","v":"February"},{"$f":"'Weekly Totals'!L3","v":"March"},{"$f":"'Weekly Totals'!M3","v":"April"},{"$f":"'Weekly Totals'!N3","v":"May"},{"$f":"'Weekly Totals'!O3","v":"June"}]
[null,null,"Pass",{"$f":"'Weekly Totals'!D60","v":0},{"$f":"'Weekly Totals'!E60","v":0},{"$f":"'Weekly Totals'!F60","v":0},{"$f":"'Weekly Totals'!G60","v":0},{"$f":"'Weekly Totals'!H60","v":0},{"$f":"'Weekly Totals'!I60","v":0},{"$f":"'Weekly Totals'!J60","v":0},{"$f":"'Weekly Totals'!K60","v":0},{"$f":"'Weekly Totals'!L60","v":0},{"$f":"'Weekly Totals'!M60","v":0},{"$f":"'Weekly Totals'!N60","v":0},{"$f":"'Weekly Totals'!O60","v":0},null,null,null,"DO Pass",{"$f":"'Weekly Totals'!D12","v":0},{"$f":"'Weekly Totals'!E12","v":0},{"$f":"'Weekly Totals'!F12","v":0},{"$f":"'Weekly Totals'!G12","v":0},{"$f":"'Weekly Totals'!H12","v":0},{"$f":"'Weekly Totals'!I12","v":0},{"$f":"'Weekly Totals'!J12","v":0},{"$f":"'Weekly Totals'!K12","v":0},{"$f":"'Weekly Totals'!L12","v":0},{"$f":"'Weekly Totals'!M12","v":0},{"$f":"'Weekly Totals'!N12","v":0},{"$f":"'Weekly Totals'!O12","v":0},null,null,null,null,"DO Pass",{"$f":"'Weekly Totals'!D28","v":0},{"$f":"'Weekly Totals'!E28","v":0},{"$f":"'Weekly Totals'!F28","v":0},{"$f":"'Weekly Totals'!G28","v":0},{"$f":"'Weekly Totals'!H28","v":0},{"$f":"'Weekly Totals'!I28","v":0},{"$f":"'Weekly Totals'!J28","v":0},{"$f":"'Weekly Totals'!K28","v":0},{"$f":"'Weekly Totals'!L28","v":0},{"$f":"'Weekly Totals'!M28","v":0},{"$f":"'Weekly Totals'!N28","v":0},{"$f":"'Weekly Totals'!O28","v":0},null,null,null,null,"DO Pass",{"$f":"'Weekly Totals'!D44","v":0},{"$f":"'Weekly Totals'!E44","v":0},{"$f":"'Weekly Totals'!F44","v":0},{"$f":"'Weekly Totals'!G44","v":0},{"$f":"'Weekly Totals'!H44","v":0},{"$f":"'Weekly Totals'!I44","v":0},{"$f":"'Weekly Totals'!J44","v":0},{"$f":"'Weekly Totals'!K44","v":0},{"$f":"'Weekly Totals'!L44","v":0},{"$f":"'Weekly Totals'!M44","v":0},{"$f":"'Weekly Totals'!N44","v":0},{"$f":"'Weekly Totals'!O44","v":0}]
[null,null,"Hour",{"$f":"'Weekly Totals'!D54","v":0},{"$f":"'Weekly Totals'!E54","v":0},{"$f":"'Weekly Totals'!F54","v":0},{"$f":"'Weekly Totals'!G54","v":0},{"$f":"'Weekly Totals'!H54","v":0},{"$f":"'Weekly Totals'!I54","v":0},{"$f":"'Weekly Totals'!J54","v":0},{"$f":"'Weekly Totals'!K54","v":0},{"$f":"'Weekly Totals'!L54","v":0},{"$f":"'Weekly Totals'!M54","v":0},{"$f":"'Weekly Totals'!N54","v":0},{"$f":"'Weekly Totals'!O54","v":0},null,null,null,"DO Hour",{"$f":"'Weekly Totals'!D6","v":0},{"$f":"'Weekly Totals'!E6","v":0},{"$f":"'Weekly Totals'!F6","v":0},{"$f":"'Weekly Totals'!G6","v":0},{"$f":"'Weekly Totals'!H6","v":0},{"$f":"'Weekly Totals'!I6","v":0},{"$f":"'Weekly Totals'!J6","v":0},{"$f":"'Weekly Totals'!K6","v":0},{"$f":"'Weekly Totals'!L6","v":0},{"$f":"'Weekly Totals'!M6","v":0},{"$f":"'Weekly Totals'!N6","v":0},{"$f":"'Weekly Totals'!O6","v":0},null,null,null,null,"DO Hour",{"$f":"'Weekly Totals'!D22","v":0},{"$f":"'Weekly Totals'!E22","v":0},{"$f":"'Weekly Totals'!F22","v":0},{"$f":"'Weekly Totals'!G22","v":0},{"$f":"'Weekly Totals'!H22","v":0},{"$f":"'Weekly Totals'!I22","v":0},{"$f":"'Weekly Totals'!J22","v":0},{"$f":"'Weekly Totals'!K22","v":0},{"$f":"'Weekly Totals'!L22","v":0},{"$f":"'Weekly Totals'!M22","v":0},{"$f":"'Weekly Totals'!N22","v":0},{"$f":"'Weekly Totals'!O22","v":0},null,null,null,null,"DO Hour",{"$f":"'Weekly Totals'!D39","v":0},{"$f":"'Weekly Totals'!E39","v":0},{"$f":"'Weekly Totals'!F39","v":0},{"$f":"'Weekly Totals'!G39","v":0},{"$f":"'Weekly Totals'!H39","v":0},{"$f":"'Weekly Totals'!I39","v":0},{"$f":"'Weekly Totals'!J39","v":0},{"$f":"'Weekly Totals'!K39","v":0},{"$f":"'Weekly Totals'!L39","v":0},{"$f":"'Weekly Totals'!M39","v":0},{"$f":"'Weekly Totals'!N39","v":0},{"$f":"'Weekly Totals'!O39","v":0}]
[null,null,"Pass/Hour",{"$f":"D58/D59","v":{"$error":"#DIV/0!"}},{"$f":"E58/E59","v":{"$error":"#DIV/0!"}},{"$error":"#DIV/0!"},{"$error":"#DIV/0!"},{"$error":"#DIV/0!"},{"$error":"#DIV/0!"},{"$error":"#DIV/0!"},{"$error":"#DIV/0!"},{"$error":"#DIV/0!"},{"$error":"#DIV/0!"},{"$error":"#DIV/0!"},{"$error":"#DIV/0!"},null,null,null,"Pass/DO Hour",{"$f":"T58/T59","v":{"$error":"#DIV/0!"}},{"$error":"#DIV/0!"},{"$error":"#DIV/0!"},{"$error":"#DIV/0!"},{"$error":"#DIV/0!"},{"$error":"#DIV/0!"},{"$error":"#DIV/0!"},{"$error":"#DIV/0!"},{"$error":"#DIV/0!"},{"$error":"#DIV/0!"},{"$error":"#DIV/0!"},{"$error":"#DIV/0!"},null,null,null,null,"Pass/DO Hour",{"$f":"AK58/AK59","v":{"$error":"#DIV/0!"}},{"$f":"AL58/AL59","v":{"$error":"#DIV/0!"}},{"$error":"#DIV/0!"},{"$error":"#DIV/0!"},{"$error":"#DIV/0!"},{"$error":"#DIV/0!"},{"$error":"#DIV/0!"},{"$error":"#DIV/0!"},{"$error":"#DIV/0!"},{"$error":"#DIV/0!"},{"$error":"#DIV/0!"},{"$error":"#DIV/0!"},null,null,null,null,"Pass/DO Hour",{"$f":"BB58/BB59","v":{"$error":"#DIV/0!"}},{"$f":"BC58/BC59","v":{"$error":"#DIV/0!"}},{"$error":"#DIV/0!"},{"$error":"#DIV/0!"},{"$error":"#DIV/0!"},{"$error":"#DIV/0!"},{"$error":"#DIV/0!"},{"$error":"#DIV/0!"},{"$error":"#DIV/0!"},{"$error":"#DIV/0!"},{"$error":"#DIV/0!"},{"$error":"#DIV/0!"}]
[null,null,null,null,null,null,null,null,null,null,null,null,null,null,null,null,null,null,"PT Pass",{"$f":"'Weekly Totals'!D20","v":0},{"$f":"'Weekly Totals'!E20","v":0},{"$f":"'Weekly Totals'!F20","v":0},{"$f":"'Weekly Totals'!G20","v":0},{"$f":"'Weekly Totals'!H20","v":0},{"$f":"'Weekly Totals'!I20","v":0},{"$f":"'Weekly Totals'!J20","v":0},{"$f":"'Weekly Totals'!K20","v":0},{"$f":"'Weekly Totals'!L20","v":0},{"$f":"'Weekly Totals'!M20","v":0},{"$f":"'Weekly Totals'!N20","v":0},{"$f":"'Weekly Totals'!O20","v":0},null,null,null,null,"PT Pass",{"$f":"'Weekly Totals'!D36","v":0},{"$f":"'Weekly Totals'!E36","v":0},{"$f":"'Weekly Totals'!F36","v":0},{"$f":"'Weekly Totals'!G36","v":0},{"$f":"'Weekly Totals'!H36","v":0},{"$f":"'Weekly Totals'!I36","v":0},{"$f":"'Weekly Totals'!J36","v":0},{"$f":"'Weekly Totals'!K36","v":0},{"$f":"'Weekly Totals'!L36","v":0},{"$f":"'Weekly Totals'!M36","v":0},{"$f":"'Weekly Totals'!N36","v":0},{"$f":"'Weekly Totals'!O36","v":0},null,null,null,null,"PT Pass",{"$f":"'Weekly Totals'!D52","v":0},{"$f":"'Weekly Totals'!E52","v":0},{"$f":"'Weekly Totals'!F52","v":0},{"$f":"'Weekly Totals'!G52","v":0},{"$f":"'Weekly Totals'!H52","v":0},{"$f":"'Weekly Totals'!I52","v":0},{"$f":"'Weekly Totals'!J52","v":0},{"$f":"'Weekly Totals'!K52","v":0},{"$f":"'Weekly Totals'!L52","v":0},{"$f":"'Weekly Totals'!M52","v":0},{"$f":"'Weekly Totals'!N52","v":0},{"$f":"'Weekly Totals'!O52","v":0}]
[null,null,null,null,null,null,null,null,null,null,null,null,null,null,null,null,null,null,"PT Hour",{"$f":"'Weekly Totals'!D14","v":0},{"$f":"'Weekly Totals'!E14","v":0},{"$f":"'Weekly Totals'!F14","v":0},{"$f":"'Weekly Totals'!G14","v":0},{"$f":"'Weekly Totals'!H14","v":0},{"$f":"'Weekly Totals'!I14","v":0},{"$f":"'Weekly Totals'!J14","v":0},{"$f":"'Weekly Totals'!K14","v":0},{"$f":"'Weekly Totals'!L14","v":0},{"$f":"'Weekly Totals'!M14","v":0},{"$f":"'Weekly Totals'!N14","v":0},{"$f":"'Weekly Totals'!O14","v":0},null,null,null,null,"PT Hour",{"$f":"'Weekly Totals'!D30","v":0},{"$f":"'Weekly Totals'!E30","v":0},{"$f":"'Weekly Totals'!F30","v":0},{"$f":"'Weekly Totals'!G30","v":0},{"$f":"'Weekly Totals'!H30","v":0},{"$f":"'Weekly Totals'!I30","v":0},{"$f":"'Weekly Totals'!J30","v":0},{"$f":"'Weekly Totals'!K30","v":0},{"$f":"'Weekly Totals'!L30","v":0},{"$f":"'Weekly Totals'!M30","v":0},{"$f":"'Weekly Totals'!N30","v":0},{"$f":"'Weekly Totals'!O30","v":0},null,null,null,null,"PT Hour",{"$f":"'Weekly Totals'!D46","v":0},{"$f":"'Weekly Totals'!E46","v":0},{"$f":"'Weekly Totals'!F46","v":0},{"$f":"'Weekly Totals'!G46","v":0},{"$f":"'Weekly Totals'!H46","v":0},{"$f":"'Weekly Totals'!I46","v":0},{"$f":"'Weekly Totals'!J46","v":0},{"$f":"'Weekly Totals'!K46","v":0},{"$f":"'Weekly Totals'!L46","v":0},{"$f":"'Weekly Totals'!M46","v":0},{"$f":"'Weekly Totals'!N46","v":0},{"$f":"'Weekly Totals'!O46","v":0}]
[null,null,null,null,null,null,null,null,null,null,null,null,null,null,null,null,null,null,"Pass/PT Hour",{"$f":"T61/T62","v":{"$error":"#DIV/0!"}},{"$error":"#DIV/0!"},{"$error":"#DIV/0!"},{"$error":"#DIV/0!"},{"$error":"#DIV/0!"},{"$error":"#DIV/0!"},{"$error":"#DIV/0!"},{"$error":"#DIV/0!"},{"$error":"#DIV/0!"},{"$error":"#DIV/0!"},{"$error":"#DIV/0!"},{"$error":"#DIV/0!"},null,null,null,null,"Pass/PT Hour",{"$f":"AK61/AK62","v":{"$error":"#DIV/0!"}},{"$error":"#DIV/0!"},{"$error":"#DIV/0!"},{"$error":"#DIV/0!"},{"$error":"#DIV/0!"},{"$error":"#DIV/0!"},{"$error":"#DIV/0!"},{"$error":"#DIV/0!"},{"$error":"#DIV/0!"},{"$error":"#DIV/0!"},{"$error":"#DIV/0!"},{"$error":"#DIV/0!"},null,null,null,null,"Pass/PT Hour",{"$f":"BB61/BB62","v":{"$error":"#DIV/0!"}},{"$error":"#DIV/0!"},{"$error":"#DIV/0!"},{"$error":"#DIV/0!"},{"$error":"#DIV/0!"},{"$error":"#DIV/0!"},{"$error":"#DIV/0!"},{"$error":"#DIV/0!"},{"$error":"#DIV/0!"},{"$error":"#DIV/0!"},{"$error":"#DIV/0!"},{"$error":"#DIV/0!"}]
[]
[]
[]
[]
[]
[]
[]
[]
[]
[]
["Passengers per Operating Day"]
[]
[]
[]
[null,null,null,null,null,null,null,null,null,null,null,null,null,null,null,null,null,null,null,null,null,null,null,null,null,null,null,null,null,null,null,null,null,null,null,null,"Transit Passengers Per Operating Day (Sunday)"]
[null,null,"Transit Passengers Per Operating Day (Weekday)",null,null,null,null,null,null,null,null,null,null,null,null,null,null,null,null,null,null,null,null,null,null,null,null,null,null,null,null,null,null,null,null,null,"Month",{"$f":"Sunday!D3","v":"July"},{"$f":"Sunday!E3","v":"August"},{"$f":"Sunday!F3","v":"September"},{"$f":"Sunday!G3","v":"October"},{"$f":"Sunday!H3","v":"November"},{"$f":"Sunday!I3","v":"December"},{"$f":"Sunday!J3","v":"January"},{"$f":"Sunday!K3","v":"February"},{"$f":"Sunday!L3","v":"March"},{"$f":"Sunday!M3","v":"April"},{"$f":"Sunday!N3","v":"May"},{"$f":"Sunday!O3","v":"June"}]
[null,null,"Month",{"$f":"Weekday!D3","v":"July"},{"$f":"Weekday!E3","v":"August"},{"$f":"Weekday!F3","v":"September"},{"$f":"Weekday!G3","v":"October"},{"$f":"Weekday!H3","v":"November"},{"$f":"Weekday!I3","v":"December"},{"$f":"Weekday!J3","v":"January"},{"$f":"Weekday!K3","v":"February"},{"$f":"Weekday!L3","v":"March"},{"$f":"Weekday!M3","v":"April"},{"$f":"Weekday!N3","v":"May"},{"$f":"Weekday!O3","v":"June"},null,null,null,null,"Transit Passengers Per Operating Day (Saturday)",null,null,null,null,null,null,null,null,null,null,null,null,null,null,null,null,"Tot Pass",{"$f":"Sunday!D60","v":0},{"$f":"Sunday!E60","v":0},{"$f":"Sunday!F60","v":0},{"$f":"Sunday!G60","v":0},{"$f":"Sunday!H60","v":0},{"$f":"Sunday!I60","v":0},{"$f":"Sunday!J60","v":0},{"$f":"Sunday!K60","v":0},{"$f":"Sunday!L60","v":0},{"$f":"Sunday!M60","v":0},{"$f":"Sunday!N60","v":0},{"$f":"Sunday!O60","v":0}]
[null,null,"Tot Pass",{"$f":"Weekday!D60","v":0},{"$f":"Weekday!E60","v":0},{"$f":"Weekday!F60","v":0},{"$f":"Weekday!G60","v":0},{"$f":"Weekday!H60","v":0},{"$f":"Weekday!I60","v":0},{"$f":"Weekday!J60","v":0},{"$f":"Weekday!K60","v":0},{"$f":"Weekday!L60","v":0},{"$f":"Weekday!M60","v":0},{"$f":"Weekday!N60","v":0},{"$f":"Weekday!O60","v":0},null,null,null,null,"Month",{"$f":"Saturday!D3","v":"July"},{"$f":"Saturday!E3","v":"August"},{"$f":"Saturday!F3","v":"September"},{"$f":"Saturday!G3","v":"October"},{"$f":"Saturday!H3","v":"November"},{"$f":"Saturday!I3","v":"December"},{"$f":"Saturday!J3","v":"January"},{"$f":"Saturday!K3","v":"February"},{"$f":"Saturday!L3","v":"March"},{"$f":"Saturday!M3","v":"April"},{"$f":"Saturday!N3","v":"May"},{"$f":"Saturday!O3","v":"June"},null,null,null,null,"DO Pass",{"$f":"Sunday!D12+Sunday!D28+Sunday!D44","v":0},{"$f":"Sunday!E12+Sunday!E28+Sunday!E44","v":0},{"$f":"Sunday!F12+Sunday!F28+Sunday!F44","v":0},{"$f":"Sunday!G12+Sunday!G28+Sunday!G44","v":0},{"$f":"Sunday!H12+Sunday!H28+Sunday!H44","v":0},{"$f":"Sunday!I12+Sunday!I28+Sunday!I44","v":0},{"$f":"Sunday!J12+Sunday!J28+Sunday!J44","v":0},{"$f":"Sunday!K12+Sunday!K28+Sunday!K44","v":0},{"$f":"Sunday!L12+Sunday!L28+Sunday!L44","v":0},{"$f":"Sunday!M12+Sunday!M28+Sunday!M44","v":0},{"$f":"Sunday!N12+Sunday!N28+Sunday!N44","v":0},{"$f":"Sunday!O12+Sunday!O28+Sunday!O44","v":0}]
[null,null,"DO Pass",{"$f":"Weekday!D12+Weekday!D28+Weekday!D44","v":0},{"$f":"Weekday!E12+Weekday!E28+Weekday!E44","v":0},{"$f":"Weekday!F12+Weekday!F28+Weekday!F44","v":0},{"$f":"Weekday!G12+Weekday!G28+Weekday!G44","v":0},{"$f":"Weekday!H12+Weekday!H28+Weekday!H44","v":0},{"$f":"Weekday!I12+Weekday!I28+Weekday!I44","v":0},{"$f":"Weekday!J12+Weekday!J28+Weekday!J44","v":0},{"$f":"Weekday!K12+Weekday!K28+Weekday!K44","v":0},{"$f":"Weekday!L12+Weekday!L28+Weekday!L44","v":0},{"$f":"Weekday!M12+Weekday!M28+Weekday!M44","v":0},{"$f":"Weekday!N12+Weekday!N28+Weekday!N44","v":0},{"$f":"Weekday!O12+Weekday!O28+Weekday!O44","v":0},null,null,null,null,"Tot Pass",{"$f":"Saturday!D60","v":0},{"$f":"Saturday!E60","v":0},{"$f":"Saturday!F60","v":0},{"$f":"Saturday!G60","v":0},{"$f":"Saturday!H60","v":0},{"$f":"Saturday!I60","v":0},{"$f":"Saturday!J60","v":0},{"$f":"Saturday!K60","v":0},{"$f":"Saturday!L60","v":0},{"$f":"Saturday!M60","v":0},{"$f":"Saturday!N60","v":0},{"$f":"Saturday!O60","v":0},null,null,null,null,"PT Pass",{"$f":"Sunday!D20+Sunday!D36+Sunday!D52","v":0},{"$f":"Sunday!E20+Sunday!E36+Sunday!E52","v":0},{"$f":"Sunday!F20+Sunday!F36+Sunday!F52","v":0},{"$f":"Sunday!G20+Sunday!G36+Sunday!G52","v":0},{"$f":"Sunday!H20+Sunday!H36+Sunday!H52","v":0},{"$f":"Sunday!I20+Sunday!I36+Sunday!I52","v":0},{"$f":"Sunday!J20+Sunday!J36+Sunday!J52","v":0},{"$f":"Sunday!K20+Sunday!K36+Sunday!K52","v":0},{"$f":"Sunday!L20+Sunday!L36+Sunday!L52","v":0},{"$f":"Sunday!M20+Sunday!M36+Sunday!M52","v":0},{"$f":"Sunday!N20+Sunday!N36+Sunday!N52","v":0},{"$f":"Sunday!O20+Sunday!O36+Sunday!O52","v":0}]
[null,null,"PT Pass",{"$f":"Weekday!D20+Weekday!D36+Weekday!D52","v":0},{"$f":"Weekday!E20+Weekday!E36+Weekday!E52","v":0},{"$f":"Weekday!F20+Weekday!F36+Weekday!F52","v":0},{"$f":"Weekday!G20+Weekday!G36+Weekday!G52","v":0},{"$f":"Weekday!H20+Weekday!H36+Weekday!H52","v":0},{"$f":"Weekday!I20+Weekday!I36+Weekday!I52","v":0},{"$f":"Weekday!J20+Weekday!J36+Weekday!J52","v":0},{"$f":"Weekday!K20+Weekday!K36+Weekday!K52","v":0},{"$f":"Weekday!L20+Weekday!L36+Weekday!L52","v":0},{"$f":"Weekday!M20+Weekday!M36+Weekday!M52","v":0},{"$f":"Weekday!N20+Weekday!N36+Weekday!N52","v":0},{"$f":"Weekday!O20+Weekday!O36+Weekday!O52","v":0},null,null,null,null,"DO Pass",{"$f":"Saturday!D12+Saturday!D28+Saturday!D44","v":0},{"$f":"Saturday!E12+Saturday!E28+Saturday!E44","v":0},{"$f":"Saturday!F12+Saturday!F28+Saturday!F44","v":0},{"$f":"Saturday!G12+Saturday!G28+Saturday!G44","v":0},{"$f":"Saturday!H12+Saturday!H28+Saturday!H44","v":0},{"$f":"Saturday!I12+Saturday!I28+Saturday!I44","v":0},{"$f":"Saturday!J12+Saturday!J28+Saturday!J44","v":0},{"$f":"Saturday!K12+Saturday!K28+Saturday!K44","v":0},{"$f":"Saturday!L12+Saturday!L28+Saturday!L44","v":0},{"$f":"Saturday!M12+Saturday!M28+Saturday!M44","v":0},{"$f":"Saturday!N12+Saturday!N28+Saturday!N44","v":0},{"$f":"Saturday!O12+Saturday!O28+Saturday!O44","v":0},null,null,null,null,"Sundays",{"$f":"Sunday!D4","v":0},{"$f":"Sunday!E4","v":0},{"$f":"Sunday!F4","v":0},{"$f":"Sunday!G4","v":0},{"$f":"Sunday!H4","v":0},{"$f":"Sunday!I4","v":0},{"$f":"Sunday!J4","v":0},{"$f":"Sunday!K4","v":0},{"$f":"Sunday!L4","v":0},{"$f":"Sunday!M4","v":0},{"$f":"Sunday!N4","v":0},{"$f":"Sunday!O4","v":0}]
[null,null,"Weekdays",{"$f":"Weekday!D4","v":0},{"$f":"Weekday!E4","v":0},{"$f":"Weekday!F4","v":0},{"$f":"Weekday!G4","v":0},{"$f":"Weekday!H4","v":0},{"$f":"Weekday!I4","v":0},{"$f":"Weekday!J4","v":0},{"$f":"Weekday!K4","v":0},{"$f":"Weekday!L4","v":0},{"$f":"Weekday!M4","v":0},{"$f":"Weekday!N4","v":0},{"$f":"Weekday!O4","v":0},null,null,null,null,"PT Pass",{"$f":"Saturday!D20+Saturday!D36+Saturday!D52","v":0},{"$f":"Saturday!E20+Saturday!E36+Saturday!E52","v":0},{"$f":"Saturday!F20+Saturday!F36+Saturday!F52","v":0},{"$f":"Saturday!G20+Saturday!G36+Saturday!G52","v":0},{"$f":"Saturday!H20+Saturday!H36+Saturday!H52","v":0},{"$f":"Saturday!I20+Saturday!I36+Saturday!I52","v":0},{"$f":"Saturday!J20+Saturday!J36+Saturday!J52","v":0},{"$f":"Saturday!K20+Saturday!K36+Saturday!K52","v":0},{"$f":"Saturday!L20+Saturday!L36+Saturday!L52","v":0},{"$f":"Saturday!M20+Saturday!M36+Saturday!M52","v":0},{"$f":"Saturday!N20+Saturday!N36+Saturday!N52","v":0},{"$f":"Saturday!O20+Saturday!O36+Saturday!O52","v":0},null,null,null,null,"Tot Pass/Day",{"$f":"AL80/AL83","v":{"$error":"#DIV/0!"}},{"$f":"AM80/AM83","v":{"$error":"#DIV/0!"}},{"$error":"#DIV/0!"},{"$error":"#DIV/0!"},{"$error":"#DIV/0!"},{"$error":"#DIV/0!"},{"$error":"#DIV/0!"},{"$error":"#DIV/0!"},{"$error":"#DIV/0!"},{"$error":"#DIV/0!"},{"$error":"#DIV/0!"},{"$error":"#DIV/0!"}]
[null,null,"Tot Pass/Day",{"$f":"D81/D84","v":{"$error":"#DIV/0!"}},{"$error":"#DIV/0!"},{"$error":"#DIV/0!"},{"$error":"#DIV/0!"},{"$error":"#DIV/0!"},{"$error":"#DIV/0!"},{"$error":"#DIV/0!"},{"$error":"#DIV/0!"},{"$error":"#DIV/0!"},{"$error":"#DIV/0!"},{"$error":"#DIV/0!"},{"$error":"#DIV/0!"},null,null,null,null,"Saturday",{"$f":"Saturday!D4","v":0},{"$f":"Saturday!E4","v":0},{"$f":"Saturday!F4","v":0},{"$f":"Saturday!G4","v":0},{"$f":"Saturday!H4","v":0},{"$f":"Saturday!I4","v":0},{"$f":"Saturday!J4","v":0},{"$f":"Saturday!K4","v":0},{"$f":"Saturday!L4","v":0},{"$f":"Saturday!M4","v":0},{"$f":"Saturday!N4","v":0},{"$f":"Saturday!O4","v":0},null,null,null,null,"DO  Pass/Day",{"$f":"AL81/AL83","v":{"$error":"#DIV/0!"}},{"$f":"AM81/AM83","v":{"$error":"#DIV/0!"}},{"$error":"#DIV/0!"},{"$error":"#DIV/0!"},{"$error":"#DIV/0!"},{"$error":"#DIV/0!"},{"$error":"#DIV/0!"},{"$error":"#DIV/0!"},{"$error":"#DIV/0!"},{"$error":"#DIV/0!"},{"$error":"#DIV/0!"},{"$error":"#DIV/0!"}]
[null,null,"DO  Pass/Day",{"$f":"D82/D84","v":{"$error":"#DIV/0!"}},{"$error":"#DIV/0!"},{"$error":"#DIV/0!"},{"$error":"#DIV/0!"},{"$error":"#DIV/0!"},{"$error":"#DIV/0!"},{"$error":"#DIV/0!"},{"$error":"#DIV/0!"},{"$error":"#DIV/0!"},{"$error":"#DIV/0!"},{"$error":"#DIV/0!"},{"$error":"#DIV/0!"},null,null,null,null,"Tot Pass/Day",{"$f":"U82/U85","v":{"$error":"#DIV/0!"}},{"$f":"V82/V85","v":{"$error":"#DIV/0!"}},{"$error":"#DIV/0!"},{"$error":"#DIV/0!"},{"$error":"#DIV/0!"},{"$error":"#DIV/0!"},{"$error":"#DIV/0!"},{"$error":"#DIV/0!"},{"$error":"#DIV/0!"},{"$error":"#DIV/0!"},{"$error":"#DIV/0!"},{"$error":"#DIV/0!"},null,null,null,null,"PT Pass/Day",{"$f":"AL82/AL83","v":{"$error":"#DIV/0!"}},{"$f":"AM82/AM83","v":{"$error":"#DIV/0!"}},{"$error":"#DIV/0!"},{"$error":"#DIV/0!"},{"$error":"#DIV/0!"},{"$error":"#DIV/0!"},{"$error":"#DIV/0!"},{"$error":"#DIV/0!"},{"$error":"#DIV/0!"},{"$error":"#DIV/0!"},{"$error":"#DIV/0!"},{"$error":"#DIV/0!"}]
[null,null,"PT Pass/Day",{"$f":"D83/D84","v":{"$error":"#DIV/0!"}},{"$error":"#DIV/0!"},{"$error":"#DIV/0!"},{"$error":"#DIV/0!"},{"$error":"#DIV/0!"},{"$error":"#DIV/0!"},{"$error":"#DIV/0!"},{"$error":"#DIV/0!"},{"$error":"#DIV/0!"},{"$error":"#DIV/0!"},{"$error":"#DIV/0!"},{"$error":"#DIV/0!"},null,null,null,null,"DO  Pass/Day",{"$f":"U83/U85","v":{"$error":"#DIV/0!"}},{"$f":"V83/V85","v":{"$error":"#DIV/0!"}},{"$error":"#DIV/0!"},{"$error":"#DIV/0!"},{"$error":"#DIV/0!"},{"$error":"#DIV/0!"},{"$error":"#DIV/0!"},{"$error":"#DIV/0!"},{"$error":"#DIV/0!"},{"$error":"#DIV/0!"},{"$error":"#DIV/0!"},{"$error":"#DIV/0!"}]
[null,null,null,null,null,null,null,null,null,null,null,null,null,null,null,null,null,null,null,"PT Pass/Day",{"$f":"U84/U85","v":{"$error":"#DIV/0!"}},{"$f":"V84/V85","v":{"$error":"#DIV/0!"}},{"$error":"#DIV/0!"},{"$error":"#DIV/0!"},{"$error":"#DIV/0!"},{"$error":"#DIV/0!"},{"$error":"#DIV/0!"},{"$error":"#DIV/0!"},{"$error":"#DIV/0!"},{"$error":"#DIV/0!"},{"$error":"#DIV/0!"},{"$error":"#DIV/0!"}]
[]
[]
[]
[]
[]
[]
[]
[]
[]
[]
[]
[]
[]
[]
[]
[]
["Miles Per Hour",null,null,null,null,null,null,null,null,null,null,null,null,null,null,null,null,null,"Miles per Hour (Saturday)"]
[null,null,null,null,null,null,null,null,null,null,null,null,null,null,null,null,null,null,null,{"$f":"Saturday!D3","v":"July"},{"$f":"Saturday!E3","v":"August"},{"$f":"Saturday!F3","v":"September"},{"$f":"Saturday!G3","v":"October"},{"$f":"Saturday!H3","v":"November"},{"$f":"Saturday!I3","v":"December"},{"$f":"Saturday!J3","v":"January"},{"$f":"Saturday!K3","v":"February"},{"$f":"Saturday!L3","v":"March"},{"$f":"Saturday!M3","v":"April"},{"$f":"Saturday!N3","v":"May"},{"$f":"Saturday!O3","v":"June"},null,null,null,null,"Miles per Hour (Sunday)"]
[null,null,null,null,null,null,null,null,null,null,null,null,null,null,null,null,null,null,"DR DO",{"$f":"Saturday!D7/Saturday!D6","v":{"$error":"#DIV/0!"}},{"$f":"Saturday!E7/Saturday!E6","v":{"$error":"#DIV/0!"}},{"$f":"Saturday!F7/Saturday!F6","v":{"$error":"#DIV/0!"}},{"$f":"Saturday!G7/Saturday!G6","v":{"$error":"#DIV/0!"}},{"$f":"Saturday!H7/Saturday!H6","v":{"$error":"#DIV/0!"}},{"$f":"Saturday!I7/Saturday!I6","v":{"$error":"#DIV/0!"}},{"$f":"Saturday!J7/Saturday!J6","v":{"$error":"#DIV/0!"}},{"$f":"Saturday!K7/Saturday!K6","v":{"$error":"#DIV/0!"}},{"$f":"Saturday!L7/Saturday!L6","v":{"$error":"#DIV/0!"}},{"$f":"Saturday!M7/Saturday!M6","v":{"$error":"#DIV/0!"}},{"$f":"Saturday!N7/Saturday!N6","v":{"$error":"#DIV/0!"}},{"$f":"Saturday!O7/Saturday!O6","v":{"$error":"#DIV/0!"}},null,null,null,null,null,{"$f":"Sunday!D3","v":"July"},{"$f":"Sunday!E3","v":"August"},{"$f":"Sunday!F3","v":"September"},{"$f":"Sunday!G3","v":"October"},{"$f":"Sunday!H3","v":"November"},{"$f":"Sunday!I3","v":"December"},{"$f":"Sunday!J3","v":"January"},{"$f":"Sunday!K3","v":"February"},{"$f":"Sunday!L3","v":"March"},{"$f":"Sunday!M3","v":"April"},{"$f":"Sunday!N3","v":"May"},{"$f":"Sunday!O3","v":"June"}]
[null,null,"Miles per Hour (Weekday)",null,null,null,null,null,null,null,null,null,null,null,null,null,null,null,"DR PT",{"$f":"Saturday!D15/Saturday!D14","v":{"$error":"#DIV/0!"}},{"$f":"Saturday!E15/Saturday!E14","v":{"$error":"#DIV/0!"}},{"$f":"Saturday!F15/Saturday!F14","v":{"$error":"#DIV/0!"}},{"$f":"Saturday!G15/Saturday!G14","v":{"$error":"#DIV/0!"}},{"$f":"Saturday!H15/Saturday!H14","v":{"$error":"#DIV/0!"}},{"$f":"Saturday!I15/Saturday!I14","v":{"$error":"#DIV/0!"}},{"$f":"Saturday!J15/Saturday!J14","v":{"$error":"#DIV/0!"}},{"$f":"Saturday!K15/Saturday!K14","v":{"$error":"#DIV/0!"}},{"$f":"Saturday!L15/Saturday!L14","v":{"$error":"#DIV/0!"}},{"$f":"Saturday!M15/Saturday!M14","v":{"$error":"#DIV/0!"}},{"$f":"Saturday!N15/Saturday!N14","v":{"$error":"#DIV/0!"}},{"$f":"Saturday!O15/Saturday!O14","v":{"$error":"#DIV/0!"}},null,null,null,null,"DR DO",{"$f":"Sunday!D7/Sunday!D6","v":{"$error":"#DIV/0!"}},{"$f":"Sunday!E7/Sunday!E6","v":{"$error":"#DIV/0!"}},{"$f":"Sunday!F7/Sunday!F6","v":{"$error":"#DIV/0!"}},{"$f":"Sunday!G7/Sunday!G6","v":{"$error":"#DIV/0!"}},{"$f":"Sunday!H7/Sunday!H6","v":{"$error":"#DIV/0!"}},{"$f":"Sunday!I7/Sunday!I6","v":{"$error":"#DIV/0!"}},{"$f":"Sunday!J7/Sunday!J6","v":{"$error":"#DIV/0!"}},{"$f":"Sunday!K7/Sunday!K6","v":{"$error":"#DIV/0!"}},{"$f":"Sunday!L7/Sunday!L6","v":{"$error":"#DIV/0!"}},{"$f":"Sunday!M7/Sunday!M6","v":{"$error":"#DIV/0!"}},{"$f":"Sunday!N7/Sunday!N6","v":{"$error":"#DIV/0!"}},{"$f":"Sunday!O7/Sunday!O6","v":{"$error":"#DIV/0!"}}]
[null,null,null,{"$f":"'Weekly Totals'!D3","v":"July"},{"$f":"'Weekly Totals'!E3","v":"August"},{"$f":"'Weekly Totals'!F3","v":"September"},{"$f":"'Weekly Totals'!G3","v":"October"},{"$f":"'Weekly Totals'!H3","v":"November"},{"$f":"'Weekly Totals'!I3","v":"December"},{"$f":"'Weekly Totals'!J3","v":"January"},{"$f":"'Weekly Totals'!K3","v":"February"},{"$f":"'Weekly Totals'!L3","v":"March"},{"$f":"'Weekly Totals'!M3","v":"April"},{"$f":"'Weekly Totals'!N3","v":"May"},{"$f":"'Weekly Totals'!O3","v":"June"},null,null,null,"MB DO",{"$f":"Saturday!D23/Saturday!D22","v":{"$error":"#DIV/0!"}},{"$f":"Saturday!E23/Saturday!E22","v":{"$error":"#DIV/0!"}},{"$f":"Saturday!F23/Saturday!F22","v":{"$error":"#DIV/0!"}},{"$f":"Saturday!G23/Saturday!G22","v":{"$error":"#DIV/0!"}},{"$f":"Saturday!H23/Saturday!H22","v":{"$error":"#DIV/0!"}},{"$f":"Saturday!I23/Saturday!I22","v":{"$error":"#DIV/0!"}},{"$f":"Saturday!J23/Saturday!J22","v":{"$error":"#DIV/0!"}},{"$f":"Saturday!K23/Saturday!K22","v":{"$error":"#DIV/0!"}},{"$f":"Saturday!L23/Saturday!L22","v":{"$error":"#DIV/0!"}},{"$f":"Saturday!M23/Saturday!M22","v":{"$error":"#DIV/0!"}},{"$f":"Saturday!N23/Saturday!N22","v":{"$error":"#DIV/0!"}},{"$f":"Saturday!O23/Saturday!O22","v":{"$error":"#DIV/0!"}},null,null,null,null,"DR PT",{"$f":"Sunday!D15/Sunday!D14","v":{"$error":"#DIV/0!"}},{"$f":"Sunday!E15/Sunday!E14","v":{"$error":"#DIV/0!"}},{"$f":"Sunday!F15/Sunday!F14","v":{"$error":"#DIV/0!"}},{"$f":"Sunday!G15/Sunday!G14","v":{"$error":"#DIV/0!"}},{"$f":"Sunday!H15/Sunday!H14","v":{"$error":"#DIV/0!"}},{"$f":"Sunday!I15/Sunday!I14","v":{"$error":"#DIV/0!"}},{"$f":"Sunday!J15/Sunday!J14","v":{"$error":"#DIV/0!"}},{"$f":"Sunday!K15/Sunday!K14","v":{"$error":"#DIV/0!"}},{"$f":"Sunday!L15/Sunday!L14","v":{"$error":"#DIV/0!"}},{"$f":"Sunday!M15/Sunday!M14","v":{"$error":"#DIV/0!"}},{"$f":"Sunday!N15/Sunday!N14","v":{"$error":"#DIV/0!"}},{"$f":"Sunday!O15/Sunday!O14","v":{"$error":"#DIV/0!"}}]
[null,null,"DRDO",{"$f":"'Weekly Totals'!D7/'Weekly Totals'!D6","v":{"$error":"#DIV/0!"}},{"$f":"'Weekly Totals'!E7/'Weekly Totals'!E6","v":{"$error":"#DIV/0!"}},{"$f":"'Weekly Totals'!F7/'Weekly Totals'!F6","v":{"$error":"#DIV/0!"}},{"$f":"'Weekly Totals'!G7/'Weekly Totals'!G6","v":{"$error":"#DIV/0!"}},{"$f":"'Weekly Totals'!H7/'Weekly Totals'!H6","v":{"$error":"#DIV/0!"}},{"$f":"'Weekly Totals'!I7/'Weekly Totals'!I6","v":{"$error":"#DIV/0!"}},{"$f":"'Weekly Totals'!J7/'Weekly Totals'!J6","v":{"$error":"#DIV/0!"}},{"$f":"'Weekly Totals'!K7/'Weekly Totals'!K6","v":{"$error":"#DIV/0!"}},{"$f":"'Weekly Totals'!L7/'Weekly Totals'!L6","v":{"$error":"#DIV/0!"}},{"$f":"'Weekly Totals'!M7/'Weekly Totals'!M6","v":{"$error":"#DIV/0!"}},{"$f":"'Weekly Totals'!N7/'Weekly Totals'!N6","v":{"$error":"#DIV/0!"}},{"$f":"'Weekly Totals'!O7/'Weekly Totals'!O6","v":{"$error":"#DIV/0!"}},null,null,null,"MB PT",{"$f":"Saturday!D31/Saturday!D30","v":{"$error":"#DIV/0!"}},{"$f":"Saturday!E31/Saturday!E30","v":{"$error":"#DIV/0!"}},{"$f":"Saturday!F31/Saturday!F30","v":{"$error":"#DIV/0!"}},{"$f":"Saturday!G31/Saturday!G30","v":{"$error":"#DIV/0!"}},{"$f":"Saturday!H31/Saturday!H30","v":{"$error":"#DIV/0!"}},{"$f":"Saturday!I31/Saturday!I30","v":{"$error":"#DIV/0!"}},{"$f":"Saturday!J31/Saturday!J30","v":{"$error":"#DIV/0!"}},{"$f":"Saturday!K31/Saturday!K30","v":{"$error":"#DIV/0!"}},{"$f":"Saturday!L31/Saturday!L30","v":{"$error":"#DIV/0!"}},{"$f":"Saturday!M31/Saturday!M30","v":{"$error":"#DIV/0!"}},{"$f":"Saturday!N31/Saturday!N30","v":{"$error":"#DIV/0!"}},{"$f":"Saturday!O31/Saturday!O30","v":{"$error":"#DIV/0!"}},null,null,null,null,"MB DO",{"$f":"Sunday!D23/Sunday!D22","v":{"$error":"#DIV/0!"}},{"$f":"Sunday!E23/Sunday!E22","v":{"$error":"#DIV/0!"}},{"$f":"Sunday!F23/Sunday!F22","v":{"$error":"#DIV/0!"}},{"$f":"Sunday!G23/Sunday!G22","v":{"$error":"#DIV/0!"}},{"$f":"Sunday!H23/Sunday!H22","v":{"$error":"#DIV/0!"}},{"$f":"Sunday!I23/Sunday!I22","v":{"$error":"#DIV/0!"}},{"$f":"Sunday!J23/Sunday!J22","v":{"$error":"#DIV/0!"}},{"$f":"Sunday!K23/Sunday!K22","v":{"$error":"#DIV/0!"}},{"$f":"Sunday!L23/Sunday!L22","v":{"$error":"#DIV/0!"}},{"$f":"Sunday!M23/Sunday!M22","v":{"$error":"#DIV/0!"}},{"$f":"Sunday!N23/Sunday!N22","v":{"$error":"#DIV/0!"}},{"$f":"Sunday!O23/Sunday!O22","v":{"$error":"#DIV/0!"}}]
[null,null,"DRPT",{"$f":"'Weekly Totals'!D15/'Weekly Totals'!D14","v":{"$error":"#DIV/0!"}},{"$f":"'Weekly Totals'!E15/'Weekly Totals'!E14","v":{"$error":"#DIV/0!"}},{"$f":"'Weekly Totals'!F15/'Weekly Totals'!F14","v":{"$error":"#DIV/0!"}},{"$f":"'Weekly Totals'!G15/'Weekly Totals'!G14","v":{"$error":"#DIV/0!"}},{"$f":"'Weekly Totals'!H15/'Weekly Totals'!H14","v":{"$error":"#DIV/0!"}},{"$f":"'Weekly Totals'!I15/'Weekly Totals'!I14","v":{"$error":"#DIV/0!"}},{"$f":"'Weekly Totals'!J15/'Weekly Totals'!J14","v":{"$error":"#DIV/0!"}},{"$f":"'Weekly Totals'!K15/'Weekly Totals'!K14","v":{"$error":"#DIV/0!"}},{"$f":"'Weekly Totals'!L15/'Weekly Totals'!L14","v":{"$error":"#DIV/0!"}},{"$f":"'Weekly Totals'!M15/'Weekly Totals'!M14","v":{"$error":"#DIV/0!"}},{"$f":"'Weekly Totals'!N15/'Weekly Totals'!N14","v":{"$error":"#DIV/0!"}},{"$f":"'Weekly Totals'!O15/'Weekly Totals'!O14","v":{"$error":"#DIV/0!"}},null,null,null,"MT DO",{"$f":"Saturday!D39/Saturday!D38","v":{"$error":"#DIV/0!"}},{"$f":"Saturday!E39/Saturday!E38","v":{"$error":"#DIV/0!"}},{"$f":"Saturday!F39/Saturday!F38","v":{"$error":"#DIV/0!"}},{"$f":"Saturday!G39/Saturday!G38","v":{"$error":"#DIV/0!"}},{"$f":"Saturday!H39/Saturday!H38","v":{"$error":"#DIV/0!"}},{"$f":"Saturday!I39/Saturday!I38","v":{"$error":"#DIV/0!"}},{"$f":"Saturday!J39/Saturday!J38","v":{"$error":"#DIV/0!"}},{"$f":"Saturday!K39/Saturday!K38","v":{"$error":"#DIV/0!"}},{"$f":"Saturday!L39/Saturday!L38","v":{"$error":"#DIV/0!"}},{"$f":"Saturday!M39/Saturday!M38","v":{"$error":"#DIV/0!"}},{"$f":"Saturday!N39/Saturday!N38","v":{"$error":"#DIV/0!"}},{"$f":"Saturday!O39/Saturday!O38","v":{"$error":"#DIV/0!"}},null,null,null,null,"MB PT",{"$f":"Sunday!D31/Sunday!D30","v":{"$error":"#DIV/0!"}},{"$f":"Sunday!E31/Sunday!E30","v":{"$error":"#DIV/0!"}},{"$f":"Sunday!F31/Sunday!F30","v":{"$error":"#DIV/0!"}},{"$f":"Sunday!G31/Sunday!G30","v":{"$error":"#DIV/0!"}},{"$f":"Sunday!H31/Sunday!H30","v":{"$error":"#DIV/0!"}},{"$f":"Sunday!I31/Sunday!I30","v":{"$error":"#DIV/0!"}},{"$f":"Sunday!J31/Sunday!J30","v":{"$error":"#DIV/0!"}},{"$f":"Sunday!K31/Sunday!K30","v":{"$error":"#DIV/0!"}},{"$f":"Sunday!L31/Sunday!L30","v":{"$error":"#DIV/0!"}},{"$f":"Sunday!M31/Sunday!M30","v":{"$error":"#DIV/0!"}},{"$f":"Sunday!N31/Sunday!N30","v":{"$error":"#DIV/0!"}},{"$f":"Sunday!O31/Sunday!O30","v":{"$error":"#DIV/0!"}}]
[null,null,"MBDO",{"$f":"'Weekly Totals'!D23/'Weekly Totals'!D22","v":{"$error":"#DIV/0!"}},{"$f":"'Weekly Totals'!E23/'Weekly Totals'!E22","v":{"$error":"#DIV/0!"}},{"$f":"'Weekly Totals'!F23/'Weekly Totals'!F22","v":{"$error":"#DIV/0!"}},{"$f":"'Weekly Totals'!G23/'Weekly Totals'!G22","v":{"$error":"#DIV/0!"}},{"$f":"'Weekly Totals'!H23/'Weekly Totals'!H22","v":{"$error":"#DIV/0!"}},{"$f":"'Weekly Totals'!I23/'Weekly Totals'!I22","v":{"$error":"#DIV/0!"}},{"$f":"'Weekly Totals'!J23/'Weekly Totals'!J22","v":{"$error":"#DIV/0!"}},{"$f":"'Weekly Totals'!K23/'Weekly Totals'!K22","v":{"$error":"#DIV/0!"}},{"$f":"'Weekly Totals'!L23/'Weekly Totals'!L22","v":{"$error":"#DIV/0!"}},{"$f":"'Weekly Totals'!M23/'Weekly Totals'!M22","v":{"$error":"#DIV/0!"}},{"$f":"'Weekly Totals'!N23/'Weekly Totals'!N22","v":{"$error":"#DIV/0!"}},{"$f":"'Weekly Totals'!O23/'Weekly Totals'!O22","v":{"$error":"#DIV/0!"}},null,null,null,"MT PT",{"$f":"Saturday!D47/Saturday!D46","v":{"$error":"#DIV/0!"}},{"$f":"Saturday!E47/Saturday!E46","v":{"$error":"#DIV/0!"}},{"$f":"Saturday!F47/Saturday!F46","v":{"$error":"#DIV/0!"}},{"$f":"Saturday!G47/Saturday!G46","v":{"$error":"#DIV/0!"}},{"$f":"Saturday!H47/Saturday!H46","v":{"$error":"#DIV/0!"}},{"$f":"Saturday!I47/Saturday!I46","v":{"$error":"#DIV/0!"}},{"$f":"Saturday!J47/Saturday!J46","v":{"$error":"#DIV/0!"}},{"$f":"Saturday!K47/Saturday!K46","v":{"$error":"#DIV/0!"}},{"$f":"Saturday!L47/Saturday!L46","v":{"$error":"#DIV/0!"}},{"$f":"Saturday!M47/Saturday!M46","v":{"$error":"#DIV/0!"}},{"$f":"Saturday!N47/Saturday!N46","v":{"$error":"#DIV/0!"}},{"$f":"Saturday!O47/Saturday!O46","v":{"$error":"#DIV/0!"}},null,null,null,null,"MT DO",{"$f":"Sunday!D39/Sunday!D38","v":{"$error":"#DIV/0!"}},{"$f":"Sunday!E39/Sunday!E38","v":{"$error":"#DIV/0!"}},{"$f":"Sunday!F39/Sunday!F38","v":{"$error":"#DIV/0!"}},{"$f":"Sunday!G39/Sunday!G38","v":{"$error":"#DIV/0!"}},{"$f":"Sunday!H39/Sunday!H38","v":{"$error":"#DIV/0!"}},{"$f":"Sunday!I39/Sunday!I38","v":{"$error":"#DIV/0!"}},{"$f":"Sunday!J39/Sunday!J38","v":{"$error":"#DIV/0!"}},{"$f":"Sunday!K39/Sunday!K38","v":{"$error":"#DIV/0!"}},{"$f":"Sunday!L39/Sunday!L38","v":{"$error":"#DIV/0!"}},{"$f":"Sunday!M39/Sunday!M38","v":{"$error":"#DIV/0!"}},{"$f":"Sunday!N39/Sunday!N38","v":{"$error":"#DIV/0!"}},{"$f":"Sunday!O39/Sunday!O38","v":{"$error":"#DIV/0!"}}]
[null,null,"MBPT",{"$f":"'Weekly Totals'!D31/'Weekly Totals'!D30","v":{"$error":"#DIV/0!"}},{"$f":"'Weekly Totals'!E31/'Weekly Totals'!E30","v":{"$error":"#DIV/0!"}},{"$f":"'Weekly Totals'!F31/'Weekly Totals'!F30","v":{"$error":"#DIV/0!"}},{"$f":"'Weekly Totals'!G31/'Weekly Totals'!G30","v":{"$error":"#DIV/0!"}},{"$f":"'Weekly Totals'!H31/'Weekly Totals'!H30","v":{"$error":"#DIV/0!"}},{"$f":"'Weekly Totals'!I31/'Weekly Totals'!I30","v":{"$error":"#DIV/0!"}},{"$f":"'Weekly Totals'!J31/'Weekly Totals'!J30","v":{"$error":"#DIV/0!"}},{"$f":"'Weekly Totals'!K31/'Weekly Totals'!K30","v":{"$error":"#DIV/0!"}},{"$f":"'Weekly Totals'!L31/'Weekly Totals'!L30","v":{"$error":"#DIV/0!"}},{"$f":"'Weekly Totals'!M31/'Weekly Totals'!M30","v":{"$error":"#DIV/0!"}},{"$f":"'Weekly Totals'!N31/'Weekly Totals'!N30","v":{"$error":"#DIV/0!"}},{"$f":"'Weekly Totals'!O31/'Weekly Totals'!O30","v":{"$error":"#DIV/0!"}},null,null,null,"TOTAL",{"$f":"Saturday!D55/Saturday!D54","v":{"$error":"#DIV/0!"}},{"$f":"Saturday!E55/Saturday!E54","v":{"$error":"#DIV/0!"}},{"$f":"Saturday!F55/Saturday!F54","v":{"$error":"#DIV/0!"}},{"$f":"Saturday!G55/Saturday!G54","v":{"$error":"#DIV/0!"}},{"$f":"Saturday!H55/Saturday!H54","v":{"$error":"#DIV/0!"}},{"$f":"Saturday!I55/Saturday!I54","v":{"$error":"#DIV/0!"}},{"$f":"Saturday!J55/Saturday!J54","v":{"$error":"#DIV/0!"}},{"$f":"Saturday!K55/Saturday!K54","v":{"$error":"#DIV/0!"}},{"$f":"Saturday!L55/Saturday!L54","v":{"$error":"#DIV/0!"}},{"$f":"Saturday!M55/Saturday!M54","v":{"$error":"#DIV/0!"}},{"$f":"Saturday!N55/Saturday!N54","v":{"$error":"#DIV/0!"}},{"$f":"Saturday!O55/Saturday!O54","v":{"$error":"#DIV/0!"}},null,null,null,null,"MT PT",{"$f":"Sunday!D47/Sunday!D46","v":{"$error":"#DIV/0!"}},{"$f":"Sunday!E47/Sunday!E46","v":{"$error":"#DIV/0!"}},{"$f":"Sunday!F47/Sunday!F46","v":{"$error":"#DIV/0!"}},{"$f":"Sunday!G47/Sunday!G46","v":{"$error":"#DIV/0!"}},{"$f":"Sunday!H47/Sunday!H46","v":{"$error":"#DIV/0!"}},{"$f":"Sunday!I47/Sunday!I46","v":{"$error":"#DIV/0!"}},{"$f":"Sunday!J47/Sunday!J46","v":{"$error":"#DIV/0!"}},{"$f":"Sunday!K47/Sunday!K46","v":{"$error":"#DIV/0!"}},{"$f":"Sunday!L47/Sunday!L46","v":{"$error":"#DIV/0!"}},{"$f":"Sunday!M47/Sunday!M46","v":{"$error":"#DIV/0!"}},{"$f":"Sunday!N47/Sunday!N46","v":{"$error":"#DIV/0!"}},{"$f":"Sunday!O47/Sunday!O46","v":{"$error":"#DIV/0!"}}]
[null,null,"MTDO",{"$f":"Weekday!D39/Weekday!D38","v":{"$error":"#DIV/0!"}},{"$f":"Weekday!E39/Weekday!E38","v":{"$error":"#DIV/0!"}},{"$f":"Weekday!F39/Weekday!F38","v":{"$error":"#DIV/0!"}},{"$f":"Weekday!G39/Weekday!G38","v":{"$error":"#DIV/0!"}},{"$f":"Weekday!H39/Weekday!H38","v":{"$error":"#DIV/0!"}},{"$f":"Weekday!I39/Weekday!I38","v":{"$error":"#DIV/0!"}},{"$f":"Weekday!J39/Weekday!J38","v":{"$error":"#DIV/0!"}},{"$f":"Weekday!K39/Weekday!K38","v":{"$error":"#DIV/0!"}},{"$f":"Weekday!L39/Weekday!L38","v":{"$error":"#DIV/0!"}},{"$f":"Weekday!M39/Weekday!M38","v":{"$error":"#DIV/0!"}},{"$f":"Weekday!N39/Weekday!N38","v":{"$error":"#DIV/0!"}},{"$f":"Weekday!O39/Weekday!O38","v":{"$error":"#DIV/0!"}},null,null,null,null,null,null,null,null,null,null,null,null,null,null,null,null,null,null,null,null,"TOTAL",{"$f":"Sunday!D55/Sunday!D54","v":{"$error":"#DIV/0!"}},{"$f":"Sunday!E55/Sunday!E54","v":{"$error":"#DIV/0!"}},{"$f":"Sunday!F55/Sunday!F54","v":{"$error":"#DIV/0!"}},{"$f":"Sunday!G55/Sunday!G54","v":{"$error":"#DIV/0!"}},{"$f":"Sunday!H55/Sunday!H54","v":{"$error":"#DIV/0!"}},{"$f":"Sunday!I55/Sunday!I54","v":{"$error":"#DIV/0!"}},{"$f":"Sunday!J55/Sunday!J54","v":{"$error":"#DIV/0!"}},{"$f":"Sunday!K55/Sunday!K54","v":{"$error":"#DIV/0!"}},{"$f":"Sunday!L55/Sunday!L54","v":{"$error":"#DIV/0!"}},{"$f":"Sunday!M55/Sunday!M54","v":{"$error":"#DIV/0!"}},{"$f":"Sunday!N55/Sunday!N54","v":{"$error":"#DIV/0!"}},{"$f":"Sunday!O55/Sunday!O54","v":{"$error":"#DIV/0!"}}]
[null,null,"MTPT",{"$f":"Weekday!D47/Weekday!D46","v":{"$error":"#DIV/0!"}},{"$f":"Weekday!E47/Weekday!E46","v":{"$error":"#DIV/0!"}},{"$f":"Weekday!F47/Weekday!F46","v":{"$error":"#DIV/0!"}},{"$f":"Weekday!G47/Weekday!G46","v":{"$error":"#DIV/0!"}},{"$f":"Weekday!H47/Weekday!H46","v":{"$error":"#DIV/0!"}},{"$f":"Weekday!I47/Weekday!I46","v":{"$error":"#DIV/0!"}},{"$f":"Weekday!J47/Weekday!J46","v":{"$error":"#DIV/0!"}},{"$f":"Weekday!K47/Weekday!K46","v":{"$error":"#DIV/0!"}},{"$f":"Weekday!L47/Weekday!L46","v":{"$error":"#DIV/0!"}},{"$f":"Weekday!M47/Weekday!M46","v":{"$error":"#DIV/0!"}},{"$f":"Weekday!N47/Weekday!N46","v":{"$error":"#DIV/0!"}},{"$f":"Weekday!O47/Weekday!O46","v":{"$error":"#DIV/0!"}}]
[]
[]
[]
[]
[]
[]
[]
[]
[]
[]
[]
[]
[]
[]
[]
[]
[]
[]
["Trips by Contract Type"]
[]
[]
[null,null,null,"Non-Contract",{"$f":"'Weekly Totals'!T56","v":0},null,null,null,null,null,null,null,null,null,null,null,null,null,"Non-Contract",null,{"$f":"'Weekly Totals'!T8+'Weekly Totals'!T16","v":0},null,null,null,null,null,null,null,null,null,null,null,null,null,null,null,"Non-Contract",null,{"$f":"'Weekly Totals'!T24+'Weekly Totals'!T32","v":0},null,null,null,null,null,null,null,null,null,null,null,null,"Non-Contract",null,{"$f":"'Weekly Totals'!T40+'Weekly Totals'!T48","v":0}]
[null,null,null,"Medicaid Contract",{"$f":"'Weekly Totals'!T57","v":0},null,null,null,null,null,null,null,null,null,null,null,null,null,"Medicaid Contract",null,{"$f":"'Weekly Totals'!T9+'Weekly Totals'!T17","v":0},null,null,null,null,null,null,null,null,null,null,null,null,null,null,null,"Medicaid Contract",null,{"$f":"'Weekly Totals'!T25+'Weekly Totals'!T33","v":0},null,null,null,null,null,null,null,null,null,null,null,null,"Medicaid Contract",null,{"$f":"'Weekly Totals'!T41+'Weekly Totals'!T49","v":0}]
[null,null,null,"Non-Medicaid Contract",{"$f":"'Weekly Totals'!T58","v":0},null,null,null,null,null,null,null,null,null,null,null,null,null,"Non-Medicaid Contract",null,{"$f":"'Weekly Totals'!T10+'Weekly Totals'!T18","v":0},null,null,null,null,null,null,null,null,null,null,null,null,null,null,null,"Non-Medicaid Contract",null,{"$f":"'Weekly Totals'!T26+'Weekly Totals'!T34","v":0},null,null,null,null,null,null,null,null,null,null,null,null,"Non-Medicaid Contract",null,{"$f":"'Weekly Totals'!T42+'Weekly Totals'!T50","v":0}]
[null,null,null,"Brokered Medicaid Contract",{"$f":"'Weekly Totals'!T59","v":0},null,null,null,null,null,null,null,null,null,null,null,null,null,"Brokered Medicaid Contract",null,{"$f":"'Weekly Totals'!T11+'Weekly Totals'!T19","v":0},null,null,null,null,null,null,null,null,null,null,null,null,null,null,null,"Brokered Medicaid Contract",null,{"$f":"'Weekly Totals'!T27+'Weekly Totals'!T35","v":0},null,null,null,null,null,null,null,null,null,null,null,null,"Brokered Medicaid Contract",null,{"$f":"'Weekly Totals'!T43+'Weekly Totals'!T51","v":0}]

{"sheet":"Finance","index":7,"n_rows":91,"n_cols":90,"rows_kept":91,"cut":false,"hidden":true,"merged":[[87,11,87,17],[5,1,35,1],[28,2,28,3],[36,1,85,1],[85,2,85,3],[87,1,87,3],[87,4,87,10],[3,18,4,18],[86,2,86,3],[3,2,4,3],[3,4,3,10],[3,11,3,17]]}
[null,{"$f":"\"5. FINANCIAL DATA: \"&Overview!D4","v":"5. FINANCIAL DATA: "}]
[null,{"$f":"CONCATENATE(Overview!B2)","v":"FY2024"}]
[null,null,null,null,"A","B","C","D","E","F","G","H","I","J","K","L","M","N","O"]
[null,null,"Resource",null,"Admin/Operating",null,null,null,null,null,null,"Capital",null,null,null,null,null,null,"Description"]
[null,null,null,null,"DR DO","DR PT","MB DO","MB PT","MT DO","MT PT","TOTAL","DR DO","DR PT","MB DO","MB PT","MT DO","MT PT","TOTAL"]
[null,"EXPENSES","ADMINISTRATIVE"]
[{"$f":"Sunday!A50+1","v":136},null,null,"Personnel Salaries & Fringes - CTP Object Codes G121-189",null,null,null,null,null,null,{"$f":"SUM(E7:J7)","v":0},null,null,null,null,null,null,null,null,{"$f":"A7","v":136}]
[{"$f":"A7+1","v":137},null,null,"Advertising and Promotion - CTP Object Codes G371-373",null,null,null,null,null,null,{"$f":"SUM(E8:J8)","v":0},null,null,null,null,null,null,null,null,{"$f":"T7+1","v":137}]
[{"$f":"A8+1","v":138},null,null," Employee Development - CTP Object Code G395",null,null,null,null,null,null,0,null,null,null,null,null,null,null,null,{"$f":"T8+1","v":138}]
[{"$f":"A9+1","v":139},null,null,"Vehicle Insurance Premiums - CTP Object Code G452",null,null,null,null,null,null,0,null,null,null,null,null,null,null,null,{"$f":"T9+1","v":139}]
[{"$f":"A10+1","v":140},null,null,"Indirect Services - CTP Object Code G481",null,null,null,null,null,null,0,null,null,null,null,null,null,null,null,{"$f":"T10+1","v":140}]
[{"$f":"A11+1","v":141},null,null,"CTP Codes G190-359; 380-394; 396-451; 454-480; 482-491",null,null,null,null,null,null,0,null,null,null,null,null,null,null,null,{"$f":"T11+1","v":141}]
[142,null,null,"Other Admin Expense (describe to the right)",null,null,null,null,null,null,0,null,null,null,null,null,null,null,null,142]
[null,null,null,"Total Administrative Expenses",{"$f":"SUM(E7:E13)","v":0},{"$f":"SUM(F7:F13)","v":0},0,0,0,0,{"$f":"SUM(K7:K13)","v":0}]
[null,null,"OPERATING"]
[{"$f":"A13+1","v":143},null,null,"Driver Salaries & Fringes",null,null,null,null,null,null,{"$f":"SUM(E16:J16)","v":0},null,null,null,null,null,null,null,null,{"$f":"T13+1","v":143}]
[{"$f":"A16+1","v":144},null,null,"Other Operating Staff Salaries & Fringes",null,null,null,null,null,null,{"$f":"SUM(E17:J17)","v":0},null,null,null,null,null,null,null,null,{"$f":"T16+1","v":144}]
[{"$f":"A17+1","v":145},null,null,"Mechanics Salaries & Fringes",null,null,null,null,null,null,0,null,null,null,null,null,null,null,null,{"$f":"T17+1","v":145}]
[{"$f":"A18+1","v":146},null,null,"Indirect Services",null,null,null,null,null,null,0,null,null,null,null,null,null,null,null,{"$f":"T18+1","v":146}]
[{"$f":"A19+1","v":147},null,null,"Fuel",null,null,null,null,null,null,0,null,null,null,null,null,null,null,null,{"$f":"T19+1","v":147}]
[{"$f":"A20+1","v":148},null,null,"Vehicle Maintenance",null,null,null,null,null,null,0,null,null,null,null,null,null,null,null,{"$f":"T20+1","v":148}]
[149,null,null,"Payment of Insurance Deductible(s)",null,null,null,null,null,null,0,null,null,null,null,null,null,null,null,149]
[150,null,null,"Disposal of Vehicle(s)",null,null,null,null,null,null,0,null,null,null,null,null,null,null,null,150]
[{"$f":"A23+1","v":151},null,null,"Management/Operation Services",null,null,null,null,null,null,0,null,null,null,null,null,null,null,null,{"$f":"T23+1","v":151}]
[{"$f":"A24+1","v":152},null,null,"Volunteer Reimbursement",null,null,null,null,null,null,0,null,null,null,null,null,null,null,null,{"$f":"T24+1","v":152}]
[{"$f":"A25+1","v":153},null,null,"Other Transit Provider Services",null,null,null,null,null,null,0,null,null,null,null,null,null,null,null,{"$f":"T25+1","v":153}]
[{"$f":"A26+1","v":154},null,null,"Other (describe to the right)",null,null,null,null,null,null,0,null,null,null,null,null,null,null,null,{"$f":"T26+1","v":154}]
[null,null,null,"Total Operating Expenses",{"$f":"SUM(E16:E27)","v":0},{"$f":"SUM(F16:F27)","v":0},0,0,0,0,0]
[null,null,"Total Admin/Operating Expenses",null,{"$f":"E14+E28","v":0},{"$f":"F14+F28","v":0},0,0,0,0,{"$f":"SUM(K14+K28)","v":0}]
[null,null,"CAPITAL"]
[{"$f":"A27+1","v":155},null,null,"Capital Purchases",null,null,null,null,null,null,null,null,null,null,null,null,null,{"$f":"SUM(L31:Q31)","v":0},null,{"$f":"T27+1","v":155}]
[{"$f":"A31+1","v":156},null,null,"Body Work on Wrecked Vehicle",null,null,null,null,null,null,null,null,null,null,null,null,null,{"$f":"SUM(L32:Q32)","v":0},null,{"$f":"T31+1","v":156}]
[{"$f":"A32+1","v":157},null,null,"Facility Renovation or Construction",null,null,null,null,null,null,null,null,null,null,null,null,null,0,null,{"$f":"T32+1","v":157}]
[{"$f":"A33+1","v":158},null,null,"Advanced Technology Purchases",null,null,null,null,null,null,null,null,null,null,null,null,null,0,null,{"$f":"T33+1","v":158}]
[{"$f":"A34+1","v":159},null,null,"Other (describe to the right)",null,null,null,null,null,null,null,null,null,null,null,null,null,0,null,{"$f":"T34+1","v":159}]
[null,null,null,"Total Capital Expenses",null,null,null,null,null,null,null,{"$f":"SUM(L31:L35)","v":0},{"$f":"SUM(M31:M35)","v":0},0,0,0,0,{"$f":"SUM(R31:R35)","v":0}]
[null,"REVENUE","FEDERAL"]
[{"$f":"A35+1","v":160},null,null,"Urbanized Area Fomula Funding-Section 5307",null,null,null,null,null,null,{"$f":"SUM(E38:J38)","v":0},null,null,null,null,null,null,{"$f":"SUM(L38:Q38)","v":0},null,{"$f":"T35+1","v":160}]
[{"$f":"A38+1","v":161},null,null,"CARES Act-Section 5307",null,null,null,null,null,null,{"$f":"SUM(E39:J39)","v":0},null,null,null,null,null,null,{"$f":"SUM(L39:Q39)","v":0},null,{"$f":"T38+1","v":161}]
[{"$f":"A39+1","v":162},null,null,"CRRSA Act-Section 5307",null,null,null,null,null,null,0,null,null,null,null,null,null,0,null,{"$f":"T39+1","v":162}]
[{"$f":"A40+1","v":163},null,null,"ARP Act-Section 5307",null,null,null,null,null,null,0,null,null,null,null,null,null,0,null,163]
[{"$f":"A41+1","v":164},null,null,"FTA Capital Program Funds-Section 5309",null,null,null,null,null,null,0,null,null,null,null,null,null,0,null,164]
[165,null,null," Elderly and Disabled-Section 5310",null,null,null,null,null,null,0,null,null,null,null,null,null,0,null,165]
[166,null,null,"Capital Assistance Spent on Operations-Section 5310",null,null,null,null,null,null,0,null,null,null,null,null,null,null,null,166]
[167,null,null,"CARES Act-Section 5310",null,null,null,null,null,null,0,null,null,null,null,null,null,{"$f":"SUM(L45:Q45)","v":0},null,167]
[168,null,null,"CRRSA Act-Section 5310",null,null,null,null,null,null,0,null,null,null,null,null,null,{"$f":"SUM(L46:Q46)","v":0},null,168]
[169,null,null,"ARP Act-Section 5310",null,null,null,null,null,null,0,null,null,null,null,null,null,0,null,169]
[170,null,null,"CTP Funds - Administrative/Capital-Section 5311",null,null,null,null,null,null,0,null,null,null,null,null,null,0,null,170]
[171,null,null," CTP Funds - Operating-Section 5311",null,null,null,null,null,null,0,null,null,null,null,null,null,null,null,171]
[172,null,null,"Capital Assistance Spent on Operations-Section 5311",null,null,null,null,null,null,0,null,null,null,null,null,null,null,null,172]
[173,null,null,"Appalachian-Section 5311",null,null,null,null,null,null,0,null,null,null,null,null,null,{"$f":"SUM(L51:Q51)","v":0},null,173]
[174,null,null,"Tribal Federal Assistance-Section 5311",null,null,null,null,null,null,0,null,null,null,null,null,null,{"$f":"SUM(L52:Q52)","v":0},null,174]
[175,null,null,"ARRA Assistance-Section 5311",null,null,null,null,null,null,0,null,null,null,null,null,null,0,null,175]
[176,null,null,"ARRA Tribal Assistance-Section 5311",null,null,null,null,null,null,0,null,null,null,null,null,null,0,null,176]
[177,null,null,"CARES Act-Section 5311",null,null,null,null,null,null,0,null,null,null,null,null,null,0,null,177]
[178,null,null,"CRRSA Act-Section 5311",null,null,null,null,null,null,0,null,null,null,null,null,null,0,null,178]
[179,null,null,"ARP Act-Section 5311",null,null,null,null,null,null,0,null,null,null,null,null,null,0,null,179]
[180,null,null,"JARC Funds-Section 5316",null,null,null,null,null,null,0,null,null,null,null,null,null,0,null,180]
[181,null,null," New Freedom Funds-Section 5317",null,null,null,null,null,null,0,null,null,null,null,null,null,0,null,181]
[182,null,null,"Bus and Bus Facilities 5339",null,null,null,null,null,null,null,null,null,null,null,null,null,0,null,182]
[183,null,null,"Other FTA Revenues (describe to the right)",null,null,null,null,null,null,{"$f":"SUM(E61:J61)","v":0},null,null,null,null,null,null,0,null,183]
[184,null,null,"Other Federal Non-FTA Revenues (describe to the right)",null,null,null,null,null,null,{"$f":"SUM(E62:J62)","v":0},null,null,null,null,null,null,0,null,184]
[null,null,null,"Federal total",{"$f":"SUM(E38:E62)","v":0},0,0,0,0,0,0,0,0,0,0,0,0,0]
[null,null,"STATE"]
[{"$f":"A62+1","v":185},null,null,"CTP Funds - Administrative",null,null,null,null,null,null,{"$f":"SUM(E65:J65)","v":0},null,null,null,null,null,null,null,null,{"$f":"T62+1","v":185}]
[{"$f":"A65+1","v":186},null,null,"ROAP Funds - Suballocated to the Transit System",null,null,null,null,null,null,{"$f":"SUM(E66:J66)","v":0},null,null,null,null,null,null,null,null,{"$f":"T65+1","v":186}]
[{"$f":"A66+1","v":187},null,null,"Vehicles & Other Capital Revenues",null,null,null,null,null,null,null,null,null,null,null,null,null,{"$f":"SUM(L67:Q67)","v":0},null,{"$f":"T66+1","v":187}]
[{"$f":"A67+1","v":188},null,null,"Facility",null,null,null,null,null,null,null,null,null,null,null,null,null,{"$f":"SUM(L68:Q68)","v":0},null,{"$f":"T67+1","v":188}]
[{"$f":"A68+1","v":189},null,null,"Advanced Technology",null,null,null,null,null,null,null,null,null,null,null,null,null,0,null,{"$f":"T68+1","v":189}]
[{"$f":"A69+1","v":190},null,null,"Other (describe to the right)",null,null,null,null,null,null,{"$f":"SUM(E70:J70)","v":0},null,null,null,null,null,null,0,null,{"$f":"T69+1","v":190}]
[null,null,null,"State total",{"$f":"SUM(E65:E70)","v":0},0,0,0,0,0,{"$f":"SUM(K65:K70)","v":0},0,0,0,0,0,0,0]
[null,null,"LOCAL"]
[{"$f":"A70+1","v":191},null,null,"Government Funds",null,null,null,null,null,null,{"$f":"SUM(E73:J73)","v":0},null,null,null,null,null,null,{"$f":"SUM(L73:Q73)","v":0},null,{"$f":"T70+1","v":191}]
[{"$f":"A73+1","v":192},null,null,"Medicaid Revenue",null,null,null,null,null,null,{"$f":"SUM(E74:J74)","v":0},null,null,null,null,null,null,{"$f":"SUM(L74:Q74)","v":0},null,{"$f":"T73+1","v":192}]
[{"$f":"A74+1","v":193},null,null,"Brokered Medicaid Revenue",null,null,null,null,null,null,0,null,null,null,null,null,null,0,null,{"$f":"T74+1","v":193}]
[194,null,null,"Contract Revenue: Full Cost",null,null,null,null,null,null,0,null,null,null,null,null,null,0,null,194]
[195,null,null,"Other Directly Generated Revenue",null,null,null,null,null,null,0,null,null,null,null,null,null,0,null,195]
[196,null,null,"Fares from passengers",null,null,null,null,null,null,0,null,null,null,null,null,null,0,null,196]
[197,null,null,"Donations",null,null,null,null,null,null,0,null,null,null,null,null,null,0,null,197]
[198,null,null,"Interest Income",null,null,null,null,null,null,0,null,null,null,null,null,null,0,null,198]
[199,null,null,"Advertising Revenue",null,null,null,null,null,null,0,null,null,null,null,null,null,0,null,199]
[200,null,null,"Insurance Proceeds from Accident",null,null,null,null,null,null,0,null,null,null,null,null,null,0,null,200]
[201,null,null,"Proceeds from Sale of Vehicle (used for capital only)",null,null,null,null,null,null,null,null,null,null,null,null,null,0,null,201]
[202,null,null,"Other Revenue (describe to the right)",null,null,null,null,null,null,{"$f":"SUM(E84:J84)","v":0},null,null,null,null,null,null,0,null,202]
[null,null,null,"Local total",{"$f":"SUM(E73:E84)","v":0},{"$f":"SUM(F73:F84)","v":0},0,0,0,0,0,{"$f":"SUM(L73:L84)","v":0},{"$f":"SUM(M73:M84)","v":0},0,{"$f":"SUM(O73:O84)","v":0},{"$f":"SUM(P73:P84)","v":0},0,{"$f":"SUM(R73:R84)","v":0}]
[null,null,"Total Revenue",null,{"$f":"SUM(E63+E71+E85)","v":0},{"$f":"SUM(F63+F71+F85)","v":0},0,0,{"$f":"SUM(I63+I71+I85)","v":0},0,0,{"$f":"SUM(L63+L71+L85)","v":0},{"$f":"SUM(M63+M71+M85)","v":0},0,0,{"$f":"SUM(P63+P71+P85)","v":0},0,0]
[null,null,"Total Expenses",null,{"$f":"E29","v":0},{"$f":"F29","v":0},{"$f":"G29","v":0},0,{"$f":"I29","v":0},0,0,{"$f":"L36","v":0},{"$f":"M36","v":0},0,0,{"$f":"P36","v":0},0,0]
[null,"Surplus / Deficit = Total Revenue-Total Expenses",null,null,{"$f":"K86-K29","v":0},null,null,null,null,null,null,{"$f":"R86-R36","v":0}]
[null,null,null,null,"A","B","C","D","E","F","G","H","I","J","K","L","M","N","O"]
[]
[null,null,null,null,null,null,null,null,null,null,null,null,null,null,null,null,null,null,null,null,null,null,null,null,null,null,null,null,null,null,null,null,null,null,null,null,null,null,null,null,null,null,null,null,null,null,null,null,null,null,null,null,null,null,null,null,null,null,null,null,null,null,null,null,null,null,null,null,null,null,null,null,null,null,null,null,null,null,null,null,null,null,null,null,null,null,null,null,null,4]

{"sheet":"Annual Statistics","index":8,"n_rows":49,"n_cols":8,"rows_kept":49,"cut":false,"hidden":true,"merged":[[46,1,46,6],[47,1,47,6],[2,4,2,6],[5,1,5,6],[16,2,16,3],[16,4,16,5],[8,1,8,6],[3,3,3,4],[28,1,28,2],[10,1,10,6],[13,1,13,6]]}
[null,{"$f":"\"6. ANNUAL STATS: \"&Overview!D4","v":"6. ANNUAL STATS: "}]
[null,{"$f":"Overview!B2","v":"FY2024"},"A","B","C","D","E"]
[null,"Volunteer Resources"]
[{"$f":"Finance!A84+1","v":203},"Total volunteer drivers",null,"Personal Vehicles Used",null,null,null,{"$f":"A4","v":203}]
[]
[null,"Incidental Services (training, maintenance, fuel, other non-passenger services)"]
[{"$f":"A4+1","v":204},"Miles",null,null,"Hours",null,null,{"$f":"H4+1","v":204}]
[null,"Incidental Services Description:"]
[{"$f":"A7+1","v":205},null,null,null,null,null,null,{"$f":"H7+1","v":205}]
[]
[null,"CARES Act Incidental Services (training, maintenance, fuel, other non-passenger services)"]
[{"$f":"A9+1","v":206},"Miles",null,null,"Hours",null,null,{"$f":"H9+1","v":206}]
[null,"CARES Act Incidental Services Description:"]
[{"$f":"A12+1","v":207},null,null,null,null,null,null,{"$f":"H12+1","v":207}]
[]
[null,"Employee Information"]
[null,null,"Full Time Employee",null,"Part Time Employee",null,"FTE"]
[null,null,"How Many","Total Pay Hours","How Many","Total Pay Hours"]
[{"$f":"A14+1","v":208},"Administrative",null,null,null,null,{"$f":"(D19+F19)/2080","v":0},{"$f":"H14+1","v":208}]
[{"$f":"A19+1","v":209},"Maintenance",null,null,null,null,{"$f":"(D20+F20)/2080","v":0},{"$f":"H19+1","v":209}]
[210,"Driver",null,null,null,null,0,210]
[{"$f":"A21+1","v":211},"Other Operational",null,null,null,null,0,{"$f":"H21+1","v":211}]
[null,"Total",{"$f":"SUM(C19:C22)","v":0},{"$f":"SUM(D19:D22)","v":0},{"$f":"SUM(E19:E22)","v":0},{"$f":"SUM(F19:F22)","v":0},{"$f":"SUM(G19:G22)","v":0}]
[]
[null,"Non-Ambulatory"]
[{"$f":"A22+1","v":212},"Non-ambulatory passenger trips",null,null,null,null,null,{"$f":"H22+1","v":212}]
[]
[null,"Maintenance Information"]
[{"$f":"A26+1","v":213},"Select your vehicle maintenance method",null,null,null,null,null,{"$f":"H26+1","v":213}]
[null,null,"# Owned",null,"# Leased",null,"Total"]
[{"$f":"A29+1","v":214},"Maintenance facilities grantee",null,null,null,null,{"$f":"C31+E31","v":0},{"$f":"H29+1","v":214}]
[]
[null,"Safety Statistics (NTD only)"]
[null,null,"NTD Events",null,"NTD Fatalities",null,"NTD Injuries"]
[{"$f":"A31+1","v":215}," NTD Reportable (see instructions)",null,null,null,null,null,{"$f":"H31+1","v":215}]
[]
[null,"Human Service Agency / Community Organization Trips Served"]
[null,null,"Annual Trips",null,null,"Annual Trips"]
[{"$f":"A35+1","v":216},"Vocational Rehabilitation",0,null,"DSS Medicaid",0,null,{"$f":"H35+1","v":216}]
[{"$f":"A39+1","v":217},"Vocational Workshop (or equivalent)",0,null,"DSS WorkFirst",0,null,{"$f":"H39+1","v":217}]
[218,"Headstart",0,null,"DSS - Other",0,null,218]
[{"$f":"A41+1","v":219},"Nursing Home/Assisted Living Facility",0,null,"Senior Services",0,null,{"$f":"H41+1","v":219}]
[220,"United Way Agency(ies)",0,null,"Mental Health",0,null,220]
[221,"Parks and Recreation",0,null,"OTHER",0,null,221]
[222,"Local Employer(s)",0,null,null,null,null,222]
[]
[null,"How has your administration and/or operations changed since last year (be detailed)?"]
[{"$f":"A45+1","v":223},null,null,null,null,null,null,{"$f":"H45+1","v":223}]
[null,null,"A","B","C","D","E"]

{"sheet":"Physical Assaults","index":9,"n_rows":13,"n_cols":5,"rows_kept":13,"cut":false,"hidden":true,"merged":[[0,0,0,4]]}
["Please provide the number of each occurance in the corresponding BLUE cells below"]
["Physical Assaults","In Transit Vehicle","In Revenue Facility","In Non-Revenue Facility","In Other Location"]
["Total Event Counts"]
["Major Safety and Security Events"]
["Non-Major Events (non-injury)"]
["Injuries Counts"]
["Operator Injuries"]
["Other Transit Worker Injuries"]
["Other Injuries"]
["Fatalities Counts"]
["Operator Fatalities"]
["Other-Transit Worker Fatalities"]
["Other Fatalities"]

{"sheet":"Non-Physical Assaults","index":10,"n_rows":13,"n_cols":5,"rows_kept":13,"cut":false,"hidden":true,"merged":[[0,0,0,4]]}
["Please provide the number of each occurance in the corresponding BLUE cells below"]
["Non-Physical Assaults","In Transit Vehicle","In Revenue Facility","In Non-Revenue Facility","In Other Location"]
["Total Event Counts"]
["Major Safety and Security Events"]
["Non-Major Events (non-injury)"]
["Injuries Counts"]
["Operator Injuries"]
["Other Transit Worker Injuries"]
["Other Injuries"]
["Fatalities Counts"]
["Operator Fatalities"]
["Other-Transit Worker Fatalities"]
["Other Fatalities"]

{"sheet":"Other Safety & Security Data","index":11,"n_rows":7,"n_cols":4,"rows_kept":7,"cut":false,"hidden":true,"merged":[[0,0,0,3]]}
["Please provide the number of each occurance in the corresponding BLUE cells below"]
["Event Type","Major Events","Fatalities","Injuries"]
["Collisions with Pedestrian(s)"]
["Collisions with Vehicle(s)"]
["Collisions with Other (e.g. animal, manhole, shopping cart, etc.)"]
["Other Major Events"]
["Total Reportable injuries from non-major events"]

{"sheet":"Completion","index":12,"n_rows":39,"n_cols":6,"rows_kept":39,"cut":false,"hidden":true,"merged":[[38,1,39,2],[25,1,25,4],[27,1,27,4],[0,1,0,4],[36,1,36,4],[23,1,23,2],[24,1,24,4],[26,1,26,4]]}
[null,{"$f":"\"7. COMPLETION: \"&Overview!D4","v":"7. COMPLETION: "}]
[null,{"$f":"Overview!B2","v":"FY2024"}]
[null,"Summary","DO","PT","Total"]
[null,"Administrative Expenses",{"$f":"Finance!E14+Finance!G14+Finance!I14","v":0},{"$f":"Finance!F14+Finance!H14+Finance!J14","v":0},{"$f":"C4+D4","v":0}]
[null,"Operating Expenses",{"$f":"Finance!E28+Finance!G28+Finance!I28","v":0},{"$f":"Finance!F28+Finance!H28+Finance!J28","v":0},{"$f":"C5+D5","v":0}]
[null,"Capital Expenses",{"$f":"Finance!L36+Finance!N36+Finance!P36","v":0},{"$f":"Finance!M36+Finance!O36+Finance!Q36","v":0},{"$f":"C6+D6","v":0}]
[null,"Miles",{"$f":"'Weekly Totals'!T7+'Weekly Totals'!T23+'Weekly Totals'!T39","v":0},{"$f":"'Weekly Totals'!T15+'Weekly Totals'!T31+'Weekly Totals'!T47","v":0},{"$f":"'Weekly Totals'!T55","v":0}]
[null,"Hours",{"$f":"'Weekly Totals'!T6+'Weekly Totals'!T22+'Weekly Totals'!T38","v":0},{"$f":"'Weekly Totals'!T14+'Weekly Totals'!T30+'Weekly Totals'!T46","v":0},{"$f":"'Weekly Totals'!T54","v":0}]
[null,"Passenger Trips",{"$f":"'Weekly Totals'!T12+'Weekly Totals'!T28+'Weekly Totals'!T44","v":0},{"$f":"'Weekly Totals'!T20+'Weekly Totals'!T36+'Weekly Totals'!T52","v":0},{"$f":"'Weekly Totals'!T60","v":0}]
[]
[null,{"$f":"Overview!B25&\" Vital Signs\"","v":" Vital Signs"},"DO","PT","Total"]
[null,"Fixed Route Weekly Passenger Trips/Hour",{"$f":"IFERROR('Weekly Totals'!T28/'Weekly Totals'!T22, 0)","v":0},{"$f":"IFERROR('Weekly Totals'!T36/'Weekly Totals'!T30, 0)","v":0},{"$f":"IFERROR(('Weekly Totals'!T28+'Weekly Totals'!T36)/('Weekly Totals'!T22+'Weekly Totals'!T30), 0)","v":0}]
[null,"Demand Response/Sub Weekly Passenger Trips/Hour",{"$f":"IFERROR('Weekly Totals'!T12/'Weekly Totals'!T6, 0)","v":0},{"$f":"IFERROR('Weekly Totals'!T20/'Weekly Totals'!T14, 0)","v":0},{"$f":"IFERROR(('Weekly Totals'!T12+'Weekly Totals'!T20)/('Weekly Totals'!T6+'Weekly Totals'!T14), 0)","v":0}]
[null,"Microtransit Weekday Passenger Trips/Hour",{"$f":"IFERROR('Weekly Totals'!T44/'Weekly Totals'!T38,0)","v":0},{"$f":"IFERROR('Weekly Totals'!T52/'Weekly Totals'!T46,0)","v":0},{"$f":"IFERROR(('Weekly Totals'!T44+'Weekly Totals'!T52)/('Weekly Totals'!T38+'Weekly Totals'!T46),0)","v":0}]
[null,"Fixed Route Weekly Passenger Trips/Mile",{"$f":"IFERROR('Weekly Totals'!T28/'Weekly Totals'!T23, 0)","v":0},{"$f":"IFERROR('Weekly Totals'!T36/'Weekly Totals'!T31, 0)","v":0},{"$f":"IFERROR(('Weekly Totals'!T28+'Weekly Totals'!T36)/('Weekly Totals'!T23+'Weekly Totals'!T31), 0)","v":0}]
[null,"Demand Response/Sub Weekly Passenger Trips/Mile",{"$f":"IFERROR('Weekly Totals'!T12/'Weekly Totals'!T7, 0)","v":0},{"$f":"IFERROR('Weekly Totals'!T20/'Weekly Totals'!T15, 0)","v":0},{"$f":"IFERROR(('Weekly Totals'!T12+'Weekly Totals'!T20)/('Weekly Totals'!T7+'Weekly Totals'!T15), 0)","v":0}]
[null,"Microtransit Weekly Passenger Trips/Mile",{"$f":"IFERROR('Weekly Totals'!T44/'Weekly Totals'!T39,0)","v":0},{"$f":"IFERROR('Weekly Totals'!T52/'Weekly Totals'!T47,0)","v":0},{"$f":"IFERROR(('Weekly Totals'!T44+'Weekly Totals'!T52)/('Weekly Totals'!T39+'Weekly Totals'!T47),0)","v":0}]
[null," Operating Cost per Passenger Trips",{"$f":"IFERROR(($C$4+$C$5)/C9,0)","v":0},{"$f":"IFERROR(($D$4+$D$5)/D9,0)","v":0},{"$f":"IFERROR(($E$4+$E$5)/E9,0)","v":0}]
[null," Operating Cost per Hour",{"$f":"IFERROR(($C$4+$C$5)/C8,0)","v":0},{"$f":"IFERROR(($D$4+$D$5)/D8,0)","v":0},{"$f":"IFERROR(($E$4+$E$5)/E8,0)","v":0}]
[null," Operating Cost per Mile",{"$f":"IFERROR(($C$4+$C$5)/C7,0)","v":0},{"$f":"IFERROR(($D$4+$D$5)/D7,0)","v":0},{"$f":"IFERROR(($E$4+$E$5)/E7,0)","v":0}]
[null,"Transit Trips per Driver FTE",{"$f":"IFERROR(('Weekly Totals'!T12+'Weekly Totals'!T28+'Weekly Totals'!T44)/'Annual Statistics'!G21, 0)","v":0},null,{"$f":"C21","v":0}]
[]
[]
[{"$f":"'Annual Statistics'!A48+1","v":224},"How much money was in the Operating Reserve at the end of the year?",null,null,null,{"$f":"'Annual Statistics'!H48+1","v":224}]
[{"$f":"A24+1","v":225},"After reviewing the system's vital signs, what has the system been doing well?",null,null,null,{"$f":"F24+1","v":225}]
[]
[{"$f":"A25+1","v":226},"After reviewing the system's vital signs, what should the system do to improve it's performance?",null,null,null,{"$f":"F25+1","v":226}]
[]
[null,"I hereby certify that, to the best of my knowledge, the information in this report is accurate and complete."]
[]
[null,"Signature of Authorized Official",null,null,"Date"]
[]
[null,"Signature of TAB Chairperson",null,null,"Date"]
[]
[null,"Signature of Financial Manager",null,null,"Date"]
[null,"ITRE Comments about the data"]
[]
[]
[null,"Upload the original excel file and scanned version of the signed completion tab to partner connect"]

{"sheet":"Definitions","index":13,"n_rows":198,"n_cols":4,"rows_kept":198,"cut":false,"hidden":true,"merged":[]}
["Worksheet","Line Number(s)","Description","Instruction/Definition"]
["OVERVIEW",1,"Grantee's Legal Name","Select the legal name of the community transit system from drop down list."]
[null,{"$f":"B2+1","v":2},"Transit's Contact Person","Enter the name of the contact person."]
[null,{"$f":"B3+1","v":3},"Contact Email","Enter the email of the contact person."]
[null,4,"Transit's Website Address","Enter the URL of the transit system's Website."]
[null,5,"Transit's Telephone Number","Enter the system's phone number, including area code."]
[null,6,"Select Service Area","Click on the cell, then select from the drop down box the category that best fits your service area."]
[null,7,"List Counties in Multi-County System (if applicable)","If applicable, list the counties in your multi-county system."]
[null,8,"Demand Response Directly Operated (DR DO)","Select relevant operating modes for your transit system. Demand Response Directly Operated (DR DO) transit service is provided directly by a transit agency. This shared use system operates in response to calls from passengers or their agents to the transit operator, who schedules a vehicle to pick up the passengers to transport them to their destinations. Transportation agencies use their employees to supply the necessary labor to operate the revenue vehicles. This includes instances where an agency's employees provide purchased transportation (PT) services to the agency through a contractual agreement."]
[null,9,"Demand Response Purchased (DR PT)","Select relevant operating modes for your transit system. Demand Response Purchased (DR PT) transit service is provided to a public transit agency or governmental unit from a public or private transportation provider based on a written contract. The provider operates this shared use system in response to calls from passengers or their agents to the transit operator, who schedules a vehicle to pick up the passengers to transport them to their destinations."]
[null,10,"Fixed Route Directly Operated (MB DO)","Select relevant operating modes for your transit system. Fixed Route Directly Operated (MB DO) transit service is provided directly by a transit agency. MB DO systems operate on a repetitive, fixed schedule basis along a specific route with vehicles stopping to pickup and deliver passengers to specific locations; each fixed route trip serves the same origins and destinations. This designated mode includes deviated route and deviated point services."]
[null,"10C, 11C","MB DO/MB PT Description","Using drop-down menu, select fixed route, deviated fixed route, or both."]
[null,{"$f":"B11+1","v":11},"Fixed Route Purchased (MB PT)","Select relevant operating modes for your transit system. Fixed Route Purchased (MB PT) transit service is provided to a public transit agency or governmental unit from a public or private transportation provider based on a written contract. MB PT systems operate on a repetitive, fixed schedule basis along a specific route with vehicles stopping to pickup and deliver passengers to specific locations; each fixed route trip serves the same origins and destinations. This designated mode includes deviated route and deviated point services."]
[null,12,"Microtransit Directly Operated (MT DO)","Select the relevant operating modes for your transit system. Microtransit Directly Operated (MT DO) service is provided directly by a transit agency. This shared use system operates  in an on-demand environment and trips are generally booked through a mobile application. Transportation agencies use their employees to supply the necessary labor to operate the revenue vehicles. This includes instances where an agency's employees provide purchased transportation (PT) services to another agency through a contractual agreement."]
[null,13,"Microtransit Purchased (MT PT)","Select the relevant operating modes for your transit system. Microtransit Purchased (MT PT) service is provided to a public transit agency or governmental unit from a public or private transportation provider base on a written contract. Microtransit systems operate on an on-demand schedule where trips are usually booked through a mobile application."]
[null,14,"Weekday Operating Hours","Enter the begin time and end time of your publicly available weekday service."]
[null,15,"Saturday Operating Hours","Enter the begin time and end time of your publicly available Saturday service (if applicable)."]
[null,16,"Sunday Operating Hours","Enter the begin time and end time of your publicly available Sunday service (if applicable)."]
[null,17,"Contractor Name (For PT Mode Only)","Enter the name of your management/operations contractor, if applicable."]
[null,18,"Contract Start / End Date (For PT Mode Only)","Enter the dates your management/operations contract is in effect."]
[null,19,"Do You Provide Trips to Out-of-Service Area Destinations?","Click on the checkbox if applicable."]
[null,20,"List Out-of-Service Area Destinations","If applicable, list the cities to which you provide out-of-service area trips."]
[null,21,"Do You Coordinate with Other Transportation Systems","Click on the checkbox if applicable."]
[null,22,"List the Community Transportation Systems (if applicable)","If applicable, list the Transportation Systems with which you coordinate service."]
[null,23,"Demand Response Fares","The minimum base fare charged for your demand response service."]
[null,24,"Fixed Route Fares","The minimum base fare charged for your frixed route service."]
[null,25,"Microtransit Fares","The minimum base fare charged for your microtransit  service."]
[null,26,"Minimum Advanced Reservation Time (Hours)","The minimum advanced reservation time required to book a trip in hours."]
[null,27,"Minimum Advanced Reservation Time Explanation","Explanation for your minimum advanced reservation time."]
[]
["WEEKDAY",{"$f":"B29+1","v":28},"Operating Days","Enter the number of weekdays that your system provided service in the month indicated."]
[null,{"$f":"B31+1","v":29},"Hours","The hours calculation differs by mode.   For demand response mode (DR), hours are accounted from pull out to pull in. For fixed-route mode (MB), hours are the total time in hours for the reporting period from first scheduled stop to the last scheduled stop.  For microtransit mode (MT), hours are the total time in hours for the reporting period from pull out to pull in. All three  hour definitions exclude operator training, and vehicle maintenance testing, as well as school bus and charter services.  Do not include hours spent providing incidental services such as meal or service delivery."]
[null,{"$f":"B32+1","v":30},"Miles","The miles calculation differs by mode. For demand response mode (DR), miles are accounted from pull out to pull in.  For fixed-route mode (MB), miles are the total distance driven for the reporting period from the first scheduled stop to the last scheduled stop.   For microtransit mode (MT), miles are the total distance in miles for the reporting period from pull out to pull in. All three mile definitions exclude operator training, and vehicle maintenance testing, as well as school bus and charter services.  Do not include miles spent providing incidental services such as meal or service delivery."]
[null,{"$f":"B33+1","v":31},"Passenger Trips: Non-Contract","Enter the number of non-contract unlinked passenger trips (HYPERLINK within Doc - 341).  The cost of non-contract trips are not billed to outside organizations or agencies, rather are typically drawn down from funds controlled by the Transit System or its"]
[null,32,"Passenger Trips: Medicaid Contract","Enter the number of unlinked passenger trips carried for DSS that are sponsored by Medicaid."]
[null,33,"Passenger Trips: Non-Medicaid Contract","Enter the number of non-Medicaid unlinked passenger trips carried for human service agencies or others with whom the system has a contractual relationship. "]
[null,34,"Passenger Trips: Brokered Medicaid Contract","Enter the number of unlinked passenger trips carried for Medicaid Brokers."]
[null,35,"Hours","The hours calculation differs by mode.  For fixed-route mode (MB), hours are the total time in hours for the reporting period from first scheduled stop to the last scheduled stop. For demand response mode (DR), hours are accounted from pull out to pull in.  For microtransit (M), hours are the total time in hours for the reporting period from pull out to pull in. All three  hour definitions exclude operator training, and vehicle maintenance testing, as well as school bus and charter services.  Do not include hours spent providing incidental services such as meal or service delivery."]
[null,{"$f":"B38+1","v":36},"Miles","The miles calculation differs by mode.  For fixed-route mode (MB), miles are the total distance driven for the reporting period from the first scheduled stop to the last scheduled stop. For demand response mode (DR), miles are accounted from pull out to pull in.  For microtransit (M), miles are the total distance in miles for the reporting period from pull out to pull in. All three mile definitions exclude operator training, and vehicle maintenance testing, as well as school bus and charter services.  Do not include miles spent providing incidental services such as meal or service delivery."]
[null,{"$f":"B39+1","v":37},"Passenger Trips: Non-Contract","Enter the number of non-contract unlinked passenger trips (HYPERLINK within Doc - 341).  The cost of non-contract trips are not billed to outside organizations or agencies, rather are typically drawn down from funds controlled by the Transit System or its parent organization."]
[null,{"$f":"B40+1","v":38},"Passenger Trips: Medicaid Contract","Enter the number of unlinked passenger trips carried for DSS that are sponsored by Medicaid."]
[null,{"$f":"B41+1","v":39},"Passenger Trips: Non-Medicaid Contract","Enter the number of non-Medicaid unlinked passenger trips carried for human service agencies or others with whom the system has a contractual relationship. "]
[null,{"$f":"B42+1","v":40},"Hours","The hours calculation differs by mode.  For fixed-route mode (MB), hours are the total time in hours for the reporting period from first scheduled stop to the last scheduled stop. For demand response mode (DR), hours are accounted from pull out to pull in.  For microtransit (M), hours are the total time in hours for the reporting period from pull out to pull in. All three  hour definitions exclude operator training, and vehicle maintenance testing, as well as school bus and charter services.  Do not include hours spent providing incidental services such as meal or service delivery."]
[null,41,"Miles","The miles calculation differs by mode.  For fixed-route mode (MB), miles are the total distance driven for the reporting period from the first scheduled stop to the last scheduled stop. For demand response mode (DR), miles are accounted from pull out to pull in.  For microtransit (M), miles are the total distance in miles for the reporting period from pull out to pull in. All three mile definitions exclude operator training, and vehicle maintenance testing, as well as school bus and charter services.  Do not include miles spent providing incidental services such as meal or service delivery."]
[null,{"$f":"B44+1","v":42},"Passenger Trips: Non-Contract","Enter the number of non-contract unlinked passenger trips (HYPERLINK within Doc - 341).  The cost of non-contract trips are not billed to outside organizations or agencies, rather are typically drawn down from funds controlled by the Transit System or its parent organization."]
[null,{"$f":"B45+1","v":43},"Passenger Trips: Medicaid Contract","Enter the number of unlinked passenger trips carried for DSS that are sponsored by Medicaid."]
[null,{"$f":"B46+1","v":44},"Passenger Trips: Non-Medicaid Contract","Enter the number of non-Medicaid unlinked passenger trips carried for human service agencies or others with whom the system has a contractual relationship. "]
[null,45,"Hours","The hours calculation differs by mode.  For fixed-route mode (MB), hours are the total time in hours for the reporting period from first scheduled stop to the last scheduled stop. For demand response mode (DR), hours are accounted from pull out to pull in.  For microtransit (M), hours are the total time in hours for the reporting period from pull out to pull in. All three  hour definitions exclude operator training, and vehicle maintenance testing, as well as school bus and charter services.  Do not include hours spent providing incidental services such as meal or service delivery."]
[null,46,"Miles","The miles calculation differs by mode.  For fixed-route mode (MB), miles are the total distance driven for the reporting period from the first scheduled stop to the last scheduled stop. For demand response mode (DR), miles are accounted from pull out to pull in.  For microtransit (M), miles are the total distance in miles for the reporting period from pull out to pull in. All three mile definitions exclude operator training, and vehicle maintenance testing, as well as school bus and charter services.  Do not include miles spent providing incidental services such as meal or service delivery."]
[null,{"$f":"B49+1","v":47},"Passenger Trips: Non-Contract","Enter the number of non-contract unlinked passenger trips (HYPERLINK within Doc - 341).  The cost of non-contract trips are not billed to outside organizations or agencies, rather are typically drawn down from funds controlled by the Transit System or its parent organization."]
[null,{"$f":"B50+1","v":48},"Passenger Trips: Medicaid Contract","Enter the number of unlinked passenger trips carried for DSS that are sponsored by Medicaid."]
[null,{"$f":"B51+1","v":49},"Passenger Trips: Non-Medicaid Contract","Enter the number of non-Medicaid unlinked passenger trips carried for human service agencies or others with whom the system has a contractual relationship. "]
[null,{"$f":"B52+1","v":50},"Passenger Trips: Brokered Medicaid Contract","Enter the number of unlinked passenger trips carried for Medicaid Brokers."]
[null,51,"Hours","The hours calculation differs by mode.  For fixed-route mode (MB), hours are the total time in hours for the reporting period from first scheduled stop to the last scheduled stop. For demand response mode (DR), hours are accounted from pull out to pull in.  For microtransit (M), hours are the total time in hours for the reporting period from pull out to pull in. All three  hour definitions exclude operator training, and vehicle maintenance testing, as well as school bus and charter services.  Do not include hours spent providing incidental services such as meal or service delivery."]
[null,{"$f":"B54+1","v":52},"Miles","The miles calculation differs by mode.  For fixed-route mode (MB), miles are the total distance driven for the reporting period from the first scheduled stop to the last scheduled stop. For demand response mode (DR), miles are accounted from pull out to pull in.  For microtransit (M), miles are the total distance in miles for the reporting period from pull out to pull in. All three mile definitions exclude operator training, and vehicle maintenance testing, as well as school bus and charter services.  Do not include miles spent providing incidental services such as meal or service delivery."]
[null,{"$f":"B55+1","v":53},"Passenger Trips: Non-Contract","Enter the number of non-contract unlinked passenger trips (HYPERLINK within Doc - 341).  The cost of non-contract trips are not billed to outside organizations or agencies, rather are typically drawn down from funds controlled by the Transit System or its parent organization."]
[null,{"$f":"B56+1","v":54},"Passenger Trips: Medicaid Contract","Enter the number of unlinked passenger trips carried for DSS that are sponsored by Medicaid."]
[null,{"$f":"B57+1","v":55},"Passenger Trips: Non-Medicaid Contract","Enter the number of non-Medicaid unlinked passenger trips carried for human service agencies or others with whom the system has a contractual relationship. "]
[null,{"$f":"B58+1","v":56},"Passenger Trips: Brokered Medicaid Contract","Enter the number of unlinked passenger trips carried for Medicaid Brokers."]
[]
["SATURDAY",65,"Operating Days","Enter the number of Saturdays that your system provided service in the month indicated."]
[null,{"$f":"B61+1","v":66},"Hours","The hours calculation differs by mode.  For fixed-route mode (MB), hours are the total time in hours for the reporting period from first scheduled stop to the last scheduled stop. For demand response mode (DR), hours are accounted from pull out to pull in.  Both hour definitions exclude operator training, and vehicle maintenance testing, as well as school bus and charter services.  Do not include hours spent providing incidental services such as meal or service delivery."]
[null,{"$f":"B62+1","v":67},"Miles","The miles calculation differs by mode.  For fixed-route mode (MB), miles are the total distance driven for the reporting period from the first scheduled stop to the last scheduled stop. For demand response mode (DR), miles are accounted from pull out to pull in.  Both mile definitions exclude operator training, and vehicle maintenance testing, as well as school bus and charter services.  Do not include miles spent providing incidental services such as meal or service delivery."]
[null,{"$f":"B63+1","v":68},"Passenger Trips: Non-Contract","Enter the number of non-contract unlinked passenger trips (HYPERLINK within Doc - 341).  The cost of non-contract trips are not billed to outside organizations or agencies, rather are typically drawn down from funds controlled by the Transit System or its"]
[null,69,"Passenger Trips: Medicaid Contract","Enter the number of unlinked passenger trips carried for DSS that are sponsored by Medicaid."]
[null,70,"Passenger Trips: Non-Medicaid Contract","Enter the number of non-Medicaid unlinked passenger trips carried for human service agencies or others with whom the system has a contractual relationship. "]
[null,71,"Passenger Trips: Brokered Medicaid Contract","Enter the number of unlinked passenger trips carried for Medicaid Brokers."]
[null,72,"Hours","The hours calculation differs by mode.  For fixed-route mode (MB), hours are the total time in hours for the reporting period from first scheduled stop to the last scheduled stop. For demand response mode (DR), hours are accounted from pull out to pull in.  Both hour definitions exclude operator training, and vehicle maintenance testing, as well as school bus and charter services.  Do not include hours spent providing incidental services such as meal or service delivery."]
[null,{"$f":"B68+1","v":73},"Miles","The miles calculation differs by mode.  For fixed-route mode (MB), miles are the total distance driven for the reporting period from the first scheduled stop to the last scheduled stop. For demand response mode (DR), miles are accounted from pull out to pull in.  Both mile definitions exclude operator training, and vehicle maintenance testing, as well as school bus and charter services.  Do not include miles spent providing incidental services such as meal or service delivery."]
[null,{"$f":"B69+1","v":74},"Passenger Trips: Non-Contract","Enter the number of non-contract unlinked passenger trips (HYPERLINK within Doc - 341).  The cost of non-contract trips are not billed to outside organizations or agencies, rather are typically drawn down from funds controlled by the Transit System or its parent organization."]
[null,{"$f":"B70+1","v":75},"Passenger Trips: Medicaid Contract","Enter the number of unlinked passenger trips carried for DSS that are sponsored by Medicaid."]
[null,{"$f":"B71+1","v":76},"Passenger Trips: Non-Medicaid Contract","Enter the number of non-Medicaid unlinked passenger trips carried for human service agencies or others with whom the system has a contractual relationship. "]
[null,{"$f":"B72+1","v":77},"Hours","The hours calculation differs by mode.  For fixed-route mode (MB), hours are the total time in hours for the reporting period from first scheduled stop to the last scheduled stop. For demand response mode (DR), hours are accounted from pull out to pull in.  Both hour definitions exclude operator training, and vehicle maintenance testing, as well as school bus and charter services.  Do not include hours spent providing incidental services such as meal or service delivery."]
[null,78,"Miles","The miles calculation differs by mode.  For fixed-route mode (MB), miles are the total distance driven for the reporting period from the first scheduled stop to the last scheduled stop. For demand response mode (DR), miles are accounted from pull out to pull in.  Both mile definitions exclude operator training, and vehicle maintenance testing, as well as school bus and charter services.  Do not include miles spent providing incidental services such as meal or service delivery."]
[null,{"$f":"B74+1","v":79},"Passenger Trips: Non-Contract","Enter the number of non-contract unlinked passenger trips (HYPERLINK within Doc - 341).  The cost of non-contract trips are not billed to outside organizations or agencies, rather are typically drawn down from funds controlled by the Transit System or its parent organization."]
[null,{"$f":"B75+1","v":80},"Passenger Trips: Medicaid Contract","Enter the number of unlinked passenger trips carried for DSS that are sponsored by Medicaid."]
[null,{"$f":"B76+1","v":81},"Passenger Trips: Non-Medicaid Contract","Enter the number of non-Medicaid unlinked passenger trips carried for human service agencies or others with whom the system has a contractual relationship. "]
[null,82,"Hours","The hours calculation differs by mode.  For fixed-route mode (MB), hours are the total time in hours for the reporting period from first scheduled stop to the last scheduled stop. For demand response mode (DR), hours are accounted from pull out to pull in.  Both hour definitions exclude operator training, and vehicle maintenance testing, as well as school bus and charter services.  Do not include hours spent providing incidental services such as meal or service delivery."]
[null,83,"Miles","The miles calculation differs by mode.  For fixed-route mode (MB), miles are the total distance driven for the reporting period from the first scheduled stop to the last scheduled stop. For demand response mode (DR), miles are accounted from pull out to pull in.  Both mile definitions exclude operator training, and vehicle maintenance testing, as well as school bus and charter services.  Do not include miles spent providing incidental services such as meal or service delivery."]
[null,{"$f":"B79+1","v":84},"Passenger Trips: Non-Contract","Enter the number of non-contract unlinked passenger trips (HYPERLINK within Doc - 341).  The cost of non-contract trips are not billed to outside organizations or agencies, rather are typically drawn down from funds controlled by the Transit System or its parent organization."]
[null,{"$f":"B80+1","v":85},"Passenger Trips: Medicaid Contract","Enter the number of unlinked passenger trips carried for DSS that are sponsored by Medicaid."]
[null,{"$f":"B81+1","v":86},"Passenger Trips: Non-Medicaid Contract","Enter the number of non-Medicaid unlinked passenger trips carried for human service agencies or others with whom the system has a contractual relationship. "]
[]
["SUNDAY",102,"Operating Days","Enter the number of Sundays that your system provided service in the month indicated."]
[null,{"$f":"B84+1","v":103},"Hours","The hours calculation differs by mode.  For fixed-route mode (MB), hours are the total time in hours for the reporting period from first scheduled stop to the last scheduled stop. For demand response mode (DR), hours are accounted from pull out to pull in.  Both hour definitions exclude operator training, and vehicle maintenance testing, as well as school bus and charter services.  Do not include hours spent providing incidental services such as meal or service delivery."]
[null,{"$f":"B85+1","v":104},"Miles","The miles calculation differs by mode.  For fixed-route mode (MB), miles are the total distance driven for the reporting period from the first scheduled stop to the last scheduled stop. For demand response mode (DR), miles are accounted from pull out to pull in.  Both mile definitions exclude operator training, and vehicle maintenance testing, as well as school bus and charter services.  Do not include miles spent providing incidental services such as meal or service delivery."]
[null,{"$f":"B86+1","v":105},"Passenger Trips: Non-Contract","Enter the number of non-contract unlinked passenger trips (HYPERLINK within Doc - 341).  The cost of non-contract trips are not billed to outside organizations or agencies, rather are typically drawn down from funds controlled by the Transit System or its"]
[null,106,"Passenger Trips: Medicaid Contract","Enter the number of unlinked passenger trips carried for DSS that are sponsored by Medicaid."]
[null,107,"Passenger Trips: Non-Medicaid Contract","Enter the number of non-Medicaid unlinked passenger trips carried for human service agencies or others with whom the system has a contractual relationship. "]
[null,108,"Passenger Trips: Brokered Medicaid Contract","Enter the number of unlinked passenger trips carried for Medicaid Brokers."]
[null,{"$f":"B89+1","v":108},"Hours","The hours calculation differs by mode.  For fixed-route mode (MB), hours are the total time in hours for the reporting period from first scheduled stop to the last scheduled stop. For demand response mode (DR), hours are accounted from pull out to pull in.  Both hour definitions exclude operator training, and vehicle maintenance testing, as well as school bus and charter services.  Do not include hours spent providing incidental services such as meal or service delivery."]
[null,{"$f":"B91+1","v":109},"Miles","The miles calculation differs by mode.  For fixed-route mode (MB), miles are the total distance driven for the reporting period from the first scheduled stop to the last scheduled stop. For demand response mode (DR), miles are accounted from pull out to pull in.  Both mile definitions exclude operator training, and vehicle maintenance testing, as well as school bus and charter services.  Do not include miles spent providing incidental services such as meal or service delivery."]
[null,{"$f":"B92+1","v":110},"Passenger Trips: Non-Contract","Enter the number of non-contract unlinked passenger trips (HYPERLINK within Doc - 341).  The cost of non-contract trips are not billed to outside organizations or agencies, rather are typically drawn down from funds controlled by the Transit System or its parent organization."]
[null,{"$f":"B93+1","v":111},"Passenger Trips: Medicaid Contract","Enter the number of unlinked passenger trips carried for DSS that are sponsored by Medicaid."]
[null,{"$f":"B94+1","v":112},"Passenger Trips: Non-Medicaid Contract","Enter the number of non-Medicaid unlinked passenger trips carried for human service agencies or others with whom the system has a contractual relationship. "]
[null,{"$f":"B95+1","v":113},"Hours","The hours calculation differs by mode.  For fixed-route mode (MB), hours are the total time in hours for the reporting period from first scheduled stop to the last scheduled stop. For demand response mode (DR), hours are accounted from pull out to pull in.  Both hour definitions exclude operator training, and vehicle maintenance testing, as well as school bus and charter services.  Do not include hours spent providing incidental services such as meal or service delivery."]
[null,114,"Miles","The miles calculation differs by mode.  For fixed-route mode (MB), miles are the total distance driven for the reporting period from the first scheduled stop to the last scheduled stop. For demand response mode (DR), miles are accounted from pull out to pull in.  Both mile definitions exclude operator training, and vehicle maintenance testing, as well as school bus and charter services.  Do not include miles spent providing incidental services such as meal or service delivery."]
[null,{"$f":"B97+1","v":115},"Passenger Trips: Non-Contract","Enter the number of non-contract unlinked passenger trips (HYPERLINK within Doc - 341).  The cost of non-contract trips are not billed to outside organizations or agencies, rather are typically drawn down from funds controlled by the Transit System or its parent organization."]
[null,{"$f":"B98+1","v":116},"Passenger Trips: Medicaid Contract","Enter the number of unlinked passenger trips carried for DSS that are sponsored by Medicaid."]
[null,{"$f":"B99+1","v":117},"Passenger Trips: Non-Medicaid Contract","Enter the number of non-Medicaid unlinked passenger trips carried for human service agencies or others with whom the system has a contractual relationship. "]
[null,118,"Hours","The hours calculation differs by mode.  For fixed-route mode (MB), hours are the total time in hours for the reporting period from first scheduled stop to the last scheduled stop. For demand response mode (DR), hours are accounted from pull out to pull in.  Both hour definitions exclude operator training, and vehicle maintenance testing, as well as school bus and charter services.  Do not include hours spent providing incidental services such as meal or service delivery."]
[null,119,"Miles","The miles calculation differs by mode.  For fixed-route mode (MB), miles are the total distance driven for the reporting period from the first scheduled stop to the last scheduled stop. For demand response mode (DR), miles are accounted from pull out to pull in.  Both mile definitions exclude operator training, and vehicle maintenance testing, as well as school bus and charter services.  Do not include miles spent providing incidental services such as meal or service delivery."]
[null,{"$f":"B102+1","v":120},"Passenger Trips: Non-Contract","Enter the number of non-contract unlinked passenger trips (HYPERLINK within Doc - 341).  The cost of non-contract trips are not billed to outside organizations or agencies, rather are typically drawn down from funds controlled by the Transit System or its parent organization."]
[null,{"$f":"B103+1","v":121},"Passenger Trips: Medicaid Contract","Enter the number of unlinked passenger trips carried for DSS that are sponsored by Medicaid."]
[null,{"$f":"B104+1","v":122},"Passenger Trips: Non-Medicaid Contract","Enter the number of non-Medicaid unlinked passenger trips carried for human service agencies or others with whom the system has a contractual relationship. "]
[]
["Finance",136,"Personnel Salaries & Fringes--CTP Object Codes G121-189","Enter the total expense for salaries and fringe benefits of Administrative Personnel only; for example, Director, Administrative Assistant, Secretary.  No operational employees’ salaries or fringe are included in this line item. "]
[null,{"$f":"B107+1","v":137},"Advertising and Promotion--CTP Object Codes G371-373","Enter the amount the system expended on advertising and promotion activities, products and services."]
[null,{"$f":"B108+1","v":138},"Employee Development--CTP Object Code G395","Enter the total expenses for all training-related expenses, including travel expenditures to training sessions."]
[null,139,"Vehicle Insurance Premiums--CTP Object Code G452","Enter the total expense for transit system vehicle insurance premiums. These costs should be broken out if the county charges a flat rate that includes multiple vehicle expenses."]
[null,140,"Indirect Services--CTP Object Code 481","Enter the amount of indirect costs reimbursed to the county general fund or sponsoring agency for administrative indirect services."]
[null,{"$f":"B111+1","v":141},"CTP Object Codes G190-359; 380-394; 396-451; 454-480; 482-491","Enter other administrative expenses from CTP object codes G190 to G359, G380 to G394, G396 to G451, G454 to G480 and G482 to G491."]
[null,{"$f":"B112+1","v":142},"Other Administrative Expenses","Enter any other funds the system may have expended for administrative support that have not been reported above. An explanation is required in Column S if an amount is entered here."]
[null,{"$f":"B113+1","v":143},"Driver Salaries & Fringes","Enter the total expenses for driver salaries & fringes for directly operated (DO) service.  No other personnel are to be considered here."]
[null,144,"Other Operating Staff Salaries & Fringes","Enter the total expenses for all non-driver and non-administrative transit system personnel, which includes Dispatcher, Trainer, Mechanic, Scheduler, Operations Manager, Road Supervisor, etc.  If a dispatcher or other operations person is a part time driver, then that portion of the salary dedicated to driving should be included with the Driver Salaries & Fringes line item above."]
[null,145,"Mechanics Salaries & Fringes","Enter the total expenses for mechanic salaries and fringes associated with the transit system."]
[null,{"$f":"B116+1","v":146},"Indirect Services","Enter the amount of indirect costs reimbursed to the county general fund or sponsoring agency for operating indirect services."]
[null,{"$f":"B117+1","v":147},"Fuel","Enter the total expenses to purchase fuel for transit system operations.  These costs should be broken out if the county charges a flat rate that includes multiple vehicle expenses."]
[null,{"$f":"B118+1","v":148},"Vehicle Maintenance","Enter the total expenses for vehicle maintenance items such as preventative maintenance, tires, oil changes, towing, repairs, etc. associated with maintaining vehicles. These costs should be broken out if your county charges a flat rate that includes multiple vehicle expenses."]
[null,149,"Payment of Insurance Deductible(s)","Enter the amount the transit system expended on insurance deductibles."]
[null,150,"Disposal of Vehicle(s)","Enter any expense the system incurred as a result of efforts to dispose of any vehicles in their fleet. (E.g.:  sale registration fees, transport of vehicle to disposal location, etc.)"]
[null,{"$f":"B121+1","v":151},"Management/Operation Services (Applicable only for PT Modes)","Enter all expenses incurred for the management or operational services of a private operator.  Examples of such operators are Apple Bus, First Transit, Laidlaw Transit Services, or MV Transit."]
[null,152,"Volunteer Reimbursement","Enter all expenses incurred by the transit system to support volunteer drivers who use their own vehicles.  Examples include mileage reimbursements or meal stipends."]
[null,{"$f":"B123+1","v":153},"Other Transit Provider Services (Applicable only for PT Modes)","Enter all expenses incurred for the services of other providers performing some service but not full-time service for the transit system.  Examples include payments to taxicab companies or other private providers, or payments to other CT systems providing coordinated out-of-county medical/employment trips."]
[null,{"$f":"B124+1","v":154},"Other Operating Expenses","Enter all other operating expenses incurred that have not specifically been reported elsewhere.  If a number is entered on this line, provide an explanation in Column S."]
[null,155,"Capital Purchases","Enter the total expenses incurred related to the purchase of vehicles and other capital equipment during the reporting period."]
[null,156,"Body Work on Wrecked Vehicle","Enter the total expense incurred for body and/or repair work required on any wrecked vehicles during the report period.  These expenses should be covered by proceeds from the insurance carrier minus any deductible expense."]
[null,{"$f":"B127+1","v":157},"Facility Renovation or Construction","Enter the total expenses incurred for the purchase of land for facility construction, facility construction activities or facility renovation during the reporting period."]
[null,{"$f":"B128+1","v":158},"Advanced Technology Purchases","Enter the total expenses related to the purchase of technology-related items such as hardware, software or telephone systems during the reporting period."]
[null,159,"Other Capital Expense","Enter any other expense related to capital purchases.  Provide a description of this expense in Column K. "]
[null,{"$f":"B130+1","v":160},"Urbanized Area Formula Funding-Section 5307","Enter the amount of Section 5307 federal funds expended to assist in paying for capital and operating costs. The Urbanized Area Formula Funding program makes Federal resources available to urbanized areas and to Governors for transit capital and operating assistance in urbanized areas and for transportation related planning. These funds may originate from either the local MPO or the State DOT."]
[null,{"$f":"B131+1","v":161},"CARES Act-Section 5307","Enter the amount of CARES Act-Section 5307 federal funds expended to assist in paying for capital and operating costs associated with the response to COVID-19. These funds may originate from either the local MPO or the State DOT."]
[null,{"$f":"B132+1","v":162},"CRRSA Act-Section 5307","Enter the amount of CRRSA Act-Section 5307 federal funds expended to assist in paying for capital and operating costs associated with the response to COVID-19. These funds may originate from either the local MPO or the State DOT."]
[null,163,"ARP Act-Section 5307","Enter the amount of ARP Act-Section 5307 federal funds expended to assist in paying for capital and operating costs associated with the response to COVID-19. These funds may originate from either the local MPO or the State DOT."]
[null,164,"FTA Capital Program Funds-Section 5309","Enter the amount of Section 5309 federal funds expended to assist in paying for the establishment of new rail or busway projects (new starts), the improvement and maintenance of existing rail and other fixed guideway systems, and the upgrading of bus systems. These funds may originate from either the local MPO or the State DOT."]
[null,{"$f":"B135+1","v":165},"Section 5310--Elderly and Disabled","Enter the amount of Section 5310 federal funds expended. These funds may originate from either the local MPO or the State DOT."]
[null,166,"Capital Assistance Spent on Operations-Section 5310","Enter the amount of Section 5310 federal capital funds expended to assist in paying for the operating costs of providing transit service."]
[null,167,"CARES Act-Section 5310","Enter the amount of CARES Act-Section 5310 federal funds expended to assist in paying for capital and operating costs associated with the response to COVID-19. "]
[null,168,"CRRSA Act-Section 5310","Enter the amount of CRRSA Act-Section 5310 federal funds expended to assist in paying for capital and operating costs associated with the response to COVID-19. "]
[null,169,"ARP Act-Section 5310","Enter the amount of ARP Act-Section 5310 federal funds expended to assist in paying for capital and operating costs associated with the response to COVID-19. "]
[null,170,"Section 5311--CTP Funds--Administrative/Capital","Enter the amount of Section 5311 Community Transportation Program federal funds expended on administrative costs or capital costs."]
[null,{"$f":"B141+1","v":171},"Section 5311--CTP Funds--Operating","Enter the amount of Section 5311 Community Transportation Program federal funds expended on operating costs."]
[null,172,"Capital Assistance Spent on Operations-Section 5311","Enter the amount of Section 5311 federal capital funds expended to assist in paying for the operating costs of providing transit service."]
[null,173,"Appalachian-Section 5311","Enter the amount of Section 5311 Appalachian federal funds expended."]
[null,174,"Tribal Federal Assistance--Section 5311","Enter the amount of Section 5311 Tribal federal funds expended."]
[null,{"$f":"B145+1","v":175},"ARRA Assistance--Section 5311","Enter the amount of Section 5311 ARRA federal funds expended."]
[null,176,"ARRA Tribal Assistance--Section 5311","Enter the amount of Section 5311 ARRA Tribal federal funds expended."]
[null,177,"CARES Act-Section 5311","Enter the amount of CARES Act-Section 5311 federal funds expended to assist in paying for capital and operating costs associated with the response to COVID-19. "]
[null,178,"CRRSA Act-Section 5310","Enter the amount of CRRSA Act-Section 5311 federal funds expended to assist in paying for capital and operating costs associated with the response to COVID-19. "]
[null,179,"ARP Act-Section 5310","Enter the amount of ARP Act-Section 5311 federal funds expended to assist in paying for capital and operating costs associated with the response to COVID-19. "]
[null,180,"Section 5316--JARC Funds","Enter the federal financial assistance the system received from the Job Access and Reverse Commute Section 5316 Program."]
[null,181,"Section 5317--New Freedom Funds","Enter the federal financial assistance the system received from New Freedom Section 5317 Program."]
[null,182,"Section 5339--Bus and Bus Facilities","Enter the federal financial assistance the system received from Bus and Bus Facilities Section 5339 Program."]
[null,183,"Other FTA Revenues","Enter other federal financial assistance the system expended.  Provide a description in Column S."]
[null,184,"Other Federal Non-FTA Revenues","Enter other federal financial assistance the system expended.  Provide a description in Column S."]
[null,185,"CTP Funds--Administrative","Enter the State financial assistance the system expended from the Community Transportation Program (CTP) to assist in paying the administrative costs of providing transit service."]
[null,186,"ROAP Funds--Suballocated to the Transit System","Enter the ROAP funds that are managed by and drawn down by transit systems (funds received pre-trip). ROAP funds that are held by counties for reimbursement to transit systems (funds received post-trip) are entered separately on line 111."]
[null,187,"Vehicles and Other Capital Revenues","Enter all state funds expended through NCDOT for capital purchases (vehicles and other capital expenses only)."]
[null,188,"Facility ","Enter all state funds expended through NCDOT for new construction or renovation of a facility."]
[null,189,"Advanced Technology ","Enter all state funds expended through NCDOT for advanced technology."]
[null,190,"Other State Funds","Enter other state financial assistance expended by the transit system.  Provide a description in Column S."]
[null,191,"Government Funds","Enter the total amount of financial assistance from local entities to assist in paying costs of the transit provider.  Include: Tax Levies - a specified amount from local tax levies dedicated to supporting the capital costs of the public transit system.  General Funds – Transfers from the general fund of local governments.  Specified Contributions - Contributions from the local government."]
[null,192,"Medicaid Revenue","Enter total funds paid to the transit system directly by Medicaid for service provision to Medicaid trip passengers."]
[null,193,"Brokered Medicaid Revenue","Enter total funds paid to the transit system by Medicaid brokers (i.e.ModivCare & MTM) for service provision to Medicaid trip passengers."]
[null,194,"Contract Revenue","Enter reimbursement by any organization, government, agency, or company, as a result of a formal contractual agreement with the transit service operator, for trips provided to a specific passenger or group of passengers. This contract revenue is only for unsubsidized trips."]
[null,195,"Other Directly Generated Revenue","Enter payments received from any organization, government, agency, or company, as a result of a formal contractual agreement with the transit system for trips provided to a specific passenger or group of passengers.  If the system did not receive EDTAP or Work First funds directly and billed agencies for the trips, that revenue is entered here."]
[null,196,"Fares from Passengers","Enter the total income received directly from passengers, either paid in cash or through pre-paid tickets, passes, etc., spent on transit operations for the reporting period.  Include the reduced fares paid by passengers in a user-side subsidy arrangement."]
[null,197,"Donations","Donations from individuals or organizations to help cover the transit system costs."]
[null,198,"Interest Income","Enter any funds that were earned from the investment of system reserve funds during the reporting period and transferred to current funds for administrative and operating expenses only."]
[null,199,"Advertising Revenue","Enter any funds paid to the transit system for advertising on the vehicles."]
[null,200,"Insurance Proceeds from Accident","Enter any proceeds received from insurance due to vehicle or property damages or losses during the reporting period."]
[null,201,"Proceeds from Vehicle Sales (used for Capital Only)","Enter any proceeds the system received from the sale of a vehicle(s).  Any amount reported here must have been restricted to capital expenses only."]
[null,202,"Other Revenue","Enter any other local funds the system may have received that have not been reported above which were dedicated to administrative or operating support.  An explanation is required in Column K if an amount is entered on this line."]
[]
["ANNUAL STATS",{"$f":"CONCATENATE(B173+1,\"A\")","v":"203A"},"Total Volunteer Drivers","Enter the number of volunteer drivers at the end of the reporting period.  Volunteer drivers are individuals who drive their personal vehicles or transit vehicles in revenue service to transport passengers for the transit system, but are not employees of the transit system and are not compensated for their labor, but may be compensated for their mileage.    "]
[null,{"$f":"CONCATENATE(B173+1,\"D\")","v":"203D"},"Personal Vehicles Used","Enter the number of personal vehicles used in revenue service at the end of the reporting period."]
[null,{"$f":"CONCATENATE(B173+2,\"A\")","v":"204A"},"Miles (Incidental Services)","Incidental service trips involve the movement of materials and goods rather than people. Examples include meal and mail delivery.  If the system provides Incidental Services, enter the number of dedicated miles provided as part of this service.  "]
[null,{"$f":"CONCATENATE(B173+2,\"D\")","v":"204D"},"Hours (Incidental Services)","Incidental service trips involve the movement of materials and goods rather than people. Examples include meal and mail delivery.   If the system provides Incidental Services, enter the number of dedicated hours provided as part of this service.  "]
[null,{"$f":"B173+3","v":205},"Incidental Services Description","Incidental service trips involve the movement of materials and goods rather than people. Examples include meal and mail delivery. Please describe the types of incidental service provided during the reporting period."]
[null,"147A","CARES Act Miles (Incidental Services)","Incidental service trips involve the movement of materials and goods rather than people. Examples may include meal and pharmaceutical deliveries. If the system provides Incidental Services to support the response to COVID-19, enter the number of dedicated miles provided as part of this service."]
[null,"147D","CARES Act Hours (Incidental Services)","Incidental service trips involve the movement of materials and goods rather than people. Examples may include meal and pharmaceutical deliveries. If the system provides Incidental Services to support the response to COVID-19, enter the number of dedicated hours provided as part of this service."]
[null,148,"CARES Act Incidental Services Description","Incidental service trips involve the movement of materials and goods rather than people. Examples may include meal and pharmaceutical deliveries. Please describe the types of incidental service provided in response to COVID-19 during the reporting period."]
[null,{"$f":"CONCATENATE(B173+6,\"-\",B173+9)","v":"208-211"},"Employee Information","Enter the number of full-time and part-time employees employed by the transit system in each category at the end of the FY in the “How Many” column.  The \"Total Pay Hours\" is the amount expended for the entire FY."]
[null,{"$f":"B173+10","v":212},"Non-Ambulatory Passenger Trips","Total number of passenger trips that required the use of a lift or ramp."]
[null,{"$f":"B184+1","v":213},"Vehicle Maintenance Method","Click on the cell and using the drop down box, select the appropriate category."]
[null,{"$f":"CONCATENATE(B185+1,\"A\")","v":"214A"},"Maintenance Facilites Owned","Enter the number of maintenance facilities owned by the grantee."]
[null,{"$f":"CONCATENATE(B185+1,\"C\")","v":"214C"},"Maintenance Facilites Leased","Enter the number of maintenance facilities leased by the grantee."]
[null,{"$f":"CONCATENATE(B185+2,\"A\")","v":"215A"},"NTD Reportable Events","Any event involving the operation of a transit system if, as a result, one or more of the following occurs: 1) An individual dies either at the time of the event or within 30 days of the event; 2) One or more individuals suffer bodily damage or harm as a result of the event requiring immediate medical attention away from the scene. Immediate attention includes, but is not limited to, transport to the hospital by ambulance or other vehicle.  The medical attention received must be at a location other than the location at which the incident occurred; 3) A collision, personal casualty, or fire causes property damage in excess of $25,000; and/or, 4) An evacuation due to life safety reasons."]
[null,{"$f":"CONCATENATE(B185+2,\"C\")","v":"215C"},"NTD Reportable Fatalities","A transit-caused fatality confirmed within 30 days of a transit event."]
[null,{"$f":"CONCATENATE(B185+2,\"E\")","v":"215E"},"NTD Reportable Injuries","Any damage or harm to persons as a result of an event that requires immediate medical attention away from the scene"]
[null,{"$f":"CONCATENATE(B185+3,\"-\",B185+9)","v":"216-222"},"Human Service Agency/Community Organization Trips Served","Check the appropriate box if the service is provided to the agency or program listed."]
[null,{"$f":"B185+10","v":223},"Changes Since Last Year","Provide a detailed description of how your transit system’s administration and/or operation has changed over the past year."]
[]
["COMPLETION",{"$f":"B192+1","v":224},"Operating Reserve","Enter the total amount of money available from the end of the year."]
[null,{"$f":"B194+1","v":225},"Doing Well","Describe what your system has been doing well."]
[null,{"$f":"B195+1","v":226},"Needs Improvement","Describe what can be done to improve your system's performance."]
[]
["MISCELLANEOUS",null,"Unlinked Passenger Trips (UPT)","The number of passengers who board public transportation vehicles. Passengers are counted each time they board vehicles no matter how many vehicles they use to travel from their origin to their destination. "]

{"sheet":"Safety & Security Definitions","index":14,"n_rows":24,"n_cols":2,"rows_kept":24,"cut":false,"hidden":true,"merged":[]}
["Description","Definition"]
["Physical Assault","An assault in which the attack involved physical contact with the transit worker. This could include any physical contact with the victim from the attacker's body, a weapon, a projectile or other item (i.e., spitting)."]
["Non-Physical Assault","An assault in which the attack involves no physical contact with the transit worker. This could include threats or intimidation that did not result in any physical cntact with the transit worker."]
["In Transit Vehicle","In or on a transit vehicle"]
["In Revenue Facility","A facility or an area that a passenger uses to board/deboard from a transit vehicle using a platform, which may include stairs, elevators, escalators, passenger controls, canopies, wind shelters, ticket office or machines, retrooms, or concessions. This includes the following:\n1. All fixed guideway passenger facilities (except for on-street cable car and light rail stops)\n2. Busway passenger facilities\n3. Underground, at-grade, and elevated rail stations\n4. Ferryboat terminals\n5. Transportation, transit, transfer centers, park-and-ride facilities, and transit malls with the above components, including those only used by buses\n6. Parking facilities and garages (parking facilities ar those immediately adjacent to a transit station or center)\n7. Other locations within the facility such as a control room, equipment room or turnstile area"]
["In Non-Revenue Facility","A facility or an area that is not used to enable individuals to board or alight from transit vehicles, and that is primarily staffed by transit employees"]
["Other Location","A location that is not in a revenue or non-revenue facility and is not a transit vehicle. This selection is used to capture events that did not occur in listed locations. For example, a person is pushed into a stationary transit vehicle on the roadway."]
["Major Safety & Security Event","A reportable event that meets any of the NTD reporting thresholds (detailed below) and \n1. Occurs at a transit revenue facility, maintenance facility, or rail yard;\n2. Occurs on transit right-of-way or infrastructure (the underlying framework or structures that support a public transportation system);\n3. Occurs during a transit-related maintenance activity; or\n4. Involves a transit revenue vehicle."]
["Non-Major Safety & Security Event","A reportable event that DOES NOT meet any of the NTD reporting thresholds as described above in the Major Safety & Security Event description and DOES NOT meet any of the NTD reporting thresholds (detailed below)."]
["Major Safety & Security Event Thresholds","The thresholds to determine if an event should be reported as a major event and the above criteria are also met:\n1. Fatality confirmed within 30 days of the event, including suicide;\n2. Injuries: Immediate transport away from the scene for medical attention for 1 or more persons (unless the event is an Other Safety Event which requires the transport of 2+ individuals away from the scene);\n3. Property Damage: Equal to or exceeding $25,000;\n4. Collisions that\n     a. Meet an injury, fatality, property damage, or evacuation threshold;\n     b. Involves a transit revenue vehicle and the towing away of any vehicles (transit or non-transit from the scene;\n     c. Include suicides, attempted suicides, assaults, or homicides resulting in an injury or fatality that involve contact with a transit vehicle; or\n     d. Includes collisions that do not involve a transit revenue vehicle but meet a threshold.\n5. Evacuations include\n     a. Evacuation of a transit facility or vehicle for life-safety reasons."]
["Other Safety Event","A safety event not specifically listed as a reportable event but which meet a reportable threhold. Other safety events include: slips, trips, falls, smoke, power failure, maintenance-related issues, electric shock, or runaway train events."]
["Operator","An individual who is compensated by the transit agency and whose function is to operate the transit vehicle."]
["Other Transit Worker","An individual who is compensated by the transit agency or who is otherwise providing specific services on behalf of a transit agency."]
["Other Individual","An individual who is not compensated by the transit agency or who is not otherwise providing specific services on behalf of a transit agency."]
["Number of  Major Safety and Secruity Events","The number of events that meet the required threshold to be reported as a major safety or security event as defined above."]
["Number of Operator Injuries","The number of Operator injuries to be reported that meet the required threshold defined above."]
["Number of Other Transit worker Injuries","The number of Other Transit Worker injuries to be reported that meet the required threshold defined above."]
["Number of Other Injuries","The number of Other injuries to be reported that meet the required threshold defined above."]
["Number of Operator Fatalities","The number of Operator fatalities to be reported that meet the required threshold defined above."]
["Number of Other Transit Worker Fatalities","The number of Other Transit Worker fatalities to be reported that meet the required threshold defined above."]
["Number of Other Fatalities","The number of Other fatalities to be reported that meet the required threshold defined above."]
["Fatalities","Confirmed within 30 days of the event, including suicide"]
["Injuries","Immediate transport away from the scene for medical attention for 2 or more persons."]
["Total reportable injuries from non-major events","Events that DO NOT meet the thresholds to be considered as a Major Event (detailed above) AND only one person was immediately transported away from the scene for medical attention."]

{"sheet":"Warning","index":15,"n_rows":17,"n_cols":9,"rows_kept":17,"cut":false,"hidden":false,"merged":[[15,8,15,15],[16,8,16,15]]}
[]
[]
[]
[]
[]
[]
[]
[]
[]
[]
[]
[]
[]
[]
[]
[null,null,null,null,null,null,null,null,"You must enable macros in order to use Op Stats FY24."]
[null,null,null,null,null,null,null,null,"Please re-open this workbook and enable macros."]